Workbook

Sheet Daten
A2: Bauprogramm 2023 - 2026 für die Kantonsstrassen; Vernehmlassungsentwurf
A3: Stand: mit Ergebnisse Vernehmlassung | BU3: Anhang
C4: Realisierung (Ausführungsprojekt, Beschaffungen, Bau, Inbetriebnahme)
N5: Stand: 21. Oktober 2021 Umsetzung Aggloprogramm AP 1/2 bis 2027, AP 3 bis 2025, AP 4 A; 2024-2027 (2028), B; 2028-2031 | CY5: Planungen
BS6: Wirkung - Relevanz - Kostenkategorien (Kosten/Nutzen) | CR6: Strassen-zustand 2017 | CT6: Strassen-zustand 2013 | CV6: RRK 94 ergänzt | EK6: Zustand Kunstbauten im Strassenabschnitt 2017 | EL6: Zustand Kunstbauten im Strassenabschnitt 2013 | EM6: Hochwasserschutz/Naturgefahren | EN6: Gefahrenprozess | EO6: Verkehr DTV Maximalwert im Strassenabschnitt | EP6: Unfall-schwer-punkt Polizei
A7: Strassen-zug | C7: Agglomerations-programm | G7: Zu-ord-nung | M7: Projekt Nr. | N7: Gemeinde, Abschnitt, Massnahme | O7: Projekt-kosten Bauprogramm | P7: Über-sichts-plan 19-22 | Q7: Plan Nr. | R7: Topf | S7: Über-sichts-plan 19-22 | T7: Plan Nr. | U7: Plan Nr. | V7: Topf | W7: Stand der Planung 19.1.2021 | X7: Projekt-kosten | Y7: aktuelle Projekt-kosten | Z7: Projekt-kosten | AA7: Kosten bis 2022 | AB7: Kosten bis Ende 2021 | AC7: ZAK 2022 | AD7: Projektkosten vor Ende 2022 Entwurf Ho | AE7: Topf A | AF7: Topf A | AJ7: Topf B | AO7: Topf C | AP7: Ressourcenplanung | BR7: Bemerkungen | BS7: Wirkung | CA7: Wirkung | CB7: Relevanz | CE7: Relevanz | CF7: Nutzen- punkte | CG7: Kosten/ Nutzen Kosten-Kate-gorien | CH7: Kosten/ Nutzen Kosten-Kate-gorien | CI7: Priorität / Rangfolge | CO7: Abhängigkeiten | CR7: ausgewiesen 2.2 (2.3) - 5.0 vorgesehen 1.5 - 2.2 (2.3) < 1.5 | CT7: ausgewiesen 2.2 (2.3) - 5.0 vorgesehen 1.5 - 2.2 (2.3) < 1.5 | CV7: Priortät Unfall-schwer-punkt Lücke | CW7: Anteil Agglo | DC7: Anteil Land | DG7: Luzern Plus | DL7: Sursee - Mittelland | DQ7: Idee Seelal | DV7: Regio West | DX7: Entlebuch Rottal-Wolhusen | DY7: (RE/RW) | EA7: Regio West | EC7: Willisau - Wiggertal | ED7: (WW) | EF7: Regio Zofingen | EK7: 5 alarmierend (Sicherheit gefährdet) 4 schlecht (grosse Schäden) 3 beschädigt (bedeutende Schäden) 2 akzeptabel ( unbedeutende Schäden) N keine KB betroffen | EL7: 5 alarmierend (Sicherheit gefährdet) 4 schlecht (grosse Schäden) 3 beschädigt (bedeutende Schäden) 2 akzeptabel ( unbedeutende Schäden) N keine KB betroffen | EM7: Betroffen Ja / Nein GHK = Aussagen aufgrund von Höhenmodellen. GK = genaue Gefahrenbeurteilungen im Siedlungsgebiet. | EN7: GHK: Gefahrenhinweiskarte GK: Gefahrenkarte L: Lawine; S: Sturz; M: Murgang; R: Rutsch; W: Wasser | EO7: Belastung > 20'000 Fz/Tag Belastung < 20'000 bis 15'000 Fz/Tag Belastung < 15'000 bis 10'000 Fz/Tag Belastung < 10'000 bis 5'000 Fz/Tag Belastung < 5'000 Fz/Tag
C8: 1 G | D8: 2 G | E8: 3 G | F8: 4G | G8: Agglo Stadt Land | H8: Luern Plus | I8: Sursee - Mittelland | J8: Idee Seetal | K8: Luzern West | L8: Regio Zofingen | O8: 2019-2022 | Q8: 2019-2022 | R8: 2019-2022 | T8: 23-26 alt | W8: Stand: Prognose per Ende.2022 | X8: BP 19-22 | Y8: Stand 19.1.2021 | AE8: 2023-2026 | AF8: 2023 | AG8: 2024 | AH8: 2025 | AI8: 2026 | AK8: 2027 | AL8: 2028 | AM8: 2029 | AN8: 2030 | AP8: PL | AQ8: 21 | AR8: 22 | AV8: 23 | AZ8: 24 | BD8: 25 | BH8: 26 | BL8: 2027 | BM8: 2028 | BN8: 2029 | BO8: 2030 | BP8: Topf C | BS8: W1 | BT8: W2 | BU8: W3 | BV8: W4 | BW8: W5 | BX8: W6 | BY8: W7 | BZ8: W8 | CA8: W | CB8: R1 | CC8: R2 | CD8: R3 | CE8: R | CF8: Summe | CG8: mit T 5 | CH8: mit T 6 | CI8: 1 | CJ8: 2 | CK8: 3 | CL8: 4 | CM8: 5 | CN8: 6 | CR8: Wert | CS8: Inter-vention | CT8: Wert | CU8: Inter-vention | CW8: Geamtkosten | CX8: 2022 | CY8: Topf A | CZ8: Topf B | DA8: Topf C | DB8: Geamtkosten | DC8: 2022 | DD8: Topf A | DE8: Topf B | DF8: Topf C | DG8: Geamtkosten | DH8: 2022 | DI8: Topf A | DJ8: Topf B | DK8: Topf C | DL8: Geamtkosten | DM8: 2022 | DN8: Topf A | DO8: Topf B | DP8: Topf C | DQ8: Geamtkosten | DR8: 2022 | DS8: Topf A | DT8: Topf B | DU8: Topf C | DV8: Geamtkosten | DW8: 2022 | DX8: Topf A | DY8: Topf B | DZ8: Topf C | EA8: Geamtkosten | EB8: 2022 | EC8: Topf A | ED8: Topf B | EE8: Topf C | EF8: Geamtkosten | EG8: 2022 | EH8: Topf A | EI8: Topf B | EJ8: Topf C
A9: K 2/4/10/13/ 16/17/19 | B9: 2.1 | D9: B; GV-2 | E9: A; GV-2 | G9: A | H9: LP | M9: x | N9: Agglomeration Luzern, Verkehrssystem-Management | O9: 5000000 | P9: 1 | Q9: 100 | R9: B | S9: 1 | T9: 1 | U9: 1 | V9: A | W9: in Planung | X9: 5000000 | Z9: =SUM(AA9+AF9+AG9+AH9+AI9+AJ9+AO9) -> 5000000 | AA9: =SUM(AB9:AD9) -> 200000 | AD9: 200000 | AE9: =SUM(AF9:AI9) -> 2800000 | AF9: 100000 | AG9: 100000 | AH9: 500000 | AI9: 2100000 | AJ9: =SUM(AK9:AN9) -> 2000000 | AK9: 2000000 | AP9: MUD | BH9: KSI | BS9: 0 | BT9: 0 | BU9: 2 | BV9: -1 | BW9: 0 | BX9: 1 | BY9: 3 | BZ9: 2 | CA9: =SUM(BS9:BZ9) -> 7 | CB9: 0 | CC9: 3 | CD9: 3 | CE9: =SUM(CB9:CD9) -> 6 | CF9: =CA9+CE9 -> 13 | CG9: gut | CH9: gut | CM9: =SUM(CF9) -> 13 | CO9: Aggloprogramm 2G Liste B | CW9: =SUM(Z9) -> 5000000 | CX9: =SUM(AA9) -> 200000 | CY9: =SUM(AE9) -> 2800000 | CZ9: =SUM(AJ9) -> 2000000 | DA9: =SUM(AO9) -> 0 | DG9: =SUM(Z9) -> 5000000 | DH9: =SUM(AA9) -> 200000 | DI9: =SUM(AE9) -> 2800000 | DJ9: =SUM(AJ9) -> 2000000 | DK9: =SUM(AO9) -> 0 | EK9: L | EL9: L | EM9: N | EO9: ca. 9000
A10: K 2 | B10: 2 | E10: A; ÖV-9.3 | G10: Stadt | H10: LP | M10: 11085 | N10: Luzern, Optimierung Gesamtverkehrssystem für RBus (z.B. Bevorzugungen, Haltestellen) | O10: 900000 | P10: 1 | Q10: 2 | R10: A | S10: 1 | T10: 2 | U10: 2 | V10: A | W10: t in Planung | X10: 900000 | Z10: =SUM(AA10+AF10+AG10+AH10+AI10+AJ10+AO10) -> 1500000 | AA10: =SUM(AB10:AD10) -> 200000 | AD10: 200000 | AE10: =SUM(AF10:AI10) -> 1300000 | AF10: 100000 | AG10: 600000 | AH10: 600000 | AP10: Stadt | BR10: Massnahmenpaket gemäss Agglomerationsprogramm 3 G | BS10: 0 | BT10: 0 | BU10: 2 | BV10: 0 | BW10: 0 | BY10: 3 | BZ10: 0 | CA10: =SUM(BS10:BZ10) -> 5 | CB10: 0 | CC10: 2 | CD10: 3 | CE10: =SUM(CB10:CD10) -> 5 | CF10: =CA10+CE10 -> 10 | CG10: gut | CH10: gut | CM10: =SUM(CF10) -> 10 | CO10: öV-Bericht, Rbus Aggloprogramm, BehiG | CW10: =SUM(Z10) -> 1500000 | CX10: =SUM(AA10) -> 200000 | CY10: =SUM(AE10) -> 1300000 | CZ10: =SUM(AJ10) -> 0 | DA10: =SUM(AO10) -> 0 | DG10: =SUM(Z10) -> 1500000 | DH10: =SUM(AA10) -> 200000 | DI10: =SUM(AE10) -> 1300000 | DJ10: =SUM(AJ10) -> 0 | DK10: =SUM(AO10) -> 0
A11: K 2 | B11: 2.1 | D11: A; GV-1.2 | F11: A; ÖV-6.1 | G11: Stadt | H11: LP | M11: 10856.3 | N11: Luzern, Gesamtverkehrskonzept Agglomerationszentrum Luzern, Bereich Bahnhofplatz, Bushaltestellen Durchmesserperronanlage mit lokaler Anpassung der Seebrücke im Bereich Brückenwiderlager Süd für eine normgerechte Fussgängerführung Bahnhofstrasse – Schiffsteg | O11: 4400000 | P11: 1 | Q11: 3 | R11: A | S11: 1 | T11: 3 | U11: 3 | V11: A | W11: im Bewilligungsverfahren | X11: 4400000 | Z11: =SUM(AA11+AF11+AG11+AH11+AI11+AJ11+AO11) -> 8500000 | AA11: =SUM(AB11:AD11) -> 700000 | AD11: 700000 | AE11: =SUM(AF11:AI11) -> 7800000 | AF11: 800000 | AG11: 3500000 | AH11: 3500000 | AP11: Stadt | BS11: 1 | BT11: 0 | BU11: 2 | BV11: 0 | BW11: 0 | BX11: 1 | BY11: 1 | BZ11: 0 | CA11: =SUM(BS11:BZ11) -> 5 | CB11: 1 | CC11: 3 | CD11: 3 | CE11: =SUM(CB11:CD11) -> 7 | CF11: 11 | CG11: sehr gut | CH11: gut | CJ11: 11 | CO11: bewilligt oder Bewilligungsverfahren Aggloprogramm 2G Liste A | CR11: 1.1 | CS11: nicht berechenbar | CT11: 1 | CU11: 2022 | CV11: U | CW11: =SUM(Z11) -> 8500000 | CX11: =SUM(AA11) -> 700000 | CY11: =SUM(AE11) -> 7800000 | CZ11: =SUM(AJ11) -> 0 | DA11: =SUM(AO11) -> 0 | DG11: 8500000 | DH11: 700000 | DI11: 7800000 | DJ11: 0 | DK11: 0 | EK11: L | EL11: L | EM11: n | EO11: 18300
A12: K 2/4/13/ 17/32 a | B12: 2.1 | D12: A; GV-1.2 | G12: Stadt | H12: LP | M12: 11085 | N12: Luzern, Gesamtverkehrskonzept Agglomerationszentrum Luzern, Bereich Luzernerhof – Bahnhof – Pilatusplatz – Bundesplatz, Optimierung Gesamtverkehrssystem | O12: 2800000 | P12: 1 | Q12: 4 | R12: A | S12: 1 | T12: 4 | U12: 4 | V12: A | W12: in Realisierung | X12: 2800000 | Z12: =SUM(AA12+AF12+AG12+AH12+AI12+AJ12+AO12) -> 2800000 | AA12: 1900000 | AD12: 1900000 | AE12: 900000 | AF12: 500000 | AG12: 400000 | AP12: Stadt | BS12: 3 | BT12: 0 | BU12: 2 | BV12: -1 | BW12: 0 | BX12: 0 | BY12: 2 | BZ12: 0 | CA12: 6 | CB12: 0 | CC12: 3 | CD12: 3 | CE12: 6 | CF12: =CA12+CE12 -> 12 | CG12: sehr gut | CH12: gut | CI12: 12 | CO12: in Realisierung Aggloprogramm 2G Liste A | CR12: 1.1 | CS12: nicht berechenbar | CT12: 1.3 | CU12: 2020 | CV12: U | CW12: 2800000 | CX12: 1900000 | CY12: 900000 | CZ12: 0 | DA12: 0 | DG12: 2800000 | DH12: 1900000 | DI12: 900000 | DJ12: 0 | DK12: 0 | EK12: L | EL12: L | EM12: n | EO12: 21000
A13: K 2/4/17 | G13: Stadt | H13: LP | N13: Kriens/Luzern/Ebikon, durchgehende Busspuren gemäss Bemerkungen Kantonsrat zum Planungsbericht B 67, Planung | Q13: neu | S13: 1 | T13: neu | U13: 5 | V13: A | Z13: =SUM(AA13+AF13+AG13+AH13+AI13+AJ13+AO13) -> 500000 | AA13: =SUM(AB13:AD13) -> 0 | AD13: 0 | AE13: =SUM(AF13:AI13) -> 500000 | AF13: 200000 | AG13: 200000 | AH13: 100000 | AP13: MUD | BS13: 2 | BT13: 3 | BU13: 3 | BV13: -2 | BW13: 0 | BX13: 1 | BY13: 3 | BZ13: 0 | CA13: =SUM(BS13:BZ13) -> 10 | CB13: 2 | CC13: 3 | CD13: 3 | CE13: =SUM(CB13:CD13) -> 8 | CF13: =CA13+CE13 -> 18 | CW13: =SUM(Z13) -> 500000 | CX13: =SUM(AA13) -> 0 | CY13: =SUM(AE13) -> 500000 | CZ13: =SUM(AJ13) -> 0 | DA13: =SUM(AO13) -> 0 | DG13: =SUM(Z13) -> 500000 | DH13: =SUM(AA13) -> 0 | DI13: =SUM(AE13) -> 500000 | DJ13: =SUM(AJ13) -> 0 | DK13: =SUM(AO13) -> 0
A14: K 2 b | B14: 2.2 | G14: L | H14: LP | M14: 10870 | N14: Greppen/Weggis, Einmündung Dorfstrasse – Rütimatt, Erstellen Rad- und Gehweg, Ausbau Strasse in Koordination Sanierung Strasse | O14: 14000000 | P14: 1 | Q14: 6 | R14: A | S14: 1 | T14: 5 | U14: 6 | V14: A | W14: in Realisierung | X14: 14000000 | Z14: =SUM(AA14+AF14+AG14+AH14+AI14+AJ14+AO14) -> 14700000 | AA14: 6200000 | AD14: 6200000 | AE14: 8500000 | AF14: 6000000 | AG14: 2500000 | AP14: Bau | BS14: 2 | BT14: 1 | BU14: 0 | BV14: 0 | BW14: 0 | BX14: 2 | BY14: 1 | BZ14: 1 | CA14: 7 | CB14: 3 | CC14: 1 | CD14: 1 | CE14: 5 | CF14: =CA14+CE14 -> 12 | CG14: gut | CH14: gut | CI14: 12 | CO14: in Realisierung | CR14: 2.2 | CS14: 2014 | CT14: 2 | CU14: 2015 | CV14: 3 | DB14: =SUM(Z14) -> 14700000 | DC14: =SUM(AA14) -> 6200000 | DD14: =SUM(AE14) -> 8500000 | DE14: =SUM(AJ14) -> 0 | DF14: =SUM(AO14) -> 0 | DG14: 14700000 | DH14: 6200000 | DI14: 8500000 | DJ14: 0 | DK14: 0 | EK14: 3 | EL14: 4 | EM14: j | EN14: GK: W | EO14: 7700
A15: K 2 b | B15: 2.2 | G15: L | H15: LP | M15: 10180 | N15: Vitznau, Bürglen – Grenze Schwyz, Teilausbau und Sanierung Strasse | O15: 13000000 | P15: 1 | Q15: 7 | R15: A | S15: 1 | T15: 6 | U15: 7 | V15: A | W15: in Realisierung | X15: 13000000 | Z15: 14700000 | AA15: 5200000 | AD15: 5200000 | AE15: 9500000 | AF15: 4500000 | AG15: 4500000 | AH15: 500000 | AP15: Bau | BS15: 1 | BT15: 0 | BU15: 0 | BV15: 0 | BW15: 0 | BX15: 0 | BY15: 1 | BZ15: 1 | CA15: 3 | CB15: 3 | CC15: 0 | CD15: 0 | CE15: 3 | CF15: 6 | CG15: genügend | CH15: genügend | CI15: 6 | CO15: bewilligt oder Bewilligungsverfahren Zustand Kunstbauten alarmierend | CR15: 2.6 | CS15: 2010 | CT15: 2 | CU15: 2016 | DB15: =SUM(Z15) -> 14700000 | DC15: =SUM(AA15) -> 5200000 | DD15: =SUM(AE15) -> 9500000 | DE15: =SUM(AJ15) -> 0 | DF15: =SUM(AO15) -> 0 | DG15: 14700000 | DH15: 5200000 | DI15: 9500000 | DJ15: 0 | DK15: 0 | EK15: 5 | EL15: 5 | EM15: j | EN15: GK: W | EO15: 22000
A16: K 4 | B16: 4 | E16: A; ÖV-9.3 | G16: A | H16: LP | M16: 11069 | N16: Kriens, Grosshof – Schachenstrasse, Optimierung Gesamtverkehrssystem für RBus (z.B. Bevorzugungen, Haltestellen) | O16: 2500000 | P16: 1 | Q16: 9 | R16: A | S16: 1 | T16: 7 | U16: 8 | V16: A | W16: in Realisierung | X16: 2500000 | Z16: 2500000 | AA16: 1300000 | AD16: 1300000 | AE16: 1200000 | AF16: 1200000 | AP16: Bau | BS16: 0 | BT16: 0 | BU16: 2 | BV16: 0 | BW16: 0 | BX16: 1 | BY16: 3 | BZ16: 0 | CA16: 6 | CB16: 1 | CC16: 2 | CD16: 3 | CE16: 6 | CF16: 12 | CG16: sehr gut | CH16: gut | CI16: 12 | CO16: öV-Bericht, Rbus Aggloprogramm, BehiG | CR16: 1.3 | CS16: 2020 | CW16: =SUM(Z16) -> 2500000 | CX16: =SUM(AA16) -> 1300000 | CY16: =SUM(AE16) -> 1200000 | CZ16: =SUM(AJ16) -> 0 | DA16: =SUM(AO16) -> 0 | DG16: 2500000 | DH16: 1300000 | DI16: 1200000 | DJ16: 0 | DK16: 0 | EK16: 2
A17: K 4 | B17: 4 | C17: A; M 18.2c4 | G17: A | H17: LP | M17: 10202 | N17: Kriens, Zentrum (exkl.) – Einmündung Hergiswaldstrasse, Massnahmen für den öffentlichen Verkehr, Erstellen Radverkehrsanlage in Koordination Sanierung Strasse | O17: 18000000 | P17: 1 | Q17: 10 | R17: A | S17: 1 | T17: 8 | U17: 9 | V17: A | W17: bewilligt - Realisierung in Vorbereitung | X17: 18000000 | Z17: 24000000 | AA17: 2500000 | AD17: 2500000 | AE17: 21500000 | AF17: 6000000 | AG17: 8000000 | AH17: 6500000 | AI17: 1000000 | AP17: Bau | BR17: aufgrund Einsprachen Auflage von Projektänderungen. Koordinierte Ausführung mit Plan Nr. 12 (Ränggloch) | BS17: 3 | BT17: 3 | BU17: 2 | BV17: -2 | BW17: 0 | BX17: 0 | BY17: 2 | BZ17: 1 | CA17: 9 | CB17: 3 | CC17: 3 | CD17: 3 | CE17: 9 | CF17: 18 | CG17: sehr gut | CH17: gut | CJ17: =SUM(CF17) -> 18 | CO17: bewilligt oder Bewilligungsverfahren, Zustand Strasse Aggloprogramm 1G Liste A | CR17: 2.5 | CS17: 2011 | CT17: 2.2 | CU17: 2013 | CV17: 1, U | CW17: 24000000 | CX17: 2500000 | CY17: 21500000 | CZ17: 0 | DA17: 0 | DG17: 24000000 | DH17: 2500000 | DI17: 21500000 | DJ17: 0 | DK17: 0 | EK17: 3 | EL17: 3 | EM17: j | EN17: GK: W | EO17: 9400
A18: K 4/17 | B18: 4.1 | E18: A; ÖV-9.1a | G18: A | H18: LP | M18: 11069 | N18: Kriens/Luzern, Optimierung Gesamtverkehrssystem für RBus (z.B. Bevorzugungen, Haltestellen) | O18: 2000000 | P18: 1 | Q18: 11 | R18: A | S18: 1 | T18: 9 | U18: 10 | V18: A | W18: teilweise realisiert teilweise in Planung | X18: 2000000 | Z18: 2000000 | AA18: 900000 | AD18: 900000 | AE18: 1100000 | AF18: 100000 | AG18: 1000000 | AP18: Stadt | BR18: Massnahmenpaket gemäss Agglomerationsprogramm 3 G | BS18: 0 | BT18: 0 | BU18: 2 | BV18: -1 | BW18: 0 | BX18: 0 | BY18: 3 | BZ18: 0 | CA18: 4 | CB18: 0 | CC18: 2 | CD18: 3 | CE18: 5 | CF18: 9 | CG18: gut | CH18: gut | CM18: =SUM(CF18) -> 9 | CO18: öV-Bericht, Rbus Aggloprogramm | CW18: 2000000 | CX18: 900000 | CY18: 1100000 | CZ18: 0 | DA18: 0 | DG18: 2000000 | DH18: 900000 | DI18: 1100000 | DJ18: 0 | DK18: 0 | EK18: N | EL18: N | EM18: n | EO18: 20000
A19: K 4/33 a | B19: 4.1 | C19: C; M 17.3 | D19: A; LV-1.1c | G19: A | H19: LP | M19: 10572 | N19: Kriens/Luzern, Ränggloch, Einmündung Hergiswaldstrasse (exkl.) – Hohrüti (inkl.), Ausbau und Sanierung Strasse, Erstellen Radverkehrsanlage | O19: 50000000 | P19: 1 | Q19: 12 | R19: A | S19: 1 | T19: 10 | U19: 11 | V19: A | W19: in Realisierung | X19: 50000000 | Z19: 53000000 | AA19: 8000000 | AD19: 8000000 | AE19: 45000000 | AF19: 22000000 | AG19: 22000000 | AH19: 1000000 | AP19: Bau | BR19: aufgrund Einsprachen Auflage von Projektänderungen. Koordinierte Ausführung mit Plan Nr. 10 | BS19: 3 | BT19: 2 | BU19: 0 | BV19: 0 | BW19: -1 | BX19: 3 | BY19: 3 | BZ19: 1 | CA19: 11 | CB19: 3 | CC19: 3 | CD19: 1 | CE19: 7 | CF19: 18 | CG19: gut | CH19: gut | CI19: 15 | CO19: im Bewilligungsverfahren, Zustand Kunstbauten alarmierend, Zustand Strasse Aggloprogramm 2G Liste A | CR19: 1.7 / 2.3 | CS19: 2018 / 2013 | CT19: 1.8 / 2.1 | CU19: 2017 / 2014 | CV19: 2, U | CW19: 53000000 | CX19: 8000000 | CY19: 45000000 | CZ19: 0 | DA19: 0 | DG19: 53000000 | DH19: 8000000 | DI19: 45000000 | DJ19: 0 | DK19: 0 | EK19: 5 | EL19: 5 | EM19: j | EN19: GK: W, R | EO19: 17800
A20: K 4 | B20: 4 | F20: B; FVV-4.4 | G20: A | H20: LP | M20: x | N20: Luzern/Malters, Hohrüti – Under Rängg, neue Brücke, Optimierung Linienführung, Erstellen Radverkehrsanlage | O20: 10000000 | P20: 1 | Q20: 102 | R20: B | S20: 1 | T20: 11 | U20: 12 | V20: A | W20: in Planung | X20: 10000000 | Z20: 24000000 | AA20: 100000 | AD20: 100000 | AE20: 3900000 | AF20: 200000 | AG20: 500000 | AH20: 200000 | AI20: 3000000 | AJ20: =SUM(AK20:AN20) -> 20000000 | AK20: 5000000 | AL20: 6000000 | AM20: 6000000 | AN20: 3000000 | BR20: Evt. auch Topf C möglich mit Baubeginn 2031 | BS20: 2 | BT20: 2 | BU20: 0 | BV20: 0 | BW20: -2 | BX20: 2 | BY20: 2 | BZ20: 1 | CA20: =SUM(BS20:BZ20) -> 7 | CB20: 3 | CC20: 3 | CD20: 1 | CE20: =SUM(CB20:CD20) -> 7 | CF20: =CA20+CE20 -> 14 | CG20: gut | CH20: gut | CM20: =SUM(CF20) -> 14 | CO20: Zustand Brücke schlecht | CR20: 1.4 | CS20: 2019 | CT20: 1.4 | CU20: 2020 | CV20: 2 | CW20: 24000000 | CX20: 100000 | CY20: 3900000 | CZ20: 20000000 | DA20: 0 | DG20: 24000000 | DH20: 100000 | DI20: 3900000 | DJ20: 20000000 | DK20: 0 | EK20: 4 | EL20: 4 | EM20: n | EO20: 10300
A21: K 4 b | B21: 4.2 | D21: A; ÖV-11.1i A; LV-2.2g | G21: A | H21: LP | M21: x | N21: Kriens, Eichwilstrasse, Erstellen Radverkehrsanlage entlang Kantonsstrasse für Verbindung Kupferhammer – Arsenalstrasse (Bauvorhaben Dritter, Kostenanteil für Abschnitt Kantonsstrasse) | O21: 500000 | P21: 1 | Q21: 13 | R21: A | S21: 1 | T21: 12 | U21: 13 | V21: A | W21: bewilligt - Realisierung in Vorbereitung | X21: 500000 | Z21: 500000 | AA21: 0 | AD21: 0 | AE21: 500000 | AF21: 250000 | AG21: 250000 | AP21: BVD | AQ21: x | AU21: x | AV21: x | AW21: x | AX21: x | AY21: x | AZ21: x | BA21: x | BB21: x | BC21: x | BR21: Bauvorhaben Dritter Stadt Kriens | BS21: 0 | BT21: 1 | BU21: 0 | BV21: 0 | BW21: 0 | BX21: 0 | BY21: 2 | BZ21: 2 | CA21: 5 | CB21: 0 | CC21: 2 | CD21: 2 | CE21: 4 | CF21: 9 | CG21: gut | CH21: gut | CM21: =SUM(CF21) -> 9 | CO21: Abhänigkeit Projekt Dritter Aggloprogramm 2G Liste A Perimeter Nationalstrasse | CR21: 2.5 | CS21: 2011 | CT21: 2.2 | CU21: 2014 | CW21: 500000 | CX21: 0 | CY21: 500000 | CZ21: 0 | DA21: 0 | DG21: 500000 | DH21: 0 | DI21: 500000 | DJ21: 0 | DK21: 0 | EK21: N | EL21: N | EM21: j | EN21: GK: W, R | EO21: 5300
A22: K 10 | B22: 10 | D22: B; ÖV-11.1n | E22: A; ÖV-9.1d | G22: Stadt | H22: LP | M22: x | N22: Luzern, Staldenhof – Bodenhof, Massnahmen für den öffentlichen Verkehr und den Langsamverkehr in Koordination Siedlungsentwicklung, Planung | O22: 200000 | P22: 1 | Q22: 202 | R22: C | S22: 1 | T22: 13 | U22: 14 | V22: A | W22: keine Aktivität | X22: 200000 | Z22: 500000 | AA22: 0 | AD22: 0 | AE22: 500000 | AH22: 250000 | AI22: 250000 | AP22: BU | BS22: 1 | BT22: 0 | BU22: 3 | BV22: 0 | BW22: 0 | BX22: 1 | BY22: 3 | BZ22: 1 | CA22: 9 | CB22: 1 | CC22: 2 | CD22: 3 | CE22: 6 | CF22: 15 | CM22: =SUM(CF22) -> 15 | CO22: Aggloprogramm Siedlungsentwicklung | CR22: 0.9 | CS22: 2025 | CW22: 500000 | CX22: 0 | CY22: 500000 | CZ22: 0 | DA22: 0 | DG22: 500000 | DH22: 0 | DI22: 500000 | DJ22: 0 | DK22: 0 | EK22: 2
A23: K 10 | B23: 10 | G23: L | K23: RW | M23: 10088 | N23: Wolhusen, Bahnhof – Bahnübergang, Erstellen Radverkehrsanlage und Kreisel Abzweigung K 34, Bushof (exkl.) in Koordination Sanierung Strasse | O23: 11000000 | P23: 4/5 | Q23: 17 | R23: A | S23: 4 | T23: 16 | U23: 15 | V23: A | W23: in Realisierung | X23: 11000000 | Z23: 11000000 | AA23: 700000 | AD23: 700000 | AE23: 10300000 | AF23: 5000000 | AG23: 5000000 | AH23: 300000 | AP23: Bau | BS23: 3 | BT23: 3 | BU23: 0 | BV23: 0 | BW23: 0 | BX23: 2 | BY23: 1 | BZ23: 1 | CA23: 10 | CB23: 2 | CC23: 1 | CD23: 2 | CE23: 5 | CF23: 15 | CG23: gut | CH23: gut | CJ23: 15 | CO23: bewilligt oder im Bewilligungsverfahren, Zustand Strasse, öV-Bericht (koordinierte Realisierung Bushub) | CR23: 2.4 | CS23: 2012 | CT23: 2 | CU23: 2015 | CV23: 1 | DB23: =SUM(Z23) -> 11000000 | DC23: =SUM(AA23) -> 700000 | DD23: =SUM(AE23) -> 10300000 | DE23: =SUM(AJ23) -> 0 | DF23: =SUM(AO23) -> 0 | DV23: =SUM(Z23) -> 11000000 | DW23: =SUM(AA23) -> 700000 | DX23: =SUM(AE23) -> 10300000 | DY23: =SUM(AJ23) -> 0 | DZ23: =SUM(AO23) -> 0 | EK23: 3 | EL23: 2 | EM23: n | EN23: GHK: W | EO23: k.A.
A24: K 10 | B24: 10 | G24: L | K24: RE | M24: 10201 | N24: Entlebuch, Althus – Dorf (exkl.), Sanierung Strasse, Radverkehrsanlage | O24: 10500000 | P24: 4 | Q24: 18 | R24: A | S24: 4 | T24: 17 | U24: 16 | V24: A | W24: in Realisierung | X24: 10500000 | Z24: 12900000 | AA24: 3100000 | AD24: 3100000 | AE24: 9800000 | AF24: 4300000 | AG24: 5000000 | AH24: 500000 | AP24: Bau | BS24: 2 | BT24: 2 | BU24: 0 | BV24: 0 | BW24: 0 | BX24: 1 | BY24: 1 | BZ24: 1 | CA24: =SUM(BS24:BZ24) -> 7 | CB24: 3 | CC24: 1 | CD24: 1 | CE24: =SUM(CB24:CD24) -> 5 | CF24: =CA24+CE24 -> 12 | CG24: gut | CH24: gut | CI24: 12 | CO24: in Realisierung | CR24: 1.8 | CS24: 2017 | CT24: 1.8 | CU24: 2017 | CV24: 2 | DB24: 12900000 | DC24: 3100000 | DD24: 9800000 | DE24: 0 | DF24: 0 | DV24: =SUM(Z24) -> 12900000 | DW24: =SUM(AA24) -> 3100000 | DX24: =SUM(AE24) -> 9800000 | DY24: =SUM(AJ24) -> 0 | DZ24: =SUM(AO24) -> 0 | EK24: 4 | EL24: 4 | EM24: j | EN24: GHK: R GK: W | EO24: k.A.
A25: K 10 | G25: L. | K25: RE | N25: Escholzmatt-Marbach: Grenze Schüpfheim – Lehn, Ausbau der Radverkehrsanlage | O25: 900000 | P25: 4 | Q25: 19 | R25: A | S25: 4 | T25: 18 | U25: 17 | V25: A | W25: im Bewilligungsverfahren | X25: 900000 | Z25: 3500000 | AA25: 300000 | AD25: 300000 | AE25: 1700000 | AF25: 200000 | AH25: 500000 | AI25: 1000000 | AJ25: =SUM(AK25:AN25) -> 1500000 | AK25: 1500000 | AP25: GED | BS25: 0 | BT25: 3 | BU25: 0 | BV25: 0 | BW25: 0 | BX25: 0 | BY25: 1 | BZ25: 1 | CA25: 5 | CB25: 0 | CC25: 1 | CD25: 1 | CE25: 2 | CF25: 7 | CG25: genügend | CH25: genügend | CM25: =SUM(CF25) -> 7 | CO25: RRK | CV25: best. ungenügend | DB25: 3500000 | DC25: 300000 | DD25: 1700000 | DE25: 1500000 | DF25: 0 | DV25: =SUM(Z25) -> 3500000 | DW25: =SUM(AA25) -> 300000 | DX25: =SUM(AE25) -> 1700000 | DY25: =SUM(AJ25) -> 1500000 | DZ25: =SUM(AO25) -> 0
A26: K 10 | B26: 10 | G26: L | K26: RE | M26: 10129 | N26: Escholzmatt-Marbach, Wiggen – Grenze Kanton Bern, Erstellen Radverkehrsanlage, Neubau Brücke | O26: 14000000 | P26: 4 | Q26: 20 | R26: A | S26: 4 | T26: 19 | U26: 18 | V26: A | W26: in Realisierung | X26: 14000000 | Z26: 14000000 | AA26: 800000 | AD26: 800000 | AE26: 13200000 | AF26: 700000 | AG26: 5000000 | AH26: 5000000 | AI26: 2500000 | AP26: Bau | BS26: 1 | BT26: 1 | BU26: 0 | BV26: 0 | BW26: 0 | BX26: 3 | BY26: 1 | BZ26: 1 | CA26: =SUM(BS26:BZ26) -> 7 | CB26: 3 | CC26: 1 | CD26: 0 | CE26: =SUM(CB26:CD26) -> 4 | CF26: =CA26+CE26 -> 11 | CG26: gut | CH26: genügend | CI26: 11 | CO26: in Realisierung Neubau Brücke und Sanierung Strasse ab 2019 | CR26: 1.9 | CS26: 2016 | CT26: 1.7 | CU26: 2018 | CV26: 3 | DB26: 14000000 | DC26: 800000 | DD26: 13200000 | DE26: 0 | DF26: 0 | DV26: 14000000 | DW26: 800000 | DX26: 13200000 | DY26: 0 | DZ26: 0 | EK26: 4 | EL26: 4 | EM26: j | EN26: GK: W | EO26: k.A.
A27: K 10 | B27: 10 | G27: L | K27: RE | N27: Escholzmatt-Marbach, Kröschenbrunnen Grenze Kanton Bern – Dürrenbach Grenze Kanton Bern, Erstellen Radverkehrsanlage und Teilausbau Kantonsstrasse in Koordination Sanierung Strasse | O27: 1300000 | P27: 4 | Q27: 105 | R27: B | S27: 4 | T27: 20 | U27: 19 | V27: A | W27: in Planung | X27: 1300000 | Z27: 2900000 | AA27: 50000 | AD27: 50000 | AE27: 1150000 | AF27: 100000 | AG27: 50000 | AI27: 1000000 | AJ27: 1700000 | AK27: 1700000 | BR27: Koordination mit Anschlussprojekt Kanton Bern und Sanierung Kunstbauen | BS27: 0 | BT27: 3 | BU27: 0 | BV27: 0 | BW27: 0 | BX27: 0 | BY27: 1 | BZ27: 1 | CA27: 5 | CB27: 0 | CC27: 1 | CD27: 1 | CE27: 2 | CF27: 7 | CG27: gut | CH27: gut | CM27: =SUM(CF27) -> 7 | CO27: RRK | DB27: 2900000 | DC27: 50000 | DD27: 1150000 | DE27: 1700000 | DF27: 0 | DV27: 2900000 | DW27: 50000 | DX27: 1150000 | DY27: 1700000 | DZ27: 0
A28: K 10/33 | B28: 10.1 | G28: L | H28: LP | K28: RW | M28: x | N28: Malters/Werthenstein, neue Bushaltestellen aufgrund Verlängerung S61 | O28: 500000 | P28: 1/4/5 | Q28: 21 | R28: A | S28: 1/4/5 | T28: 21 | U28: 20 | V28: A | W28: im Bewilligungsverfahren | X28: 500000 | Z28: 2000000 | AA28: 200000 | AD28: 200000 | AE28: 1800000 | AF28: 800000 | AG28: 1000000 | AP28: GED | BS28: 0 | BT28: 0 | BU28: 1 | BV28: 0 | BW28: 0 | BX28: 0 | BY28: 2 | BZ28: 0 | CA28: 3 | CB28: 0 | CC28: 1 | CD28: 1 | CE28: 2 | CF28: 5 | CG28: genügend | CH28: genügend | CM28: =SUM(CF28) -> 5 | CO28: öV-Bericht | DB28: 2000000 | DC28: 200000 | DD28: 1800000 | DE28: 0 | DF28: 0 | DV28: 2000000 | DW28: 200000 | DX28: 1800000 | DY28: 0 | DZ28: 0
A29: K 11 | B29: 11 | G29: L | K29: RW | M29: 10231.1 | N29: Wolhusen, Menznauerstrasse, Bahnübergang – Einmündung Spitalstrasse (exkl.), Erstellen Radverkehrsanlage in Koordination Sanierung Strasse und Sanierung Kunstbauten | O29: 9500000 | P29: 4/5 | Q29: 22 | R29: A | S29: 4 | T29: 22 | U29: 21 | V29: A | W29: bewilligt - Realisierung in Vorbereitung | X29: 9500000 | Z29: 9800000 | AA29: 800000 | AD29: 800000 | AE29: 9000000 | AF29: 1500000 | AG29: 5000000 | AH29: 2500000 | AP29: Bau | BS29: 3 | BT29: 3 | BU29: 0 | BV29: 0 | BW29: 0 | BX29: 1 | BY29: 1 | BZ29: 1 | CA29: =SUM(BS29:BZ29) -> 9 | CB29: 2 | CC29: 1 | CD29: 1 | CE29: =SUM(CB29:CD29) -> 4 | CF29: =CA29+CE29 -> 13 | CG29: gut | CH29: gut | CI29: 13 | CO29: in Realisierung Zustand Strasse | CR29: 1.6 | CS29: 2018 | CT29: 2 | CU29: 2015 | CV29: 1, U | DB29: 9800000 | DC29: 800000 | DD29: 9000000 | DE29: 0 | DF29: 0 | DV29: 9800000 | DW29: 800000 | DX29: 9000000 | DY29: 0 | DZ29: 0 | EK29: 3 | EL29: 2 | EM29: n | EO29: 28000
A30: K 11 | B30: 11 | G30: L | K30: WW | M30: x | N30: Menznau, Dorfanfang – Swiss Krono (Dorf exkl.), Anpassen bestehende Radverkehrsanlagen an Alternativroute (exkl. Alternativroute) in Koordination Sanierung Strasse | O30: 1100000 | P30: 2 | Q30: 24 | R30: A | S30: 2 | T30: 23 | U30: 22 | V30: A | W30: in Realisierung | X30: 1100000 | Z30: 2600000 | AA30: 600000 | AD30: 600000 | AE30: 2000000 | AF30: 2000000 | AP30: Bau | BS30: 1 | BT30: 2 | BU30: 0 | BV30: 0 | BW30: 0 | BX30: 1 | BY30: 1 | BZ30: 1 | CA30: 6 | CB30: 3 | CC30: 1 | CD30: 1 | CE30: 5 | CF30: 11 | CG30: sehr gut | CH30: gut | CI30: 11 | CO30: in Realisierung Zustand Strasse | DB30: 2600000 | DC30: 600000 | DD30: 2000000 | DE30: 0 | DF30: 0 | EA30: =SUM(Z30) -> 2600000 | EB30: =SUM(AA30) -> 600000 | EC30: =SUM(AE30) -> 2000000 | ED30: =SUM(AJ30) -> 0 | EE30: =SUM(AO30) -> 0
A31: K 11 | B31: 11 | G31: L | K31: WW | M31: 10845 | N31: Alberswil, Dorf, Abschnitt Einmündung K 12 – Einmündung Unterfeldstrasse, Anpassung geometrisches Normalprofil in Koordination Sanierung Kunstbauten und Sanierung Strasse | O31: 4500000 | P31: 2 | Q31: 25 | R31: A | S31: 2 | T31: 24 | U31: 23 | V31: A | W31: im Bewilligungsverfahren | X31: 4500000 | Z31: 14500000 | AA31: 1000000 | AD31: 1000000 | AE31: 13500000 | AG31: 3000000 | AH31: 6000000 | AI31: 4500000 | AP31: rap | BS31: 1 | BT31: 0 | BU31: 1 | BV31: 0 | BW31: 0 | BX31: 3 | BY31: 1 | BZ31: 0 | CA31: 6 | CB31: 3 | CC31: 0 | CD31: 1 | CE31: 4 | CF31: 10 | CG31: genügend | CH31: genügend | CK31: =SUM(CF31) -> 10 | CO31: Zustand Kunstbauten alarmierend | CR31: 1.1 | CS31: 2023 | CT31: 1.4 | CU31: 2020 | CV31: best. | DB31: 14500000 | DC31: 1000000 | DD31: 13500000 | DE31: 0 | DF31: 0 | EA31: =SUM(Z31) -> 14500000 | EB31: =SUM(AA31) -> 1000000 | EC31: =SUM(AE31) -> 13500000 | ED31: =SUM(AJ31) -> 0 | EE31: =SUM(AO31) -> 0 | EK31: 5 | EL31: 5 | EM31: n | EO31: 12000
A32: K 11/40 | B32: 11.1 | G32: L | K32: WW | M32: 10676.1 | N32: Willisau, Kreisel Wydenmatt (exkl.) – Bahnübergang, Erstellen Radverkehrsanlage, Massnahmen für den öffentlichen Verkehr, Optimierung Leistungsfähigkeit Kreisel Grundmatt in Koordination Sanierung Strasse | O32: 6600000 | P32: 2 | Q32: 27 | R32: A | S32: 2 | T32: 25 | U32: 24 | V32: A | W32: in Realisierung | X32: 6600000 | Z32: 7200000 | AA32: 4400000 | AD32: 4400000 | AE32: 2800000 | AF32: 2500000 | AG32: 300000 | AP32: Bau | BS32: 2 | BT32: 3 | BU32: 1 | BV32: 0 | BW32: 0 | BX32: 0 | BY32: 3 | BZ32: 0 | CA32: 9 | CB32: 2 | CC32: 1 | CD32: 1 | CE32: 4 | CF32: 13 | CG32: gut | CH32: gut | CI32: 13 | CJ32: 13 | CL32: 13 | CM32: =SUM(CF32) -> 13 | CO32: in Realisierung | CR32: 1.4 | CS32: 2021 | CT32: 1.4 | CU32: 2021 | CV32: 1 | DB32: 7200000 | DC32: 4400000 | DD32: 2800000 | DE32: 0 | DF32: 0 | EA32: 7200000 | EB32: 4400000 | EC32: 2800000 | ED32: 0 | EE32: 0 | EK32: N | EL32: N | EM32: n | EO32: 19200
A33: K 11 | B33: 12 | G33: L | K33: WW | M33: x | N33: Alberswil – Schötz, Umfahrung, Planung inkl. Variantenstudium | O33: 2500000 | P33: 2 | Q33: 107 | R33: B | S33: 2 | T33: 26 | U33: 25 | V33: A | W33: in Planung | X33: 2500000 | Z33: 2500000 | AA33: 500000 | AD33: 500000 | AE33: 2000000 | AF33: 500000 | AG33: 500000 | AH33: 500000 | AI33: 500000 | AP33: ROA | BR33: Planung fortführen | BS33: 2 | BT33: 1 | BU33: 1 | BV33: 0 | BW33: -3 | BX33: -3 | BY33: 3 | BZ33: 0 | CA33: 1 | CB33: 0 | CC33: 1 | CD33: 2 | CE33: 3 | CF33: 4 | CM33: =SUM(CF33) -> 4 | CO33: Kantonaler Richtplan | CS33: neue Str. | CU33: neue Str. | DB33: 2500000 | DC33: 500000 | DD33: 2000000 | DE33: 0 | DF33: 0 | EA33: 2500000 | EB33: 500000 | EC33: 2000000 | ED33: 0 | EE33: 0 | EK33: N | EL33: N | EM33: j | EN33: GK: W | EO33: 5500
A34: K 11 | B34: 11.1 | G34: L | K34: WW | N34: Schötz, Industriegebiet Süd – Einmündung Oberdorfstrasse, Optimierung Strassenraum, Radverkehrsanalgen, Sanierung Knoten, Anpassen Bushaltestellen in Koordination Sanierung Strasse | Q34: 106 | R34: B | S34: 2 | T34: 27 | U34: 26 | V34: A | W34: in Planung | X34: 0 | Z34: 4000000 | AA34: 400000 | AD34: 400000 | AE34: 3100000 | AF34: 100000 | AH34: 1000000 | AI34: 2000000 | AJ34: =SUM(AK34:AN34) -> 500000 | AK34: 500000 | AP34: rap | BS34: 3 | BT34: 3 | BU34: 0 | BV34: 0 | BW34: 0 | BX34: 0 | BY34: 1 | BZ34: 1 | CA34: 8 | CB34: 2 | CC34: 1 | CD34: 2 | CE34: 5 | CF34: 13 | CG34: gut | CH34: gut | CL34: =SUM(CF34) -> 13 | CO34: Zustand Strasse | DB34: 4000000 | DC34: 400000 | DD34: 3100000 | DE34: 500000 | DF34: 0 | EA34: 4000000 | EB34: 400000 | EC34: 3100000 | ED34: 500000 | EE34: 0
A35: K 12/13/ 15 a | B35: 12.1 | D35: A; ÖV-11.1j | G35: A | H35: LP | M35: 10773.1 | N35: Emmen, Knoten Lohrensage, Optimierung Leistungsfähigkeit und Anpassung Bushaltestellen, Erstellen und Ergänzen Radverkehrsanlage | O35: 5300000 | P35: 3 | Q35: 29 | R35: A | S35: 3 | T35: 28 | U35: 27 | V35: A | W35: bewilligt - Realisierung in Vorbereitung | X35: 5300000 | Z35: 16000000 | AA35: 700000 | AD35: 700000 | AE35: 15300000 | AF35: 1000000 | AG35: 6000000 | AH35: 6000000 | AI35: 2300000 | AP35: Su | BS35: 1 | BT35: 1 | BU35: 2 | BV35: 1 | BW35: 0 | BX35: 0 | BY35: 3 | BZ35: 1 | CA35: 9 | CB35: 2 | CC35: 3 | CD35: 3 | CE35: 8 | CF35: 17 | CG35: sehr gut | CH35: gut | CJ35: 17 | CO35: Bewilligungsverfahren Aggloprogramm 2G Liste A, Zustand Strasse | CR35: 1.5 | CS35: 2018 | CT35: 1.7 | CU35: 2016 | CV35: 3 | CW35: =SUM(Z35) -> 16000000 | CX35: =SUM(AA35) -> 700000 | CY35: =SUM(AE35) -> 15300000 | CZ35: =SUM(AJ35) -> 0 | DA35: =SUM(AO35) -> 0 | DG35: =SUM(Z35) -> 16000000 | DH35: =SUM(AA35) -> 700000 | DI35: =SUM(AE35) -> 15300000 | DJ35: =SUM(AJ35) -> 0 | DK35: =SUM(AO35) -> 0 | EK35: N | EL35: N | EM35: j | EN35: GK: W | EO35: 6300
A36: K 12 | B36: 12 | G36: L | I36: SM | M36: x | N36: Neuenkirch, Moosschür – Hellbühl Dorf (inkl.), Radverkehrsanlage und Eingangspforte aus Richtung Ruswil in Koordination Sanierung Strasse | O36: 2200000 | P36: 5 | Q36: 108 | R36: B | S36: 5 | T36: 29 | U36: 28 | V36: A | W36: in Planung | X36: 2200000 | Z36: 2900000 | AA36: 100000 | AD36: 100000 | AE36: 1100000 | AF36: 100000 | AG36: 100000 | AI36: 900000 | AJ36: =SUM(AK36:AN36) -> 1700000 | AK36: 1700000 | BS36: 1 | BT36: 2 | BU36: 0 | BV36: 0 | BW36: 0 | BX36: 2 | BY36: 1 | BZ36: 0 | CA36: 6 | CB36: 1 | CC36: 1 | CD36: 1 | CE36: 3 | CF36: 9 | CG36: gut | CH36: gut | CM36: =SUM(CF36) -> 9 | CO36: RRK | CR36: 1.7 | CS36: 2018 | CT36: 1.9 | CU36: 2016 | CV36: 2 und 3 | DB36: =SUM(Z36) -> 2900000 | DC36: =SUM(AA36) -> 100000 | DD36: =SUM(AE36) -> 1100000 | DE36: =SUM(AJ36) -> 1700000 | DF36: =SUM(AO36) -> 0 | DL36: =SUM(Z36) -> 2900000 | DM36: =SUM(AA36) -> 100000 | DN36: =SUM(AE36) -> 1100000 | DO36: =SUM(AJ36) -> 1700000 | DP36: =SUM(AO36) -> 0 | EK36: 3 | EL36: 2 | EM36: j | EO36: 5 - 10'000
A37: K 12 | B37: 12 | G37: L | I37: SM | M37: 11319 | N37: Grosswangen, Rotmatte – Schutz, Massnahmen für den Langsamverkehr mit Anpassung der Bushaltestellen an das BehiG in Koordination Sanierung Strasse | O37: 3200000 | P37: 5 | Q37: 110 | R37: B | S37: 5 | T37: 30 | U37: 29 | V37: A | W37: in Planung | X37: 3200000 | Z37: 12000000 | AA37: 200000 | AD37: 200000 | AE37: 1300000 | AF37: 200000 | AG37: 100000 | AI37: 1000000 | AJ37: 10500000 | AK37: 4000000 | AL37: 4000000 | AM37: 2500000 | AP37: dim | BS37: 1 | BT37: 2 | BU37: 1 | BV37: 0 | BW37: 0 | BX37: 2 | BY37: 1 | BZ37: 2 | CA37: 9 | CB37: 3 | CC37: 0 | CD37: 1 | CE37: 4 | CF37: 13 | CG37: gut | CH37: gut | CL37: =SUM(CF37) -> 13 | CO37: Zustand Strasse | CR37: 2.6 | CS37: 2011 | CV37: 2, 3 | DB37: 12000000 | DC37: 200000 | DD37: 1300000 | DE37: 10500000 | DF37: 0 | DL37: =SUM(Z37) -> 12000000 | DM37: =SUM(AA37) -> 200000 | DN37: =SUM(AE37) -> 1300000 | DO37: =SUM(AJ37) -> 10500000 | DP37: =SUM(AO37) -> 0 | EK37: 2
A38: K 13 | B38: 13 | D38: A; LV-1.1b B; ÖV-10.1 | E38: A; LV-1.1d | G38: Stadt | H38: LP | M38: 10892 | N38: Luzern, Hirschengraben – Pilatusplatz – Obergrundstrasse (Einm. Moosstrasse), Radverkehrsanlage für Querverbindung Pilatus-/Bahnhofstrasse, Sanierung Bushaltestellen gemäss BehiG mit Sanierung Strasse in Koordination Sanierung Krienbach | O38: 2700000 | P38: 1 | Q38: 30 | R38: A | S38: 1 | T38: 31 | U38: 30 | V38: A | W38: in Planung | X38: 2700000 | Z38: 9000000 | AA38: 500000 | AD38: 500000 | AE38: 3000000 | AF38: 300000 | AG38: 200000 | AH38: 500000 | AI38: 2000000 | AJ38: =SUM(AK38:AN38) -> 5500000 | AK38: 3000000 | AL38: 2500000 | AP38: Stadt | BR38: Neue Projektidee - Y d.h. evtl. neues Projekt mit neuer Aufnahme in späteres Bauprogramm | BS38: 3 | BT38: 3 | BU38: 1 | BV38: 0 | BW38: 0 | BX38: 1 | BY38: 2 | BZ38: 2 | CA38: =SUM(BS38:BZ38) -> 12 | CB38: 2 | CC38: 2 | CD38: 3 | CE38: =SUM(CB38:CD38) -> 7 | CF38: =CA38+CE38 -> 19 | CG38: sehr gut | CH38: sehr gut | CM38: =SUM(CF38) -> 19 | CO38: Aggloprogramm 2G Liste A Koordination mit Sanierung Werkleitungen Stadt Luzern | CR38: 1.3 | CS38: nicht berechenbar | CT38: 0.9 | CU38: 2023 | CV38: 1 | CW38: =SUM(Z38) -> 9000000 | CX38: =SUM(AA38) -> 500000 | CY38: =SUM(AE38) -> 3000000 | CZ38: =SUM(AJ38) -> 5500000 | DA38: =SUM(AO38) -> 0 | DG38: =SUM(Z38) -> 9000000 | DH38: =SUM(AA38) -> 500000 | DI38: =SUM(AE38) -> 3000000 | DJ38: =SUM(AJ38) -> 5500000 | DK38: =SUM(AO38) -> 0 | EK38: L | EL38: L | EM38: j | EN38: GK: W | EO38: 10200
A39: K 13 | B39: 13 | F39: A; FVV-3.20 | G39: Stadt | H39: LP | N39: Luzern, Ausbau Veloverbindung Rütli | Q39: neu | S39: 1 | T39: 32 | U39: 31 | V39: A | Z39: =SUM(AA39+AF39+AG39+AH39+AI39+AJ39+AO39) -> 2600000 | AA39: =SUM(AB39:AD39) -> 0 | AD39: 0 | AE39: 2600000 | AF39: 200000 | AG39: 1200000 | AH39: 1200000 | AP39: Stadt | BS39: 2 | BT39: 1 | BU39: 1 | BV39: 0 | BW39: 0 | BX39: 0 | BY39: 0 | BZ39: 0 | CA39: 4 | CB39: 2 | CC39: 2 | CD39: 3 | CE39: 7 | CF39: 11 | CG39: sehr gut | CH39: gut | CL39: =SUM(CF39) -> 11 | CO39: Zustand Strasse | CW39: 2600000 | CX39: 0 | CY39: 2600000 | CZ39: 0 | DA39: 0 | DG39: 2600000 | DH39: 0 | DI39: 2600000 | DJ39: 0 | DK39: 0
A40: K 13 | B40: 13 | D40: A; ÖV-11.1c B; ÖV-10.2 | E40: A; ÖV-9.1b | G40: Stadt | H40: LP | M40: 11113 | N40: Luzern, Gütsch – Kreuzstutz, Optimierung Gesamtverkehrssystem, Massnahmen für den öffentlichen und den Langsamverkehr in Koordination Sanierung Strasse und Sanierung Werkleitungen | O40: 2800000 | P40: 1 | Q40: 31 | R40: A | S40: 1 | T40: 33 | U40: 32 | V40: A | W40: in Realisierung | X40: 2800000 | Z40: 2900000 | AA40: 500000 | AD40: 500000 | AE40: 2400000 | AF40: 1000000 | AG40: 1400000 | AP40: Stadt | BR40: Ergebnisse ZMB Spange Nord. Vorhaben liegt im Perimeter Basisausbau | BS40: 3 | BT40: 3 | BU40: 2 | BV40: 0 | BW40: 0 | BX40: 1 | BY40: 3 | BZ40: -1 | CA40: 11 | CB40: 2 | CC40: 3 | CD40: 3 | CE40: 8 | CF40: 19 | CG40: sehr gut | CH40: sehr gut | CM40: =SUM(CF40) -> 19 | CO40: Aggloprogramm 2G Liste A, öV-Bericht (Inbetreibnahme Buslinie 3) | CR40: 1.5 | CS40: nicht berechenbar | CT40: 1.3 | CU40: 2020 | CV40: 1, U | CW40: 2900000 | CX40: 500000 | CY40: 2400000 | CZ40: 0 | DA40: 0 | DG40: 2900000 | DH40: 500000 | DI40: 2400000 | DJ40: 0 | DK40: 0 | EK40: L | EL40: L | EM40: j | EN40: GK: W, R | EO40: 11200
A41: K 13 | B41: 13 | C41: C; M 18.2a3 | D41: B; M18.2a3 B; ÖV-11.1a | E41: A; ÖV-9.1e | G41: Stadt | H41: LP | M41: 11004 | N41: Luzern, Grenzweg – Fluhmühle, Optimierung Leistungsfähigkeit, Massnahmen für den öffentlichen Verkehr, Erstellen Radverkehrsanlage in Koordination Sanierung Strasse | O41: 10800000 | P41: 1 | Q41: 32 | R41: A | S41: 1 | T41: 34 | U41: 33 | V41: A | W41: in Realisierung | X41: 10800000 | Z41: 10800000 | AA41: 7000000 | AD41: 7000000 | AE41: 3800000 | AF41: 3000000 | AG41: 800000 | AP41: Bau | BS41: 0 | BT41: 0 | BU41: 3 | BV41: 0 | BW41: 0 | BX41: 1 | BY41: 2 | BZ41: 0 | CA41: 6 | CB41: 2 | CC41: 3 | CD41: 3 | CE41: 8 | CF41: 14 | CG41: gut | CH41: gut | CJ41: =SUM(CF41) -> 14 | CO41: in Realisierung Aggloprogramm 2G Liste B Zustand Kantonsstrasse | CR41: 1.9 | CS41: 2016 | CT41: 2.2 | CU41: 2014 | CV41: best. | CW41: 10800000 | CX41: 7000000 | CY41: 3800000 | CZ41: 0 | DA41: 0 | DG41: 10800000 | DH41: 7000000 | DI41: 3800000 | DJ41: 0 | DK41: 0 | EK41: N | EL41: N | EM41: n | EO41: k.A.
A42: K 13 | B42: 13 | C42: A; M 18.2a2 | G42: Stadt | H42: LP | M42: 11005 | N42: Luzern, Fluhmühle – Einmündung Lindenstrasse, Neubau Überführung, Radverkehrsanlage, Busspur in Koordination Sanierung Strasse | O42: 20100000 | P42: 1 | Q42: 33 | R42: A | S42: 1 | T42: 35 | U42: 34 | V42: A | W42: in Realisierung | X42: 20100000 | Z42: 20100000 | AA42: 6000000 | AD42: 6000000 | AE42: 14100000 | AF42: 6000000 | AG42: 5000000 | AH42: 3100000 | AP42: Bau | BS42: 1 | BT42: 1 | BU42: 3 | BV42: 0 | BW42: 0 | BX42: 1 | BY42: 3 | BZ42: 1 | CA42: 10 | CB42: 3 | CC42: 2 | CD42: 3 | CE42: 8 | CF42: 18 | CG42: sehr gut | CH42: gut | CJ42: =SUM(CF42) -> 18 | CO42: in Realisierung Aggloprogramm 1G Liste A Zustand Kunstbauten alarmierend Siedlungsentwicklung Stadt Luzern | CR42: 2.5 | CS42: 2012 | CT42: 2.7 | CU42: 2010 | CV42: best. | CW42: 20100000 | CX42: 6000000 | CY42: 14100000 | CZ42: 0 | DA42: 0 | DG42: 20100000 | DH42: 6000000 | DI42: 14100000 | DJ42: 0 | DK42: 0 | EK42: 5 | EL42: 5 | EM42: j | EN42: GK: W | EO42: 5500
A43: K 13 | B43: 13 | E43: A; ÖV-9.2 | G43: Stadt | H43: LP | M43: x | N43: Luzern/Emmen, Optimierung Gesamtverkehrssystem für RBus (z.B. Bevorzugungen, Haltestellen) | O43: 1100000 | P43: 1/3 | Q43: 35 | R43: A | S43: 1/3 | T43: 36 | U43: 35 | V43: A | W43: teilweise realisiert teilweise in Planung | X43: 1100000 | Z43: 1100000 | AA43: 500000 | AD43: 500000 | AE43: 600000 | AF43: 100000 | AH43: 500000 | AP43: Stadt | BR43: Massnahmenpaket gemäss Agglomerationsprogramm 3 G | BS43: 0 | BT43: 0 | BU43: 2 | BV43: 0 | BW43: 0 | BY43: 3 | BZ43: 0 | CA43: 5 | CB43: 0 | CC43: 2 | CD43: 3 | CE43: 5 | CF43: 10 | CG43: gut | CH43: gut | CM43: =SUM(CF43) -> 10 | CO43: öV-Bericht, Rbus Aggloprogramm, BehiG | CW43: 1100000 | CX43: 500000 | CY43: 600000 | CZ43: 0 | DA43: 0 | DG43: 1100000 | DH43: 500000 | DI43: 600000 | DJ43: 0 | DK43: 0
A44: K 13 | B44: 13 | C44: A; M 18.2a4 | G44: A | H44: LP | M44: 10922 | N44: Emmen, Centralplatz (exkl.) – Sonnenplatz (exkl.), Radverkehrsanlage und Massnahmen für den öffentlichen Verkehr | O44: 4700000 | P44: 3 | Q44: 112 | R44: B | S44: 3 | T44: 37 | U44: 36 | V44: A | W44: in Planung | X44: 4700000 | Z44: 4900000 | AA44: 300000 | AD44: 300000 | AE44: 4200000 | AF44: 200000 | AH44: 1000000 | AI44: 3000000 | AJ44: =SUM(AK44:AN44) -> 400000 | AK44: 400000 | AP44: Bu | BS44: 3 | BT44: 3 | BU44: 1 | BV44: 0 | BW44: 0 | BX44: 1 | BY44: 3 | BZ44: 1 | CA44: 12 | CB44: 3 | CC44: 3 | CD44: 3 | CE44: 9 | CF44: 21 | CG44: sehr gut | CH44: sehr gut | CL44: =SUM(CF44) -> 21 | CO44: Aggloprogramm 1G Liste A, Zustand Strasse | CR44: 2.5 | CS44: 2011 | CT44: 2.3 | CU44: 2013 | CV44: 1, U | CW44: 4900000 | CX44: 300000 | CY44: 4200000 | CZ44: 400000 | DA44: 0 | DG44: 4900000 | DH44: 300000 | DI44: 4200000 | DJ44: 400000 | DK44: 0 | EK44: N | EL44: N | EM44: j | EN44: GK: W | EO44: 40000
A45: K 13/15 | B45: 13.1 | C45: A; M 18.2a4 | D45: A; ÖV-11.1k A; ÖV-6.1c | E45: B; ÖV-9.1c | F45: A; GV-1.2 Teilprojekt | G45: A | H45: LP | M45: 10922 | N45: Emmen, Sonnenplatz (inkl.) – Sprengiplatz (exkl.), Optimierung Gesamtverkehrssystem, Radverkehrsanlagen und Massnahmen für den öffentlichen Verkehr | O45: 23500000 | P45: 3 | Q45: 113 | R45: B | S45: 3 | T45: 38 | U45: 37 | V45: A | W45: in Planung | Z45: 8000000 | AA45: 0 | AD45: 0 | AE45: 5500000 | AF45: 200000 | AG45: 300000 | AH45: 1000000 | AI45: 4000000 | AJ45: 2500000 | AK45: 2500000 | AP45: Bu | BR45: Teilprojekt von Plan Nr. 113 Begründung: Zeitbedarf städtebauliche Studie am Sprengiplatz | BS45: 3 | BT45: 3 | BU45: 3 | BV45: 0 | BW45: 0 | BX45: 1 | BY45: 2 | BZ45: 1 | CA45: 13 | CB45: 2 | CC45: 3 | CD45: 3 | CE45: 8 | CF45: 21 | CG45: sehr gut | CH45: sehr gut | CM45: =SUM(CF45) -> 21 | CO45: abhängig Projekt ASTRA, Aggloprogramm | CR45: 1.7 / 1.4 | CS45: 2017 / 2020 | CT45: 1.8 / 1.1 | CU45: 2017 / 2023 | CV45: 1, 2, U | CW45: 8000000 | CX45: 0 | CY45: 5500000 | CZ45: 2500000 | DA45: 0 | DG45: 8000000 | DH45: 0 | DI45: 5500000 | DJ45: 2500000 | DK45: 0 | EK45: 2 | EL45: 2 | EM45: j | EN45: GHK : L, R, S | EO45: 3500
A46: K 13 | B46: 13 | F46: A; FVV-3.2 | G46: A | H46: LP | I46: SM | M46: x | N46: Emmen/Neuenkirch, Lohren – Sibenlingen, Erstellen Rad- und Gehweg | O46: 4000000 | P46: 3/5 | Q46: 114 | R46: B | S46: 3/5 | T46: 39 | U46: 38 | V46: A | W46: in Planung | X46: 4000000 | Z46: 12000000 | AA46: 100000 | AD46: 100000 | AE46: 1400000 | AF46: 200000 | AG46: 200000 | AI46: 1000000 | AJ46: 10500000 | AK46: 4500000 | AL46: 6000000 | BS46: 2 | BT46: 3 | BU46: 0 | BV46: 0 | BW46: 0 | BX46: 3 | BY46: 1 | BZ46: 0 | CA46: 9 | CB46: 2 | CC46: 2 | CD46: 1 | CE46: 5 | CF46: 14 | CG46: gut | CH46: gut | CM46: =SUM(CF46) -> 14 | CO46: Aggloprogramm | CR46: 1.5 | CS46: 2020 | CT46: 1.3 | CU46: 2022 | CV46: 3 | CW46: 12000000 | CX46: 100000 | CY46: 1400000 | CZ46: 10500000 | DA46: 0 | DG46: 12000000 | DH46: 100000 | DI46: 1400000 | DJ46: 10500000 | DK46: 0 | EK46: 2 | EL46: 2 | EM46: n | EO46: k.A.
A47: K 13 | B47: 13 | G47: L | I47: SM | M47: x | N47: Neuenkirch, Dorf, Abschnitt Lippenrüti, Radverkehrsanlage in Koordination Sanierung Strasse | O47: 2000000 | P47: 5 | Q47: 36 | R47: A | S47: 5 | T47: 40 | U47: 39 | V47: A | W47: im Bewilligungsverfahren | X47: 2000000 | Z47: 4000000 | AA47: 500000 | AD47: 500000 | AE47: 3500000 | AG47: 500000 | AH47: 2000000 | AI47: 1000000 | AP47: GED | BS47: 0 | BT47: 3 | BU47: 1 | BV47: 0 | BW47: 0 | BX47: 1 | BY47: 2 | BZ47: 0 | CA47: 7 | CB47: 3 | CC47: 1 | CD47: 1 | CE47: 5 | CF47: 12 | CG47: gut | CH47: gut | CL47: =SUM(CF47) -> 12 | CO47: Sanierung Strasse | CR47: 1.5 | CS47: 2020 | DB47: =SUM(Z47) -> 4000000 | DC47: =SUM(AA47) -> 500000 | DD47: =SUM(AE47) -> 3500000 | DE47: =SUM(AJ47) -> 0 | DF47: =SUM(AO47) -> 0 | DL47: =SUM(Z47) -> 4000000 | DM47: =SUM(AA47) -> 500000 | DN47: =SUM(AE47) -> 3500000 | DO47: =SUM(AJ47) -> 0 | DP47: =SUM(AO47) -> 0 | EK47: 2
A48: K 13 | B48: 13 | G48: L | I48: SM | M48: x | N48: Neuenkirch, Dorf, Abschnitt Einmündung Hellbühlstrasse – Einmündung Kirchstrasse, Radverkehrsanlage in Koordination Sanierung Strasse | O48: 2000000 | P48: 5 | Q48: 37 | R48: A | S48: 5 | T48: 41 | U48: 40 | V48: A | W48: im Bewilligungsverfahren | X48: 2000000 | Z48: 6400000 | AA48: 500000 | AD48: 500000 | AE48: 3400000 | AF48: 200000 | AH48: 500000 | AI48: 2700000 | AJ48: =SUM(AK48:AN48) -> 2500000 | AK48: 2000000 | AL48: 500000 | AP48: GED | BS48: 0 | BT48: 3 | BU48: 1 | BV48: 0 | BW48: 0 | BX48: 1 | BY48: 2 | BZ48: 1 | CA48: 8 | CB48: 3 | CC48: 1 | CD48: 1 | CE48: 5 | CF48: 13 | CG48: gut | CH48: gut | CL48: 13 | CO48: Sanierung Strasse | CR48: 0.6 | CS48: 2032 | DB48: 6400000 | DC48: 500000 | DD48: 3400000 | DE48: 2500000 | DF48: 0 | DL48: 6400000 | DM48: 500000 | DN48: 3400000 | DO48: 2500000 | DP48: 0 | EK48: 2
A49: K 13 | B49: 13 | G49: L | I49: SM | M49: 10580 | N49: Neuenkirch/Nottwil, Abzweigung K 48 – Unterwalden – Nottwil Dorf (exkl.), Erstellen Rad- und Gehweg in Koordination Sanierung Strasse | O49: 13000000 | P49: 5 | Q49: 38 | R49: A | S49: 5 | T49: 42 | U49: 41 | V49: A | W49: in Realisierung | X49: 13000000 | Z49: 14800000 | AA49: 3000000 | AD49: 3000000 | AE49: 11800000 | AF49: 5000000 | AG49: 6000000 | AH49: 800000 | AP49: Bau | BS49: 2 | BT49: 3 | BU49: 0 | BV49: 0 | BW49: 0 | BX49: 2 | BY49: 2 | BZ49: 0 | CA49: 9 | CB49: 1 | CC49: 1 | CD49: 1 | CE49: 3 | CF49: 12 | CG49: gut | CH49: gut | CJ49: =SUM(CF49) -> 12 | CO49: in Realisierung | CR49: 1.5 | CS49: 2020 | CT49: 1.4 | CU49: 2021 | CV49: 1 | DB49: 14800000 | DC49: 3000000 | DD49: 11800000 | DE49: 0 | DF49: 0 | DL49: 14800000 | DM49: 3000000 | DN49: 11800000 | DO49: 0 | DP49: 0 | EK49: 3 | EL49: 2 | EM49: j | EN49: GK: W | EO49: 9400
A50: K 13 | B50: 13 | G50: L | I50: SM | M50: x | N50: Nottwil, Dorf, Verbesserung Verkehrssicherheit in Koordination Sanierung Strasse und BehiG | O50: 2000000 | P50: 5 | Q50: 115 | R50: B | S50: 5 | T50: 43 | U50: 42 | V50: A | W50: in Planung | X50: 2000000 | Z50: 6000000 | AA50: 200000 | AD50: 200000 | AE50: 800000 | AF50: 200000 | AG50: 100000 | AI50: 500000 | AJ50: =SUM(AK50:AN50) -> 5000000 | AK50: 2500000 | AL50: 2500000 | AP50: rap | BS50: 1 | BT50: 1 | BU50: 0 | BV50: 0 | BW50: 0 | BX50: 3 | BY50: 1 | BZ50: 1 | CA50: 7 | CB50: 3 | CC50: 1 | CD50: 1 | CE50: 5 | CF50: 12 | CG50: gut | CH50: gut | CL50: 12 | CO50: Sanierung Strasse / BehiG | CR50: 1.2 | CS50: 2022 | CT50: 1.3 | CU50: 2021 | CV50: 1 | DB50: 6000000 | DC50: 200000 | DD50: 800000 | DE50: 5000000 | DF50: 0 | DL50: 6000000 | DM50: 200000 | DN50: 800000 | DO50: 5000000 | DP50: 0 | EK50: 2 | EL50: 2 | EM50: j | EN50: GK: W | EO50: 8300
A51: K 13/47 | B51: 13.1 | G51: L | I51: SM | M51: 11082 | N51: Oberkirch, Länggass, Umgestaltung Knoten in Koordination Sanierung Strasse | O51: 3500000 | P51: 5 | Q51: 116 | R51: B | S51: 5 | T51: 44 | U51: 43 | V51: A | W51: in Planung | X51: 3500000 | Z51: 4100000 | AA51: 300000 | AD51: 300000 | AE51: 1800000 | AF51: 200000 | AG51: 100000 | AI51: 1500000 | AJ51: 2000000 | AK51: 2000000 | AP51: Col | BS51: 0 | BT51: 2 | BU51: 1 | BV51: 0 | BW51: -1 | BX51: 1 | BY51: 2 | BZ51: 1 | CA51: 6 | CB51: 3 | CC51: 2 | CD51: 1 | CE51: 6 | CF51: 12 | CG51: gut | CH51: gut | CN51: =SUM(CF51) -> 12 | CO51: VM | CR51: 0.8 / 2.3 | CS51: 2026 / 2013 | CT51: 0.9 / 2.0 | CU51: 2026 / 2016 | CV51: best. | DB51: 4100000 | DC51: 300000 | DD51: 1800000 | DE51: 2000000 | DF51: 0 | DL51: 4100000 | DM51: 300000 | DN51: 1800000 | DO51: 2000000 | DP51: 0 | EK51: N | EL51: N | EM51: n | EO51: 7500
A52: K 13 | B52: 13 | G52: L | K52: WW | L52: RZ | M52: x | N52: Dagmersellen, Anpassen bestehende Bushaltestellen in Koordination Bauvorhaben Dritter | O52: 500000 | P52: 2 | Q52: 39 | R52: A | S52: 2 | T52: 45 | U52: 44 | V52: A | W52: in Realisierung | X52: 500000 | Z52: 1700000 | AA52: 1200000 | AD52: 1200000 | AE52: 500000 | AF52: 500000 | AP52: Bau | BS52: 0 | BT52: 0 | BU52: 1 | BV52: 0 | BW52: 0 | BX52: 0 | BY52: 1 | BZ52: 2 | CA52: =SUM(BS52:BZ52) -> 4 | CB52: 0 | CC52: 1 | CD52: 1 | CE52: =SUM(CB52:CD52) -> 2 | CF52: =CA52+CE52 -> 6 | CG52: gut | CH52: gut | CM52: =SUM(CF52) -> 6 | CO52: öV-Bericht | DB52: 1700000 | DC52: 1200000 | DD52: 500000 | DE52: 0 | DF52: 0 | EA52: =SUM(Z52) -> 1700000 | EB52: =SUM(AA52) -> 1200000 | EC52: =SUM(AE52) -> 500000 | ED52: =SUM(AJ52) -> 0 | EE52: =SUM(AO52) -> 0
A53: K 14 | B53: 14 | G53: L | I53: SM | M53: 10906 | N53: Geuensee, Schulhaus – Sternenplatz (exkl.), Anpassen geometrisches Normalprofil in Koordination Sanierung Strasse | O53: 2900000 | P53: 5 | Q53: 117 | R53: B | S53: 5 | T53: 46 | U53: 45 | V53: A | W53: in Planung | X53: 2900000 | Z53: =SUM(AA53+AF53+AG53+AH53+AI53+AJ53+AO53) -> 8000000 | AA53: 300000 | AD53: 300000 | AE53: 2700000 | AF53: 200000 | AH53: 500000 | AI53: 2000000 | AJ53: =SUM(AK53:AN53) -> 5000000 | AK53: 3000000 | AL53: 2000000 | AP53: dim | BS53: 2 | BT53: 2 | BU53: 1 | BV53: 0 | BW53: 0 | BX53: 1 | BY53: 2 | BZ53: 1 | CA53: =SUM(BS53:BZ53) -> 9 | CB53: 3 | CC53: 1 | CD53: 2 | CE53: =SUM(CB53:CD53) -> 6 | CF53: =CA53+CE53 -> 15 | CG53: sehr gut | CH53: gut | CL53: =SUM(CF53) -> 15 | CO53: Zustand Strassen Bauvorhaben Dritter Gemeinde | CR53: 2.2 | CS53: 2013 | CV53: 2, U | DB53: 8000000 | DC53: 300000 | DD53: 2700000 | DE53: 5000000 | DF53: 0 | DL53: =SUM(Z53) -> 8000000 | DM53: =SUM(AA53) -> 300000 | DN53: =SUM(AE53) -> 2700000 | DO53: =SUM(AJ53) -> 5000000 | DP53: =SUM(AO53) -> 0 | EK53: 2
A54: K 14 | B54: 14 | G54: L | I54: SM | M54: 6571 | N54: Geuensee, Sternenplatz, Umbau Knoten (Bauvorhaben Dritter mit Kostenanteil) in Koordination mit Vorhaben Schulhaus – Sternenplatz (exkl.) | O54: 300000 | P54: 5 | Q54: 118 | R54: B | S54: 5 | T54: 47 | U54: 46 | V54: A | W54: in Planung | X54: 300000 | Z54: 500000 | AA54: 0 | AD54: 0 | AE54: 250000 | AI54: 250000 | AJ54: 250000 | AK54: 250000 | AP54: dim | BS54: 2 | BT54: 2 | BU54: 0 | BV54: 0 | BW54: 0 | BX54: 2 | BY54: 0 | BZ54: 2 | CA54: 8 | CB54: 3 | CC54: 1 | CD54: 2 | CE54: 6 | CF54: 14 | CG54: sehr gut | CH54: sehr gut | CL54: =SUM(CF54) -> 14 | CO54: Bauvorhaben Dritter Gemeinde, Zustand Strasse | CR54: 2.2 | CS54: 2013 | CT54: 2.6 | CU54: 2011 | CV54: 2, U | DB54: 500000 | DC54: 0 | DD54: 250000 | DE54: 250000 | DF54: 0 | DL54: 500000 | DM54: 0 | DN54: 250000 | DO54: 250000 | DP54: 0 | EK54: N | EL54: N | EM54: n | EO54: 18300
A55: K 14 | B55: 14 | G55: L | I55: SM | M55: x | N55: Triengen, Einmündung K 50 Rössliplatz – Einmündung K 52 (inkl.) – Coop/Post, Umgestaltung inkl. Neugestaltung Bushaltestellen | O55: 2500000 | P55: 5 | Q55: 119 | R55: B | S55: 5 | T55: 48 | U55: 47 | V55: A | W55: in Planung | X55: 2500000 | Z55: 2900000 | AA55: 100000 | AD55: 100000 | AE55: =SUM(AF55:AI55) -> 800000 | AF55: 100000 | AG55: 100000 | AI55: 600000 | AJ55: 2000000 | AK55: 1000000 | AL55: 1000000 | BS55: 2 | BT55: 2 | BU55: 0 | BV55: 0 | BW55: 0 | BX55: 2 | BY55: 1 | BZ55: 1 | CA55: 8 | CB55: 1 | CC55: 1 | CD55: 1 | CE55: 3 | CF55: 11 | CG55: sehr gut | CH55: gut | CN55: =SUM(CF55) -> 11 | CR55: 0.5 | CS55: 2030 | CT55: 0.9 | CU55: 2025 | CV55: U 2 | DB55: 2900000 | DC55: 100000 | DD55: 800000 | DE55: 2000000 | DF55: 0 | DL55: 2900000 | DM55: 100000 | DN55: 800000 | DO55: 2000000 | DP55: 0 | EK55: N | EL55: N | EM55: j | EO55: 5 - 10'000
A56: K 15 | B56: 15 | C56: A; M 18.2a4 | D56: B; ÖV-11.1l | E56: A; ÖV-9.1f | F56: A; ÖV-7.1 | G56: A | H56: LP | M56: x | N56: Emmen, Autobahnanschluss Emmen Nord (exkl.) – Kreisel Bösfeld, Radverkehrsanlage und Massnahmen für den öffentlichen Verkehr in Abstimmung mit Umbau Autobahnanschluss Emmen-Nord (z.B. 3/4-Anschluss, Federführung Astra) | O56: 6500000 | P56: 3 | Q56: 211 | R56: C | S56: 3 | T56: 49 | U56: 48 | V56: A | W56: in Planung | X56: 6500000 | Z56: 6500000 | AA56: 200000 | AD56: 200000 | AE56: =SUM(AF56:AI56) -> 2000000 | AF56: 200000 | AG56: 200000 | AH56: 100000 | AI56: 1500000 | AJ56: 4300000 | AK56: 2000000 | AL56: 2300000 | AP56: Bu | BS56: 1 | BT56: 3 | BU56: 2 | BV56: 0 | BW56: 0 | BX56: 0 | BY56: 3 | BZ56: 0 | CA56: 9 | CB56: 1 | CC56: 3 | CD56: 3 | CE56: 7 | CF56: 16 | CG56: sehr gut | CH56: gut | CM56: =SUM(CF56) -> 16 | CO56: Umbau Anschluss Emmen-Nord Aggloprogramm 2G Liste B | CR56: 0.3 | CS56: nicht berechenbar | CV56: 1 | CW56: =SUM(Z56) -> 6500000 | CX56: =SUM(AA56) -> 200000 | CY56: =SUM(AE56) -> 2000000 | CZ56: =SUM(AJ56) -> 4300000 | DA56: =SUM(AO56) -> 0 | DG56: =SUM(Z56) -> 6500000 | DH56: =SUM(AA56) -> 200000 | DI56: =SUM(AE56) -> 2000000 | DJ56: =SUM(AJ56) -> 4300000 | DK56: =SUM(AO56) -> 0 | EK56: 2
A57: K 15 | B57: 15 | D57: B; LV-1.1.f | E57: B; LV-1.1f | F57: A; FVV-2.2 | G57: A | H57: LP | M57: 11332 | N57: Rothenburg/Rain, Wegscheiden – Sandblatten, Erstellen Radverkehrsanlage in Koordination Sanierung Strasse | O57: 3200000 | P57: 3 | Q57: 120 | R57: B | S57: 3 | T57: 50 | U57: 49 | V57: A | W57: in Planung | X57: 3200000 | Z57: 11500000 | AA57: 400000 | AD57: 400000 | AE57: =SUM(AF57:AI57) -> 1300000 | AF57: 200000 | AG57: 100000 | AI57: 1000000 | AJ57: 9800000 | AK57: 5000000 | AL57: 4800000 | AP57: dim | BS57: 1 | BT57: 1 | BU57: 0 | BV57: 0 | BW57: 0 | BX57: 1 | BY57: 3 | BZ57: 1 | CA57: 7 | CB57: 2 | CC57: 2 | CD57: 1 | CE57: 5 | CF57: 12 | CG57: gut | CH57: gut | CM57: 12 | CO57: Aggloprogramm 2G Liste B | CR57: 1.4 | CS57: 2021 | CT57: 1.1 | CU57: 2025 | CV57: 3 | CW57: 11500000 | CX57: 400000 | CY57: 1300000 | CZ57: 9800000 | DA57: 0 | DG57: 11500000 | DH57: 400000 | DI57: 1300000 | DJ57: 9800000 | DK57: 0 | EK57: 2 | EL57: 2
A58: K 15/58 | B58: 15.1 | G58: L | I58: SM | M58: 3139.2 | N58: Beromünster, Ost- und Westumfahrung (exkl. Rückbau bestehende Kantonstrassen) | O58: 60000000 | P58: 5 | Q58: 43 | R58: A | S58: 5 | T58: 51 | U58: 50 | V58: A | W58: im Bewilligungsverfahren | X58: 60000000 | Z58: 68000000 | AA58: 5000000 | AD58: 5000000 | AE58: 27500000 | AF58: 500000 | AG58: 2000000 | AH58: 10000000 | AI58: 15000000 | AJ58: =SUM(AK58:AN58) -> 35500000 | AK58: 15000000 | AL58: 15000000 | AM58: 5500000 | AP58: Su | BR58: Verschiebung Baubeginn aufgrund Ablehnung Ortsplanrevision im 2020 | BS58: 3 | BT58: 3 | BU58: 2 | BV58: 1 | BW58: -3 | BX58: 2 | BY58: 2 | BZ58: 3 | CA58: =SUM(BS58:BZ58) -> 13 | CB58: 0 | CC58: 2 | CD58: 1 | CE58: =SUM(CB58:CD58) -> 3 | CF58: =CA58+CE58 -> 16 | CG58: gut | CH58: genügend | CJ58: =SUM(CF58) -> 16 | CM58: 16 | CO58: Denkmalschutz Siedlungsentwicklung | CS58: neue Str. | CU58: neue Str. | DB58: =SUM(Z58) -> 68000000 | DC58: =SUM(AA58) -> 5000000 | DD58: =SUM(AE58) -> 27500000 | DE58: =SUM(AJ58) -> 35500000 | DF58: =SUM(AO58) -> 0 | DL58: =SUM(Z58) -> 68000000 | DM58: =SUM(AA58) -> 5000000 | DN58: =SUM(AE58) -> 27500000 | DO58: =SUM(AJ58) -> 35500000 | DP58: =SUM(AO58) -> 0 | EK58: N | EL58: N | EM58: j | EN58: GK: W | EO58: 5200
A59: K 15 a | B59: 15.2 | E59: A; ÖV-9.1g | G59: A | H59: LP | M59: 11019 | N59: Emmen/Rothenburg, Abschnitt Lohren (exkl.) – Einmündung Hasenmoosstrasse, Massnahmen für den öffentlichen Verkehr und Verkehrsmanagement in Koordination Sanierung Strasse | O59: 4400000 | P59: 3 | Q59: 44 | R59: A | S59: 3 | T59: 52 | U59: 51 | V59: A | W59: im Bewilligungsverfahren | X59: 4400000 | Z59: 5000000 | AA59: 500000 | AD59: 500000 | AE59: 3500000 | AF59: 300000 | AG59: 200000 | AH59: 1000000 | AI59: 2000000 | AJ59: =SUM(AK59:AN59) -> 1000000 | AK59: 1000000 | AP59: Su | BS59: 1 | BT59: 0 | BU59: 3 | BV59: 0 | BW59: 0 | BX59: 0 | BY59: 3 | BZ59: 0 | CA59: =SUM(BS59:BZ59) -> 7 | CB59: 2 | CC59: 2 | CD59: 3 | CE59: =SUM(CB59:CD59) -> 7 | CF59: =CA59+CE59 -> 14 | CG59: gut | CH59: gut | CM59: 14 | CO59: Aggloprogramm Siedlungsentwicklung | CR59: 0.9 | CS59: nicht berechenbar | CU59: 2020 | CV59: best. | CW59: =SUM(Z59) -> 5000000 | CX59: =SUM(AA59) -> 500000 | CY59: =SUM(AE59) -> 3500000 | CZ59: =SUM(AJ59) -> 1000000 | DA59: =SUM(AO59) -> 0 | DG59: =SUM(Z59) -> 5000000 | DH59: =SUM(AA59) -> 500000 | DI59: =SUM(AE59) -> 3500000 | DJ59: =SUM(AJ59) -> 1000000 | DK59: =SUM(AO59) -> 0 | EK59: N | EL59: N
A60: K 15 a | B60: 15.2 | E60: B; ÖV-9.1l | F60: A; ÖV-7.2 | G60: A | H60: LP | M60: x | N60: Rothenburg, Einmündung Butzibachstrasse – Autobahnanschluss (exkl.), Massnahmen für den öffentlichen Verkehr und Verkehrsmanagement | O60: 3500000 | P60: 3 | Q60: 122 | R60: B | S60: 3 | T60: 53 | U60: 52 | V60: A | W60: im Bewilligungsverfahren | X60: 3500000 | Z60: 6900000 | AA60: 100000 | AD60: 100000 | AE60: 1300000 | AF60: 200000 | AG60: 100000 | AI60: 1000000 | AJ60: 5500000 | AK60: 3000000 | AL60: 2500000 | AP60: Su | BR60: Evt. auch Topf B möglich mit Baubeginn 2027 | BS60: 0 | BT60: 0 | BU60: 3 | BV60: 0 | BW60: 0 | BX60: 1 | BY60: 3 | BZ60: 1 | CA60: =SUM(BS60:BZ60) -> 8 | CB60: 0 | CC60: 2 | CD60: 3 | CE60: =SUM(CB60:CD60) -> 5 | CF60: =CA60+CE60 -> 13 | CG60: gut | CH60: gut | CM60: 13 | CO60: Aggloprogramm Entwicklungsschwerpunkt | CR60: 0.1 | CS60: nicht berechenbar | CW60: 6900000 | CX60: 100000 | CY60: 1300000 | CZ60: 5500000 | DA60: 0 | DG60: 6900000 | DH60: 100000 | DI60: 1300000 | DJ60: 5500000 | DK60: 0 | EK60: 2
A61: K 16 | B61: 16 | G61: L | J61: IS | M61: x | N61: Eschenbach, Umfahrung Eschenbach (exkl. Rückbau umzuklassierende Kantonsstrassen), Planung | O61: 2500000 | P61: 3 | Q61: 125 | R61: B | S61: 3 | T61: 54 | U61: 53 | V61: A | W61: in Planung | X61: 2500000 | Z61: 4000000 | AA61: 2000000 | AD61: 2000000 | AE61: 2000000 | AF61: 500000 | AG61: 500000 | AH61: 500000 | AI61: 500000 | AP61: Bu | BR61: Weiterführung Planung gemäss Ergebnis ZMB | BS61: 1 | BT61: 1 | BU61: 1 | BV61: 3 | BW61: -3 | BX61: -3 | BY61: 3 | BZ61: 0 | CA61: 3 | CB61: 0 | CC61: 2 | CD61: 2 | CE61: 4 | CF61: 7 | CM61: 7 | CO61: Kantonaler Richtplan nur Planug | CR61: 3 | CS61: 2008 | DB61: =SUM(Z61) -> 4000000 | DC61: =SUM(AA61) -> 2000000 | DD61: =SUM(AE61) -> 2000000 | DE61: =SUM(AJ61) -> 0 | DF61: =SUM(AO61) -> 0 | DQ61: =SUM(Z61) -> 4000000 | DR61: =SUM(AA61) -> 2000000 | DS61: =SUM(AE61) -> 2000000 | DT61: =SUM(AJ61) -> 0 | DU61: =SUM(AO61) -> 0 | EK61: 2
A62: K 16 | B62: 16 | G62: L | J62: IS | M62: x | N62: Eschenbach, Ortsdurchfahrt (verbleibende Kantonsstrassen), Optimierung und Anpassung Gesamtverkehrssystem an Umfahrung Eschenbach mit Verbesserung Verkehrssicherheit und Massnahmen zugunsten Langsamverkehr und öffentlicher Verkehr, Planung | O62: 500000 | P62: 3 | Q62: 214 | R62: C | S62: 3 | T62: 55 | U62: 54 | V62: A | W62: in Planung mit ZMB | X62: 500000 | Z62: 300000 | AA62: 0 | AD62: 0 | AE62: 300000 | AH62: 150000 | AI62: 150000 | AP62: Bu | BR62: Ergebnisse ZMB abwarten | BS62: 1 | BT62: 2 | BU62: 1 | BV62: 0 | BW62: 0 | BX62: 2 | BY62: 2 | BZ62: 2 | CA62: 10 | CB62: 2 | CC62: 1 | CD62: 2 | CE62: 5 | CF62: 15 | CN62: =SUM(CF62) -> 15 | CO62: Umfahrung Eschenbach | DB62: 300000 | DC62: 0 | DD62: 300000 | DE62: 0 | DF62: 0 | DQ62: =SUM(Z62) -> 300000 | DR62: =SUM(AA62) -> 0 | DS62: =SUM(AE62) -> 300000 | DT62: =SUM(AJ62) -> 0 | DU62: =SUM(AO62) -> 0
A63: K 16 | B63: 16 | F63: B; GV-3.5 | G63: L | J63: IS | M63: x | N63: Inwil/Eschenbach/Ballwil/Hochdorf, Verkehrsmanagement zur Förderung öV | O63: 200000 | P63: 3 | Q63: 47 | R63: A | S63: 3 | T63: 56 | U63: 55 | V63: A | W63: in Planung | X63: 200000 | Z63: 5000000 | AA63: 300000 | AD63: 300000 | AE63: 1400000 | AF63: 200000 | AG63: 200000 | AI63: 1000000 | AJ63: =SUM(AK63:AN63) -> 3300000 | AK63: 2000000 | AL63: 1300000 | AP63: MUD | BR63: Evt. auch Topf C möglich mit Baubeginn 2031 | BS63: 3 | BT63: 0 | BU63: 3 | BV63: -2 | BW63: 0 | BX63: 0 | BY63: 3 | BZ63: 1 | CA63: 8 | CB63: 0 | CC63: 2 | CD63: 3 | CE63: 5 | CF63: 13 | CG63: gut | CH63: gut bezüglich Gesamtkosten | CM63: =SUM(CF63) -> 13 | CO63: Kantonaler Richtplan Ergebnis GVK Seetal | DB63: 5000000 | DC63: 300000 | DD63: 1400000 | DE63: 3300000 | DF63: 0 | DQ63: 5000000 | DR63: 300000 | DS63: 1400000 | DT63: 3300000 | DU63: 0 | EK63: 2
A64: K 16 | B64: 16 | G64: L | J64: IS | M64: x | N64: Ballwil, Ortsdurchfahrt, Optimierung Gesamtverkehrssystem mit Verbesserung Verkehrssicherheit und Massnahmen zugunsten Langsamverkehr und öffentlicher Verkehr (z.B. Querungen Langsamverkehr) mit Optimierung Lichtraumprofil Seetalbahn in Koordination mit Projekt Gemeinde Verlegung Gemeindestrassen, Planung | O64: 500000 | P64: 3 | Q64: 126 | R64: B | S64: 3 | T64: 57 | U64: 56 | V64: A | W64: in Planung | X64: 500000 | Z64: 2500000 | AA64: 500000 | AD64: 500000 | AE64: 2000000 | AF64: 500000 | AG64: 500000 | AH64: 500000 | AI64: 500000 | AP64: Su | BR64: Weiterführung Planung gemäss Ergebnis ZMB | BS64: 2 | BT64: 3 | BX64: 2 | BY64: 2 | BZ64: 2 | CA64: 11 | CB64: 1 | CC64: 1 | CD64: 2 | CE64: 4 | CF64: 15 | CN64: =SUM(CF64) -> 15 | CO64: Ergebnis GVK Seetal | CR64: 0.6 | CS64: 2029 | DB64: 2500000 | DC64: 500000 | DD64: 2000000 | DE64: 0 | DF64: 0 | DQ64: 2500000 | DR64: 500000 | DS64: 2000000 | DT64: 0 | DU64: 0 | EK64: 2
A65: K 16 | B65: 16 | G65: L | J65: IS | M65: 10558 | N65: Hochdorf/Hohenrain/Hitzkirch, Baldegg (exkl.) – Gelfingen Dorf (exkl.), Optimierung Normalprofil, Erstellen Radverkehrsanlage in Koordination Sanierung Strasse | O65: 14000000 | P65: 3 | Q65: 46 | R65: A | S65: 3 | T65: 58 | U65: 57 | V65: A | W65: in Realisierung | X65: 14000000 | Z65: 16000000 | AA65: 1500000 | AD65: 1500000 | AE65: 14500000 | AF65: 3000000 | AG65: 6000000 | AH65: 5500000 | AP65: Bau | BS65: 2 | BT65: 2 | BU65: 0 | BV65: 0 | BW65: 0 | BX65: 3 | BY65: 1 | BZ65: 1 | CA65: =SUM(BS65:BZ65) -> 9 | CB65: 1 | CC65: 1 | CD65: 2 | CE65: =SUM(CB65:CD65) -> 4 | CF65: =CA65+CE65 -> 13 | CG65: gut | CH65: gut | CJ65: =SUM(CF65) -> 13 | CO65: in Realisierung Bewilligungsverfahren | CR65: 0.1 | CS65: 2036 | CT65: 0.5 | CU65: 2030 | CV65: 2 | DB65: 16000000 | DC65: 1500000 | DD65: 14500000 | DE65: 0 | DF65: 0 | DQ65: 16000000 | DR65: 1500000 | DS65: 14500000 | DT65: 0 | DU65: 0 | EK65: 3 | EL65: 3 | EM65: n | EO65: 7000
A66: K 16 | B66: 16 | G66: L | J66: IS | M66: x | N66: Hitzkirch, Hitzkirch Dorf (exkl.) – Altwis Dorf (exkl.), Rad- und Gehweg in Koordination Sanierung Strasse | O66: 2850000 | P66: 3 | Q66: 127 | R66: B | S66: 3 | T66: 59 | U66: 58 | V66: A | W66: keine Aktivität | X66: 2850000 | Z66: 3400000 | AA66: 0 | AD66: 0 | AE66: 900000 | AF66: 150000 | AG66: 200000 | AH66: 50000 | AI66: 500000 | AJ66: =SUM(AK66:AN66) -> 2500000 | AK66: 2000000 | AL66: 500000 | BR66: Antrag KSI für Priorisierung in Topf A | BS66: 1 | BT66: 1 | BU66: 0 | BV66: 0 | BW66: 0 | BX66: 2 | BY66: 2 | BZ66: 1 | CA66: 7 | CB66: 3 | CC66: 1 | CD66: 1 | CE66: 5 | CF66: 12 | CG66: gut | CH66: gut | CL66: =SUM(CF66) -> 12 | CO66: Sanierung Strasse Ergebnis GVK | CR66: 0.0 / 2.2 | CS66: 2040 / 2014 | CV66: 2, 3 | DB66: 3400000 | DC66: 0 | DD66: 900000 | DE66: 2500000 | DF66: 0 | DQ66: 3400000 | DR66: 0 | DS66: 900000 | DT66: 2500000 | DU66: 0 | EK66: 2
A67: K 16 | B67: 16 | G67: L | J67: IS | M67: x | N67: Hitzkirch, Ortsdurchfahrt Altwis, Optimierung Gesamtverkehrssystem mit Verbesserung Verkehrssicherheit und Massnahmen zugunsten Langsamverkehr und öffentlicher Verkehr in Koordination mit Sanierung Strasse | O67: 2700000 | P67: 3 | Q67: 128 | R67: B | S67: 3 | T67: 60 | U67: 59 | V67: A | W67: keine Aktivität | X67: 2700000 | Z67: 3300000 | AA67: 0 | AD67: 0 | AE67: 800000 | AF67: 100000 | AG67: 150000 | AH67: 50000 | AI67: 500000 | AJ67: 2500000 | AK67: 1000000 | AL67: 1500000 | BR67: Antrag KSI für Priorisierung in Topf A | BS67: 1 | BT67: 1 | BU67: 0 | BV67: 0 | BW67: 0 | BX67: 2 | BY67: 2 | BZ67: 2 | CA67: 8 | CB67: 3 | CC67: 1 | CD67: 1 | CE67: 5 | CF67: 13 | CG67: gut | CH67: gut | CL67: =SUM(CF67) -> 13 | CO67: Sanierung Strasse Ergebnis GVK | CR67: 0.2 | CS67: 2034 | CV67: 3 | DB67: 3300000 | DC67: 0 | DD67: 800000 | DE67: 2500000 | DF67: 0 | DQ67: 3300000 | DR67: 0 | DS67: 800000 | DT67: 2500000 | DU67: 0 | EK67: 2
A68: K 16/56 | B68: 16.1 | G68: L | J68: IS | M68: x | N68: Hochdorf/Römerswil/Hohenrain, Umfahrung Hochdorf (exkl. Rückbau umzuklassierende Kantonsstrassen), Planung | O68: 2500000 | P68: 3 | Q68: 132 | R68: B | S68: 3 | T68: 61 | U68: 60 | V68: A | W68: in Planung | X68: 2500000 | Z68: 4000000 | AA68: 2000000 | AD68: 2000000 | AE68: 2000000 | AF68: 500000 | AG68: 500000 | AH68: 500000 | AI68: 500000 | AP68: Su | BR68: Weiterführung Planung gemäss Ergebnis ZMB | BS68: 1 | BT68: 1 | BU68: 1 | BV68: 3 | BW68: -3 | BX68: -3 | BY68: 3 | BZ68: 0 | CA68: 3 | CB68: 0 | CC68: 2 | CD68: 2 | CE68: 4 | CF68: 7 | CM68: =SUM(CF68) -> 7 | CO68: Kantonaler Richtplan Ergebnis GVK Seetal | CR68: 2 | CS68: 2015 | DB68: 4000000 | DC68: 2000000 | DD68: 2000000 | DE68: 0 | DF68: 0 | DQ68: 4000000 | DR68: 2000000 | DS68: 2000000 | DT68: 0 | DU68: 0 | EK68: 2
A69: K 16/56/60 | B69: 16.1 | G69: L | J69: IS | M69: x | N69: Hochdorf, Ortsdurchfahrt (verbleibende Kantonsstrassen), Optimierung Gesamtverkehrssystem an Umfahrung Hochdorf mit Verbesserung Verkehrssicherheit und Massnahmen zugunsten Langsamverkehr und öffentlicher Verkehr, Planung | O69: 500000 | P69: 3 | Q69: 219 | R69: C | S69: 3 | T69: 62 | U69: 61 | V69: A | W69: in Planung mit ZMB | X69: 500000 | Z69: 300000 | AA69: 0 | AD69: 0 | AE69: 300000 | AH69: 150000 | AI69: 150000 | AP69: Su | BS69: 1 | BT69: 3 | BU69: 1 | BV69: 0 | BW69: 0 | BX69: 2 | BY69: 1 | BZ69: 2 | CA69: 10 | CB69: 3 | CC69: 2 | CD69: 2 | CE69: 7 | CF69: 17 | CN69: =SUM(CF69) -> 17 | CO69: Kantonaler Richtplan Zustand Strasse Ergebnis GVK Seetal | CR69: 2.2 | CS69: 2014 | CV69: 1 | DB69: 300000 | DC69: 0 | DD69: 300000 | DE69: 0 | DF69: 0 | DQ69: 300000 | DR69: 0 | DS69: 300000 | DT69: 0 | DU69: 0 | EK69: 2
A70: K 16 a | B70: 16.2 | G70: L | J70: IS | M70: 10774 | N70: Hitzkirch, Einmündung Bahnhofstrasse, Optimierung Knoten in Koordination Sanierung Strassen | O70: 2900000 | P70: 3 | Q70: 51 | R70: A | S70: 3 | T70: 63 | U70: 62 | V70: A | W70: in Realisierung | X70: 2900000 | Z70: 2900000 | AA70: 2400000 | AD70: 2400000 | AE70: 500000 | AF70: 500000 | AP70: Bau | BS70: 2 | BT70: 0 | BU70: 0 | BV70: 0 | BW70: -1 | BX70: 0 | BY70: 1 | BZ70: 0 | CA70: 2 | CB70: 2 | CC70: 0 | CD70: 0 | CE70: 2 | CF70: 4 | CG70: genügend | CH70: genügend | CJ70: =SUM(CF70) -> 4 | CO70: Bewilligungsverfahren | CR70: 1.6 | CS70: 2019 | CT70: 1.1 | CU70: 2024 | DB70: 2900000 | DC70: 2400000 | DD70: 500000 | DE70: 0 | DF70: 0 | DQ70: 2900000 | DR70: 2400000 | DS70: 500000 | DT70: 0 | DU70: 0 | EK70: N | EL70: N | EM70: j | EN70: GK: W
A71: K 17 | B71: 17 | E71: A; ÖV-9.2 | G71: A | H71: LP | M71: x | N71: Ebikon, Optimierung Gesamtverkehrssystem für RBus (z.B. Bevorzugungen, Haltestellen) | O71: 1500000 | P71: 1 | Q71: 56 | R71: A | S71: 1 | T71: 64 | U71: 63 | V71: A | W71: teilweise realisiert teilweise in Planung | X71: 1500000 | Z71: 1800000 | AA71: 500000 | AD71: 500000 | AE71: 1300000 | AF71: 100000 | AG71: 600000 | AH71: 600000 | BR71: Massnahmenpaket gemäss Agglomerationsprogramm 3 G | BS71: 0 | BT71: 0 | BU71: 2 | BV71: 0 | BW71: 0 | BY71: 3 | BZ71: 0 | CA71: 5 | CB71: 0 | CC71: 2 | CD71: 3 | CE71: 5 | CF71: 10 | CG71: gut | CH71: gut | CM71: =SUM(CF71) -> 10 | CO71: öV-Bericht, Rbus Aggloprogramm, BehiG | CW71: =SUM(Z71) -> 1800000 | CX71: =SUM(AA71) -> 500000 | CY71: =SUM(AE71) -> 1300000 | CZ71: =SUM(AJ71) -> 0 | DA71: =SUM(AO71) -> 0 | DG71: =SUM(Z71) -> 1800000 | DH71: =SUM(AA71) -> 500000 | DI71: =SUM(AE71) -> 1300000 | DJ71: =SUM(AJ71) -> 0 | DK71: =SUM(AO71) -> 0 | EK71: 2
A72: K 17 | B72: 17 | G72: A | H72: LP | M72: x | N72: Dierikon, Bereich Einmündung Rigistrasse, Bushaltestellen | O72: 600000 | P72: 1 | Q72: 57 | R72: A | S72: 1 | T72: 65 | U72: 64 | V72: A | W72: keine Aktivität | X72: 600000 | Z72: 600000 | AA72: 0 | AD72: 0 | AE72: 600000 | AF72: 50000 | AH72: 550000 | BR72: noch kein Bedarf ausgewiesen | BS72: 0 | BT72: 0 | BU72: 1 | BV72: 0 | BW72: 0 | BX72: 1 | BY72: 3 | BZ72: 0 | CA72: =SUM(BS72:BZ72) -> 5 | CB72: 3 | CC72: 0 | CD72: 2 | CE72: =SUM(CB72:CD72) -> 5 | CF72: =CA72+CE72 -> 10 | CG72: gut | CH72: gut | CL72: =SUM(CF72) -> 10 | CO72: in Koordination mit Bauvorhaben Dritter, Zustand Strasse | CR72: 2.6 | CS72: 2011 | CT72: 2.5 | CU72: 2010 | CV72: best. | CW72: 600000 | CX72: 0 | CY72: 600000 | CZ72: 0 | DA72: 0 | DG72: 600000 | DH72: 0 | DI72: 600000 | DJ72: 0 | DK72: 0 | EK72: N | EL72: N | EM72: n | EO72: 7500
A73: K 17 b | B73: 17.3 | C73: C; M 7.3.b | D73: B; LV-1.1k | E73: B; LV-1.1c | F73: A; FVV-2.1 | G73: A | H73: LP | M73: 10588 | N73: Dierikon/Udligenswil, Einmündung Rigistrasse (exkl.) – Einmündung K 30, Götzentalstrasse, Erstellen Radverkehrsanlage in Koordination Sanierung Strasse | O73: 11000000 | P73: 1 | Q73: 136 | R73: B | S73: 1 | T73: 66 | U73: 65 | V73: A | W73: in Planung | X73: 11000000 | Z73: 14000000 | AA73: 200000 | AD73: 200000 | AE73: 4800000 | AF73: 200000 | AG73: 100000 | AH73: 500000 | AI73: 4000000 | AJ73: =SUM(AK73:AN73) -> 9000000 | AK73: 5500000 | AL73: 3500000 | AP73: End | BS73: 1 | BT73: 1 | BU73: 0 | BV73: 0 | BW73: 0 | BX73: 3 | BY73: 1 | BZ73: 0 | CA73: 6 | CB73: 3 | CC73: 2 | CD73: 1 | CE73: 6 | CF73: 12 | CG73: gut | CH73: gut | CL73: =SUM(CF73) -> 12 | CO73: Zustand Strasse Aggloprogramm 2G Liste B | CR73: 2.3 | CS73: nicht berechenbar | CT73: 2.1 | CU73: 2013 | CV73: 3 | CW73: 14000000 | CX73: 200000 | CY73: 4800000 | CZ73: 9000000 | DA73: 0 | DG73: 14000000 | DH73: 200000 | DI73: 4800000 | DJ73: 9000000 | DK73: 0 | EK73: 3 | EL73: 3 | EM73: n | EO73: 4700
A74: K 17 c | B74: 65 | D74: C; LV-1.1i | E74: B; LV-1.1e | F74: A; FVV-3.1 | G74: A | H74: LP | M74: x | N74: Buchrain, Buristutz, Erstellen Radverkehrsanlage in Koordination Sanierung Strasse | O74: 4700000 | P74: 1 | Q74: 137 | R74: B | S74: 1 | T74: 67 | U74: 66 | V74: A | W74: in Planung | X74: 4700000 | Z74: 4900000 | AA74: 100000 | AD74: 100000 | AE74: 1300000 | AF74: 200000 | AG74: 100000 | AI74: 1000000 | AJ74: 3500000 | AK74: 2000000 | AL74: 1500000 | BS74: 1 | BT74: 3 | BU74: 0 | BV74: 0 | BW74: 0 | BX74: 0 | BY74: 2 | BZ74: 0 | CA74: 6 | CB74: 1 | CC74: 2 | CD74: 1 | CE74: 4 | CF74: 10 | CG74: genügend | CH74: genügend | CM74: =SUM(CF74) -> 10 | CO74: Aggloprogramm 2G Liste C | CR74: 1 | CS74: nicht berechenbar | CT74: 0.9 | CU74: 2023 | CV74: U | CW74: 4900000 | CX74: 100000 | CY74: 1300000 | CZ74: 3500000 | DA74: 0 | DG74: 4900000 | DH74: 100000 | DI74: 1300000 | DJ74: 3500000 | DK74: 0 | EK74: L | EL74: L | EO74: k.A.
A75: K 18 | B75: 18 | G75: L | I75: SM | M75: 10494.1 | N75: Beromünster, Tann – Locheten, Erstellen Radverkehrsanlage und Ausbau Strasse in Koordination Sanierung Strasse | O75: 10000000 | P75: 5 | Q75: 59 | R75: A | S75: 5 | T75: 68 | U75: 67 | V75: A | W75: im Bewilligungsverfahren | X75: 10000000 | Z75: 14500000 | AA75: 800000 | AD75: 800000 | AE75: 7700000 | AG75: 700000 | AH75: 2000000 | AI75: 5000000 | AJ75: =SUM(AK75:AN75) -> 6000000 | AK75: 6000000 | AP75: rap | BS75: 3 | BT75: 2 | BU75: 0 | BV75: 0 | BW75: 0 | BX75: 2 | BY75: 1 | BZ75: 0 | CA75: 8 | CB75: 2 | CC75: 1 | CD75: 1 | CE75: 4 | CF75: 12 | CG75: gut | CH75: gut | CJ75: =SUM(CF75) -> 12 | CO75: Bewilligungsverfahren Zustand Strasse | CR75: 2.1 | CS75: 2015 | CT75: 1.7 | CU75: 2018 | CV75: 3 | DB75: =SUM(Z75) -> 14500000 | DC75: =SUM(AA75) -> 800000 | DD75: =SUM(AE75) -> 7700000 | DE75: =SUM(AJ75) -> 6000000 | DF75: =SUM(AO75) -> 0 | DL75: =SUM(Z75) -> 14500000 | DM75: =SUM(AA75) -> 800000 | DN75: =SUM(AE75) -> 7700000 | DO75: =SUM(AJ75) -> 6000000 | DP75: =SUM(AO75) -> 0 | EK75: 3 | EL75: 2 | EM75: n | EO75: k.A.
A76: K 18 | G76: L | K76: WW | N76: Ettiswil, Zuswil – Kottwil Käserei, Sanierung und Ausbau Rad- und Gehweg | O76: 2500000 | P76: 2 | Q76: 60 | R76: A | S76: 2 | T76: 69 | U76: 68 | V76: A | W76: im Bewilligungsverfahren | X76: 2500000 | Z76: 8000000 | AA76: 500000 | AD76: 500000 | AE76: 7500000 | AG76: 500000 | AH76: 2500000 | AI76: 4500000 | AP76: rap | BS76: 1 | BT76: 3 | BU76: 0 | BV76: 0 | BW76: 0 | BX76: 1 | BY76: 2 | BZ76: 1 | CA76: 8 | CB76: 3 | CC76: 1 | CD76: 1 | CE76: 5 | CF76: 13 | CG76: gut | CH76: gut | CN76: =SUM(CF76) -> 13 | DB76: 8000000 | DC76: 500000 | DD76: 7500000 | DE76: 0 | DF76: 0 | EA76: =SUM(Z76) -> 8000000 | EB76: =SUM(AA76) -> 500000 | EC76: =SUM(AE76) -> 7500000 | ED76: =SUM(AJ76) -> 0 | EE76: =SUM(AO76) -> 0
A77: K 18 | B77: 18 | G77: L | K77: WW | M77: x | N77: Willisau/Zell, Gettnau Dorf (exkl.) – Briseck, 1. Etappe Briseck; Einm. Feld – Abzw. Gass, Radverkehrsanlage in Koordination Sanierung Strasse abgestimmt auf Alternativroute entlang Luthern | Q77: 138 | R77: B | S77: 2 | T77: 70 | U77: 69 | V77: A | W77: in Planung | Z77: =SUM(AA77+AF77+AG77+AH77+AI77+AJ77+AO77) -> 2000000 | AA77: =SUM(AB77:AD77) -> 200000 | AD77: 200000 | AE77: 1800000 | AF77: 900000 | AG77: 900000 | AP77: GED | BS77: 1 | BT77: 2 | BU77: 0 | BV77: 0 | BW77: 0 | BX77: 3 | BY77: 1 | BZ77: 0 | CA77: =SUM(BS77:BZ77) -> 7 | CB77: 1 | CC77: 1 | CD77: 1 | CE77: =SUM(CB77:CD77) -> 3 | CF77: =CA77+CE77 -> 10 | CG77: gut | CH77: gut | CK77: =SUM(CF77) -> 10 | CO77: Sanierung Kunstbaute | DB77: 2000000 | DC77: 200000 | DD77: 1800000 | DE77: 0 | DF77: 0 | EA77: 2000000 | EB77: 200000 | EC77: 1800000 | ED77: 0 | EE77: 0
A78: K 18 | B78: 18 | G78: L | K78: WW | M78: x | N78: Willisau/Zell, Gettnau Dorf (exkl.) – Briseck, 2. Etappe; Gettnau Dorf (exkl.) – Einm. Feld, Radverkehrsanlage in Koordination Sanierung Strasse | O78: 4000000 | P78: 2 | Q78: 138 | R78: B | S78: 2 | T78: 71 | U78: 70 | V78: A | W78: in Planung | X78: 4000000 | Z78: =SUM(AA78+AF78+AG78+AH78+AI78+AJ78+AO78) -> 3800000 | AA78: 300000 | AD78: 300000 | AE78: 3500000 | AG78: 500000 | AH78: 1000000 | AI78: 2000000 | AP78: GED | BS78: 1 | BT78: 2 | BU78: 0 | BV78: 0 | BW78: 0 | BX78: 3 | BY78: 1 | BZ78: 0 | CA78: =SUM(BS78:BZ78) -> 7 | CB78: 1 | CC78: 1 | CD78: 1 | CE78: =SUM(CB78:CD78) -> 3 | CF78: =CA78+CE78 -> 10 | CG78: genügend | CH78: genügend | CK78: 10 | CO78: Sanierung Kunstbaute | CR78: 0.9 | CS78: 2025 | CV78: 2 | DB78: 3800000 | DC78: 300000 | DD78: 3500000 | DE78: 0 | DF78: 0 | EA78: 3800000 | EB78: 300000 | EC78: 3500000 | ED78: 0 | EE78: 0 | EK78: 3
A79: K 18 | B79: 18 | G79: L | K79: WW | M79: x | N79: Zell, Briseck – Dorf (inkl.), Anpassen Kantonsstrasse an Führung Radverkehr über Alternativroute entlang Eisenbahntrassee (exkl. Alternativroute) in Koordination Sanierung Strasse | O79: 300000 | P79: 2 | Q79: 63 | R79: A | S79: 2 | T79: 72 | U79: 71 | V79: A | W79: in Planung | X79: 300000 | Z79: 300000 | AA79: 50000 | AD79: 50000 | AE79: 250000 | AF79: 50000 | AG79: 200000 | AP79: GED | BS79: 1 | BT79: 2 | BU79: 0 | BV79: 0 | BW79: 0 | BX79: 0 | BY79: 1 | BZ79: 1 | CA79: 5 | CB79: 3 | CC79: 1 | CD79: 1 | CE79: 5 | CF79: 10 | CG79: gut | CH79: gut | CL79: =SUM(CF79) -> 10 | CO79: Zustand Strasse | CR79: 2.4 | CS79: 2012 | DB79: 300000 | DC79: 50000 | DD79: 250000 | DE79: 0 | DF79: 0 | EA79: 300000 | EB79: 50000 | EC79: 250000 | ED79: 0 | EE79: 0 | EK79: 2
A80: K 30 | B80: 30 | D80: B; LV-2.1b | E80: A; LV-1.1a | G80: Stadt | H80: LP | M80: x | N80: Luzern, Einmündung K 2 bei SBB-Unterführung Haltestelle Verkehrshaus, Radverkehrsanlage in Koordination Planung Bushub | O80: 2800000 | P80: 1 | Q80: 144 | R80: B | S80: 1 | T80: 73 | U80: 72 | V80: A | W80: in Planung | X80: 2800000 | Z80: 4000000 | AA80: 100000 | AD80: 100000 | AE80: 2300000 | AF80: 100000 | AG80: 200000 | AI80: 2000000 | AJ80: =SUM(AK80:AN80) -> 1600000 | AK80: 1600000 | AP80: Stadt | BS80: 1 | BT80: 3 | BU80: 1 | BV80: 0 | BW80: 0 | BX80: 1 | BY80: 2 | BZ80: 2 | CA80: 10 | CB80: 3 | CC80: 2 | CD80: 2 | CE80: 7 | CF80: 17 | CG80: sehr gut | CH80: gut | CL80: =SUM(CF80) -> 17 | CO80: Aggloprogramm 2G Liste B Zustand Strasse | CS80: neue Str. | CU80: neue Str. | CV80: 1 | CW80: =SUM(Z80) -> 4000000 | CX80: =SUM(AA80) -> 100000 | CY80: =SUM(AE80) -> 2300000 | CZ80: =SUM(AJ80) -> 1600000 | DA80: =SUM(AO80) -> 0 | DG80: =SUM(Z80) -> 4000000 | DH80: =SUM(AA80) -> 100000 | DI80: =SUM(AE80) -> 2300000 | DJ80: =SUM(AJ80) -> 1600000 | DK80: =SUM(AO80) -> 0 | EK80: L | EL80: L | EM80: j | EN80: GK: W | EO80: 9900
A81: K 30 | B81: 30 | G81: L | H81: LP | M81: 11062 | N81: Meierskappel, Bushaltestellen Käppelihof | O81: 700000 | P81: 1 | Q81: 65 | R81: A | S81: 1 | T81: 74 | U81: 73 | V81: A | W81: im Bewilligungsverfahren | X81: 700000 | Z81: 1300000 | AA81: 200000 | AD81: 200000 | AE81: 1100000 | AF81: 500000 | AG81: 600000 | AP81: UER | BS81: 1 | BT81: 0 | BU81: 0 | BV81: 0 | BW81: 0 | BX81: 1 | BY81: 1 | BZ81: 0 | CA81: 3 | CB81: 1 | CC81: 0 | CD81: 0 | CE81: 1 | CF81: 4 | CG81: genügend | CH81: genügend | CN81: =SUM(CF81) -> 4 | CR81: 0.4 | CS81: 2035 | CT81: 0.2 | CU81: 2039 | DB81: =SUM(Z81) -> 1300000 | DC81: =SUM(AA81) -> 200000 | DD81: =SUM(AE81) -> 1100000 | DE81: =SUM(AJ81) -> 0 | DF81: =SUM(AO81) -> 0 | DG81: 1300000 | DH81: 200000 | DI81: 1100000 | DJ81: 0 | DK81: 0 | EK81: 2 | EL81: 2 | EM81: j | EO81: < 5000
A82: K 31 | B82: 31 | C82: A; M 5.2 | D82: A; LV-1.1h | G82: Stadt | H82: LP | M82: 10282.1 | N82: Luzern/Ebikon, Einmündung Friedentalstrasse – Sedel, Erstellen Radverkehrsanlage, Anpassen geometrisches Normalprofil in Koordination Sanierung Strasse | O82: 5400000 | P82: 1 | Q82: 145 | R82: B | S82: 1 | T82: 75 | U82: 74 | V82: A | W82: keine Aktivität | X82: 5400000 | Z82: 5300000 | AA82: 500000 | AD82: 500000 | AE82: 1300000 | AF82: 200000 | AG82: 100000 | AI82: 1000000 | AJ82: =SUM(AK82:AN82) -> 3500000 | AK82: 2000000 | AL82: 1500000 | AP82: Stadt | BR82: Weiterführung Planung gemäss Ergebnis ZMB (Beschluss Kantonsrat) | BS82: 1 | BT82: 2 | BU82: 0 | BV82: 0 | BW82: 0 | BX82: 1 | BY82: 3 | BZ82: 1 | CA82: 8 | CB82: 2 | CC82: 2 | CD82: 3 | CE82: 7 | CF82: 15 | CG82: gut | CH82: gut | CM82: =SUM(CF82) -> 15 | CO82: im BewilligungsverfahrenAggloprogramm 2G Liste A, Zustand Strasse | CR82: 1.2 | CS82: nicht berechenbar | CT82: 1.3 | CU82: 2022 | CV82: 2 | CW82: =SUM(Z82) -> 5300000 | CX82: =SUM(AA82) -> 500000 | CY82: =SUM(AE82) -> 1300000 | CZ82: =SUM(AJ82) -> 3500000 | DA82: =SUM(AO82) -> 0 | DG82: 5300000 | DH82: 500000 | DI82: 1300000 | DJ82: 3500000 | DK82: 0 | EK82: L | EL82: L | EM82: n | EO82: 17200
A83: K 4/33/33 a | G83: A | H83: LP | N83: Malters/Littau, Massnahmen für Umsetzung neue Buslinie Malters-Littau-Kriens, Bushaltestellen | Q83: neu | S83: 1 | T83: neu | U83: 75 | V83: A | Z83: =SUM(AA83+AF83+AG83+AH83+AI83+AJ83+AO83) -> 2100000 | AA83: =SUM(AB83:AD83) -> 0 | AE83: 600000 | AF83: 50000 | AG83: 50000 | AI83: 500000 | AJ83: =SUM(AK83:AN83) -> 1500000 | AK83: 1000000 | AL83: 500000 | BS83: 0 | BT83: 2 | BU83: 0 | BV83: 0 | BW83: 0 | BX83: 0 | BY83: 0 | BZ83: 0 | CA83: =SUM(BS83:BZ83) -> 2 | CB83: 1 | CC83: 2 | CD83: 1 | CE83: =SUM(CB83:CD83) -> 4 | CF83: =CA83+CE83 -> 6 | CG83: gut | CH83: gut | CM83: =SUM(CF83) -> 6 | CO83: öV-Bericht | CW83: 2100000 | CX83: 0 | CY83: 600000 | CZ83: 1500000 | DA83: 0 | DG83: 2100000 | DH83: 0 | DI83: 600000 | DJ83: 1500000 | DK83: 0
A84: K 33/33 b | B84: 33.1 | F84: A; GV-4.1 | G84: A | H84: LP | M84: x | N84: Malters, Knoten K 33/33b, Sanierung Unfallschwerpunkt | O84: 600000 | P84: 1 | Q84: 67 | R84: A | S84: 1 | T84: 76 | U84: 76 | V84: A | W84: in Planung | X84: 600000 | Z84: 2500000 | AA84: 100000 | AD84: 100000 | AE84: 2400000 | AF84: 200000 | AG84: 1100000 | AH84: 1100000 | AP84: GED | BS84: 2 | BT84: 0 | BU84: 0 | BV84: 0 | BW84: 0 | BX84: 1 | BY84: 2 | BZ84: 0 | CA84: 5 | CB84: 0 | CC84: 1 | CD84: 1 | CE84: 2 | CF84: 7 | CG84: gut | CH84: gut | CM84: =SUM(CF84) -> 7 | CO84: Unfallschwerpunkt | CR84: 0.4 | CS84: 2035 | CW84: 2500000 | CX84: 100000 | CY84: 2400000 | CZ84: 0 | DA84: 0 | DG84: 2500000 | DH84: 100000 | DI84: 2400000 | DJ84: 0 | DK84: 0
A85: K 33 a | B85: 33.2 | E85: A; LV-1.1b | G85: Stadt | H85: LP | M85: 11067 | N85: Luzern, Hohrüti – Tschoupis, Erstellen Radverkehrsanlage | O85: 4400000 | P85: 1 | Q85: 69 | R85: A | S85: 1 | T85: 77 | U85: 77 | V85: A | W85: in Realisierung | X85: 4400000 | Z85: 4400000 | AA85: =SUM(AB85:AD85) -> 2700000 | AD85: 2700000 | AE85: 1700000 | AF85: 1700000 | AP85: Bau | BS85: 1 | BT85: 2 | BU85: 0 | BV85: 0 | BW85: 0 | BX85: 2 | BY85: 2 | BZ85: 0 | CA85: 7 | CB85: 3 | CC85: 2 | CD85: 2 | CE85: 7 | CF85: 14 | CG85: gut | CH85: gut | CL85: =SUM(CF85) -> 14 | CO85: in Realisierung | CR85: 2.3 | CS85: 2013 | CT85: 2.1 | CU85: 2014 | CV85: 2 | CW85: 4400000 | CX85: 2700000 | CY85: 1700000 | CZ85: 0 | DA85: 0 | DG85: 4400000 | DH85: 2700000 | DI85: 1700000 | DJ85: 0 | DK85: 0 | EK85: N | EL85: N | EM85: j | EN85: GHK: W | EO85: 11000
A86: K 34 | B86: 34 | G86: L | K86: RW | M86: 10591 | N86: Wolhusen/Ruswil, Einmündung K 10 (exkl.) – Dorf Ruswil (exkl.), Erstellen Rad- und Gehweg mit Anpassung geometrisches Normalprofil in Koordination Sanierung Strasse | O86: 14600000 | P86: 4/5 | Q86: 71 | R86: A | S86: 4/5 | T86: 78 | U86: 78 | V86: A | W86: in Realisierung | X86: 14600000 | Z86: 14600000 | AA86: 13600000 | AD86: 13600000 | AE86: 1000000 | AF86: 1000000 | AP86: Bau | BS86: 2 | BT86: 1 | BU86: 0 | BV86: 0 | BW86: -1 | BX86: 2 | BY86: 1 | BZ86: 0 | CA86: 5 | CB86: 1 | CC86: 1 | CD86: 1 | CE86: 3 | CF86: 8 | CG86: genügend | CH86: genügend | CJ86: =SUM(CF86) -> 8 | CO86: in Realisierung | CR86: 1.4 | CS86: 2021 | CT86: 1.3 | CU86: 2022 | CV86: 3 | DB86: =SUM(Z86) -> 14600000 | DC86: =SUM(AA86) -> 13600000 | DD86: =SUM(AE86) -> 1000000 | DE86: =SUM(AJ86) -> 0 | DF86: =SUM(AO86) -> 0 | DV86: =SUM(Z86) -> 14600000 | DW86: =SUM(AA86) -> 13600000 | DX86: =SUM(AE86) -> 1000000 | DY86: =SUM(AJ86) -> 0 | DZ86: =SUM(AO86) -> 0 | EK86: 2 | EL86: 2 | EM86: n | EO86: 14500
A87: K 36 | B87: 36 | G87: L | K87: RE | M87: 10930 | N87: Escholzmatt-Marbach/Schüpfheim, Chlusboden Brücke inkl. Zufahrten und Massnahmen auf Umfahrungsstrasse, Neubau | O87: 27000000 | P87: 4 | Q87: 72 | R87: A | S87: 4 | T87: 79 | U87: 79 | V87: A | W87: in Realisierung | X87: 27000000 | Z87: 27000000 | AA87: 6000000 | AD87: 6000000 | AE87: 21000000 | AF87: 7000000 | AG87: 7000000 | AH87: 7000000 | AP87: Bau | BS87: 1 | BT87: 1 | BU87: 0 | BV87: 0 | BW87: 0 | BX87: 0 | BY87: 1 | BZ87: 0 | CA87: 3 | CB87: 3 | CC87: 1 | CD87: 0 | CE87: 4 | CF87: 7 | CG87: ungenügend | CH87: ungenügend | CJ87: =SUM(CF87) -> 7 | CK87: =SUM(CF87) -> 7 | CO87: in Realisierung Zustand Kunstbauten alarmierend Zustand Strasse | CR87: 3.2 | CS87: 2002 | CT87: 2.4 | CU87: 2008 | DB87: 27000000 | DC87: 6000000 | DD87: 21000000 | DE87: 0 | DF87: 0 | DV87: 27000000 | DW87: 6000000 | DX87: 21000000 | DY87: 0 | DZ87: 0 | EK87: 4 (5 40 to) | EL87: 4 (5 40 to) | EM87: n | EO87: < 5000
A88: K 36 | B88: 36 | G88: L | K88: RE | M88: x | N88: Escholzmatt-Marbach/Flühli, Lammschlucht (Chlusboden exkl. – Under Tendli) | O88: 34000000 | P88: 4 | Q88: 148 | R88: B | S88: 4 | T88: 80 | U88: 80 | V88: A | W88: in Planung | X88: 34000000 | Z88: 34000000 | AA88: 800000 | AD88: 800000 | AE88: 4200000 | AF88: 400000 | AH88: 800000 | AI88: 3000000 | AJ88: =SUM(AK88:AN88) -> 29000000 | AK88: 12000000 | AL88: 12000000 | AM88: 5000000 | AP88: Bau | BR88: Gemäss Antrag Region West - auch Realisierung im Topf B möglich | BS88: 1 | BT88: 1 | BU88: 0 | BV88: 0 | BW88: 0 | BX88: 1 | BY88: 1 | BZ88: 0 | CA88: 4 | CB88: 3 | CC88: 1 | CD88: 0 | CE88: 4 | CF88: 8 | CG88: ungenügend | CH88: ungenügend | CL88: =SUM(CF88) -> 8 | CO88: Zustand Strasse Kunstbauten grosse Schäden | CR88: 1.7 | CS88: 2018 | CT88: 1.4 | CU88: 2021 | CV88: 3 | DB88: 34000000 | DC88: 800000 | DD88: 4200000 | DE88: 29000000 | DF88: 0 | DV88: 34000000 | DW88: 800000 | DX88: 4200000 | DY88: 29000000 | DZ88: 0 | EK88: 2 | EL88: 2 | EM88: n | EO88: 2600
A89: K 41 | B89: 41 | G89: L | K89: WW | M89: x | N89: Luthern, Hofstatt – Abzweigung Kreuzstiegen, Neubau Brücke, Radverkehrsanlagen in Koordination Sanierung Strasse | O89: 2700000 | P89: 2 | Q89: 232 | R89: C | S89: 2 | T89: 81 | U89: 81 | V89: A | W89: in Planung | X89: 2700000 | Z89: 5000000 | AA89: 300000 | AD89: 300000 | AE89: 1700000 | AF89: 200000 | AH89: 500000 | AI89: 1000000 | AJ89: 3000000 | AK89: 2500000 | AL89: 500000 | AP89: GED | BR89: Zustand Brücke schlecht | BS89: 1 | BT89: 1 | BU89: 0 | BV89: 0 | BW89: 0 | BX89: 2 | BY89: 1 | BZ89: 0 | CA89: 5 | CB89: 3 | CC89: 1 | CD89: 0 | CE89: 4 | CF89: 9 | CG89: genügend | CH89: genügend | CK89: =SUM(CF89) -> 9 | CO89: Zustand Kunstbauten zw. schlecht und alarmierend Zustand Strasse | CR89: 3.9 | CS89: 2002 | CT89: 2.9 | CU89: 2008 | CV89: 3 | DB89: 5000000 | DC89: 300000 | DD89: 1700000 | DE89: 3000000 | DF89: 0 | EA89: =SUM(Z89) -> 5000000 | EB89: =SUM(AA89) -> 300000 | EC89: =SUM(AE89) -> 1700000 | ED89: =SUM(AJ89) -> 3000000 | EE89: =SUM(AO89) -> 0 | EK89: 3 | EL89: 3 | EM89: j | EN89: GK: W | EO89: 8000
A90: K 46 | B90: 46 | F90: A; Aareland | G90: L | L90: RZ | M90: x | N90: Reiden, Einmündung Industriestrasse, Umbau Knoten in einen Kreisel | O90: 0 | P90: 2 | Q90: 239 | R90: C | S90: 2 | T90: 82 | U90: 82 | V90: A | W90: in Planung als BVD | X90: 0 | Z90: 2700000 | AA90: 0 | AD90: 0 | AE90: 2700000 | AF90: 100000 | AG90: 100000 | AH90: 2500000 | AP90: ROA | BS90: 1 | BT90: -1 | BU90: 0 | BV90: 1 | BW90: 0 | BX90: 1 | BY90: 2 | BZ90: 0 | CA90: 4 | CB90: 2 | CC90: 1 | CD90: 1 | CE90: 4 | CF90: 8 | CG90: gut | CH90: gut | CM90: =SUM(CF90) -> 8 | CO90: Anbindung ESP Aggloprogramm AG | CR90: 1.7 | CS90: 2018 | CT90: 2.1 | CU90: 2014 | DB90: 2700000 | DC90: 0 | DD90: 2700000 | DE90: 0 | DF90: 0 | EF90: =SUM(Z90) -> 2700000 | EG90: =SUM(AA90) -> 0 | EH90: =SUM(AE90) -> 2700000 | EI90: =SUM(AJ90) -> 0 | EJ90: =SUM(AO90) -> 0 | EK90: 2 | EL90: 2 | EM90: j | EN90: GK: W | EO90: k.A.
A91: K 46 | G91: L | L91: RZ | M91: x | N91: Reiden, Sonnenkreisel (exkl.) – Einmündung Industriestrasse (exkl.), Radverkehrsanlagen | O91: 2500000 | P91: 2 | Q91: 151 | R91: B | S91: 2 | T91: 83 | U91: 83 | V91: A | W91: in Planung | X91: 2500000 | Z91: 2900000 | AA91: 100000 | AD91: 100000 | AE91: 1300000 | AF91: 100000 | AH91: 200000 | AI91: 1000000 | AJ91: 1500000 | AK91: 1500000 | AP91: ROA | BS91: 1 | BT91: 2 | BU91: 0 | BV91: 0 | BW91: 0 | BX91: 0 | BY91: 1 | BZ91: 2 | CA91: 6 | CB91: 0 | CC91: 1 | CD91: 1 | CE91: 2 | CF91: 8 | CG91: gut | CH91: gut | CM91: =SUM(CF91) -> 8 | CO91: RRK | DB91: 2900000 | DC91: 100000 | DD91: 1300000 | DE91: 1500000 | DF91: 0 | EF91: 2900000 | EG91: 100000 | EH91: 1300000 | EI91: 1500000 | EJ91: 0
A92: K 46 | B92: 46 | G92: L | L92: RZ | M92: 11092 | N92: Roggliswil/Pfaffnau, Industrie Schöneich – Anschluss K 42, Ausbau Strasse und Erstellen Rad- und Gehweg | O92: 15000000 | P92: 2 | Q92: 74 | R92: A | S92: 2 | T92: 84 | U92: 84 | V92: A | W92: im Bewilligungsverfahren | X92: 15000000 | Z92: 24000000 | AA92: 1000000 | AD92: 1000000 | AE92: 9500000 | AF92: 500000 | AH92: 1000000 | AI92: 8000000 | AJ92: =SUM(AK92:AN92) -> 13500000 | AK92: 8000000 | AL92: 4500000 | AM92: 1000000 | AP92: ROA | BS92: 1 | BT92: 0 | BU92: 0 | BV92: 0 | BW92: 0 | BX92: 1 | BY92: 1 | BZ92: 0 | CA92: 3 | CB92: 3 | CC92: 0 | CD92: 1 | CE92: 4 | CF92: 7 | CG92: genügend | CH92: genügend | CL92: =SUM(CF92) -> 7 | CO92: Zustand Strasse Sanierung ab 2015 erforderlich | CR92: 3 | CS92: 2008 | CT92: 2.3 | CU92: 2012 | DB92: 24000000 | DC92: 1000000 | DD92: 9500000 | DE92: 13500000 | DF92: 0 | EF92: =SUM(Z92) -> 24000000 | EG92: =SUM(AA92) -> 1000000 | EH92: =SUM(AE92) -> 9500000 | EI92: =SUM(AJ92) -> 13500000 | EJ92: =SUM(AO92) -> 0 | EK92: 2 | EL92: 2 | EM92: j | EN92: GK: W | EO92: 11200
A93: K 47 | B93: 47 | G93: L | I93: SM | M93: 11083 | N93: Nottwil/Oberkirch, Büel – Länggass, Erstellen Radverkehrsanlage in Koordination Sanierung Strasse | O93: 9000000 | P93: 5 | Q93: 75 | R93: A | S93: 5 | T93: 85 | U93: 85 | V93: A | W93: im Bewilligungsverfahren | X93: 9000000 | Z93: 11000000 | AA93: 500000 | AD93: 500000 | AE93: 10500000 | AG93: 1500000 | AH93: 5000000 | AI93: 4000000 | AP93: Col | BS93: 1 | BT93: 2 | BU93: 0 | BV93: 0 | BX93: 0 | BY93: 1 | BZ93: 0 | CA93: 4 | CB93: 3 | CC93: 1 | CD93: 1 | CE93: 5 | CF93: 9 | CG93: genügend | CH93: genügend | CL93: =SUM(CF93) -> 9 | CO93: Zustand Strasse | CR93: 2.8 | CS93: 2009 | CT93: 2.2 | CU93: 2014 | CV93: 2 | DB93: 11000000 | DC93: 500000 | DD93: 10500000 | DE93: 0 | DF93: 0 | DL93: =SUM(Z93) -> 11000000 | DM93: =SUM(AA93) -> 500000 | DN93: =SUM(AE93) -> 10500000 | DO93: =SUM(AJ93) -> 0 | DP93: =SUM(AO93) -> 0 | EK93: 2 | EL93: 2 | EM93: n | EO93: 14300
A94: K 48 | B94: 48 | G94: L | I94: SM | M94: 10212.1/5 | N94: Sempach, Schulhauskurve, Anpassung Knoten, Schulwegsicherung | O94: 1900000 | P94: 5 | Q94: 77 | R94: A | S94: 5 | T94: 86 | U94: 86 | V94: A | W94: in Planung | X94: 1900000 | Z94: 2800000 | AA94: 200000 | AD94: 200000 | AE94: 2600000 | AF94: 100000 | AG94: 1000000 | AH94: 1500000 | BR94: Koordination mit Gestaltungswettbewerb Stadt Sempach | BS94: 3 | BT94: 3 | BU94: 0 | BV94: 0 | BW94: 0 | BX94: 1 | BY94: 0 | BZ94: 2 | CA94: 9 | CB94: 3 | CC94: 1 | CD94: 1 | CE94: 5 | CF94: 14 | CG94: sehr gut | CH94: sehr gut | CL94: =SUM(CF94) -> 14 | CO94: im Bewilligungsverfahren, Zustand Strasse, Stadtplanung | CR94: 2.9 | CS94: 2008 | CT94: 2.6 | CU94: 2011 | CV94: 1, U | DB94: 2800000 | DC94: 200000 | DD94: 2600000 | DE94: 0 | DF94: 0 | DL94: 2800000 | DM94: 200000 | DN94: 2600000 | DO94: 0 | DP94: 0 | EK94: 3 | EL94: 2 | EM94: j | EN94: GK: R, W | EO94: k.A.
A95: K 48 | B95: 48 | G95: L | I95: SM | M95: 11106 | N95: Sempach/Eich, Dorf Sempach (Kreisel Dreiangel) – Eich Einmündung Spillgässli (inkl.), Erstellen Radverkehrsanlage, Anpassung geometrisches Normalprofil in Koordination Sanierung Strasse | O95: 10000000 | P95: 5 | Q95: 78 | R95: A | S95: 5 | T95: 87 | U95: 87 | V95: A | W95: im Bewilligungsverfahren | X95: 10000000 | Z95: 20000000 | AA95: 1000000 | AD95: 1000000 | AE95: 4500000 | AF95: 500000 | AH95: 1000000 | AI95: 3000000 | AJ95: =SUM(AK95:AN95) -> 14500000 | AK95: 6000000 | AL95: 6000000 | AM95: 2500000 | AP95: rap | BS95: 2 | BT95: 3 | BU95: 0 | BV95: 0 | BW95: 0 | BX95: 2 | BY95: 1 | BZ95: 0 | CA95: 8 | CB95: 2 | CC95: 1 | CD95: 1 | CE95: 4 | CF95: 12 | CG95: gut | CH95: gut | CM95: =SUM(CF95) -> 12 | CO95: RRK | CR95: 1.7 | CS95: 2018 | CT95: 1.3 | CU95: 2022 | CV95: 1 | DB95: 20000000 | DC95: 1000000 | DD95: 4500000 | DE95: 14500000 | DF95: 0 | DL95: 20000000 | DM95: 1000000 | DN95: 4500000 | DO95: 14500000 | DP95: 0 | EK95: 3 | EL95: 2 | EM95: j | EN95: GK: W | EO95: 4100
A96: K 48 | B96: 48 | G96: L | I96: SM | M96: 11107 | N96: Eich/Schenkon, Eich Einmündung Spillgässli (exkl.) – Dorf Schenkon (exkl.), Erstellen Radverkehrsanlage, Anpassung geometrisches Normalprofil in Koordination Sanierung Strasse | O96: 9600000 | P96: 5 | Q96: 152 | R96: B | S96: 5 | T96: 88 | U96: 88 | V96: A | W96: im Bewilligungsverfahren | X96: 9600000 | Z96: 10500000 | AA96: 700000 | AD96: 700000 | AE96: 800000 | AF96: 200000 | AG96: 100000 | AI96: 500000 | AJ96: =SUM(AK96:AN96) -> 9000000 | AK96: 2000000 | AL96: 5000000 | AM96: 2000000 | AP96: rap | BS96: 2 | BT96: 3 | BU96: 0 | BV96: 0 | BW96: 0 | BX96: 2 | BY96: 1 | BZ96: 0 | CA96: 8 | CB96: 2 | CC96: 1 | CD96: 1 | CE96: 4 | CF96: 12 | CG96: gut | CH96: gut | CM96: 12 | CO96: RRK | CR96: 2.2 | CS96: 2014 | CT96: 2.4 | CU96: 2012 | CV96: 1 | DB96: 10500000 | DC96: 700000 | DD96: 800000 | DE96: 9000000 | DF96: 0 | DL96: 10500000 | DM96: 700000 | DN96: 800000 | DO96: 9000000 | DP96: 0 | EK96: N | EL96: N | EM96: j | EO96: 5 - 10'000
A97: K 56 | B97: 56 | G97: L | J97: IS | M97: x | N97: Römerswil, Einm. K 56 b – Niffel – Traselingen, Erstellen Radverkehrsanlage, Anpassung geometrisches Normalprofil in Koordination Sanierung Strasse | O97: 12000000 | P97: 3 | Q97: 154/242 | R97: B | S97: 3 | T97: 89 | U97: 89 | V97: A | W97: in Planung | X97: 12000000 | Y97: 20000000 | Z97: 20000000 | AA97: 500000 | AD97: 500000 | AE97: 2500000 | AF97: 250000 | AG97: 250000 | AI97: 2000000 | AJ97: 17000000 | AK97: 6000000 | AL97: 6000000 | AM97: 5000000 | AP97: Col | BS97: 1 | BT97: 1 | BU97: 0 | BV97: 0 | BW97: 0 | BX97: 2 | BY97: 2 | BZ97: 0 | CA97: 6 | CB97: 2 | CC97: 1 | CD97: 1 | CE97: 4 | CF97: 10 | CG97: gut | CH97: gut | CM97: =SUM(CF97) -> 10 | CO97: RRK GVK Seetal | CR97: 0.9 | CS97: 2027 | CV97: 3 | DB97: 20000000 | DC97: 500000 | DD97: 2500000 | DE97: 17000000 | DF97: 0 | DQ97: =SUM(Z97) -> 20000000 | DR97: =SUM(AA97) -> 500000 | DS97: =SUM(AE97) -> 2500000 | DT97: =SUM(AJ97) -> 17000000 | DU97: =SUM(AO97) -> 0 | EK97: 2
A98: K 57 | B98: 57 | G98: L | I98: SM | M98: 10932 | N98: Beromünster, Einmündung Westumfahrung – Gunzwil, Erstellen Radverkehrsanlage | O98: 3600000 | P98: 5 | Q98: 83 | R98: A | S98: 5 | T98: 90 | U98: 90 | V98: A | W98: im Bewilligungsverfahren | X98: 3600000 | Z98: 5000000 | AA98: 600000 | AD98: 600000 | AE98: 900000 | AF98: 100000 | AI98: 800000 | AJ98: =SUM(AK98:AN98) -> 3500000 | AK98: 2000000 | AL98: 1500000 | AP98: Su | BR98: Verschiebung Baubeginn aufgrund Ablehnung Ortsplanrevision im 2020 | BS98: 1 | BT98: 3 | BU98: 1 | BV98: 0 | BW98: 0 | BX98: 1 | BY98: 1 | BZ98: 0 | CA98: 7 | CB98: 3 | CC98: 1 | CD98: 1 | CE98: 5 | CF98: 12 | CG98: gut | CH98: gut | CJ98: =SUM(CF98) -> 12 | CL98: =SUM(CF98) -> 12 | CO98: Zustand Strasse, Ufahrung Beromünster | CR98: 2.4 | CS98: 2012 | CT98: 1.9 | CU98: 2016 | CV98: 1 | DB98: 5000000 | DC98: 600000 | DD98: 900000 | DE98: 3500000 | DF98: 0 | DL98: =SUM(Z98) -> 5000000 | DM98: =SUM(AA98) -> 600000 | DN98: =SUM(AE98) -> 900000 | DO98: =SUM(AJ98) -> 3500000 | DP98: =SUM(AO98) -> 0 | EK98: N | EL98: N | EM98: j | EN98: GK: W | EO98: 11300
A99: K 58 | B99: 58 | G99: L | J99: IS | N99: Hitzkirch/Aesch, Einmündung Altwiserstrasse, Optimierung Veloquerung Mosen Richtung Altwis in Koordination Sanierung Strasse | O99: 500000 | P99: 3 | Q99: 155 | R99: B | S99: 3 | T99: 91 | U99: 91 | V99: A | W99: keine Aktivität | X99: 500000 | Z99: 500000 | AA99: 0 | AD99: 0 | AE99: 500000 | AF99: 50000 | AH99: 450000 | BS99: 1 | BT99: 1 | BU99: 1 | BV99: 0 | BW99: 0 | BX99: 0 | BY99: 0 | BZ99: 1 | CA99: 4 | CB99: 1 | CC99: 0 | CD99: 1 | CE99: 2 | CF99: 6 | CG99: gut | CH99: genügend | CN99: =SUM(CF99) -> 6 | CO99: Ergebnis GVK Seetal | CR99: 1.1 | CS99: 2023 | CT99: 1.1 | CU99: 2023 | CV99: 1 | DB99: 500000 | DC99: 0 | DD99: 500000 | DE99: 0 | DF99: 0 | DQ99: =SUM(Z99) -> 500000 | DR99: =SUM(AA99) -> 0 | DS99: =SUM(AE99) -> 500000 | DT99: =SUM(AJ99) -> 0 | DU99: =SUM(AO99) -> 0 | EK99: 2 | EL99: 2 | EM99: n
A100: K 65 | B100: 65 | E100: A; ÖV-9.1h | G100: A | H100: LP | M100: 11032 | N100: Buchrain, Schachen – Autobahnanschluss (exkl.), Massnahmen für den öffentlichen Verkehr | O100: 3300000 | P100: 1 | Q100: 86 | R100: A | S100: 1 | T100: 92 | U100: 92 | V100: A | W100: bewilligt - Realisierung in Vorbereitung | X100: 3300000 | Z100: 4500000 | AA100: 500000 | AD100: 500000 | AE100: 4000000 | AF100: 500000 | AG100: 3000000 | AH100: 500000 | AP100: Bau | BS100: 1 | BT100: 0 | BU100: 3 | BV100: 0 | BW100: 0 | BX100: 1 | BY100: 3 | BZ100: 0 | CA100: =SUM(BS100:BZ100) -> 8 | CB100: 1 | CC100: 2 | CD100: 2 | CE100: =SUM(CB100:CD100) -> 5 | CF100: =CA100+CE100 -> 13 | CG100: gut | CH100: gut | CM100: =SUM(CF100) -> 13 | CO100: Aggoprogramm 3G | CR100: 0.8 | CS100: 2024 | CT100: 1.3 | CU100: 2021 | CV100: best. | CW100: =SUM(Z100) -> 4500000 | CX100: =SUM(AA100) -> 500000 | CY100: =SUM(AE100) -> 4000000 | CZ100: =SUM(AJ100) -> 0 | DA100: =SUM(AO100) -> 0 | DG100: =SUM(Z100) -> 4500000 | DH100: =SUM(AA100) -> 500000 | DI100: =SUM(AE100) -> 4000000 | DJ100: =SUM(AJ100) -> 0 | DK100: =SUM(AO100) -> 0 | EK100: 2 | EL100: 2 | EM100: n | EO100: 10 - 15'000
A101: K 65/65 a | B101: 65.1 | C101: A; M 7.2 | G101: A | H101: LP | M101: x | N101: Inwil, Knoten Industriestrasse – Knoten Oberhofen mit Teilverlegung Kantonsstrasse K 65 a, Optimierung Gesamtverkehrssystem mit Förderung öV in Koordination Umfahrung Eschenbach | O101: 6000000 | P101: 3 | Q101: 156 | R101: B | S101: 3 | T101: 93 | U101: 93 | V101: A | W101: keine Aktivität | X101: 6000000 | Z101: 6000000 | AA101: 100000 | AD101: 100000 | AE101: 1400000 | AF101: 200000 | AG101: 200000 | AI101: 1000000 | AJ101: =SUM(AK101:AN101) -> 4500000 | AK101: 2000000 | AL101: 2500000 | AP101: Bu | BR101: Abhängig Ergebnis ZMB Umfahrung Eschenbach | BS101: 1 | BT101: 0 | BU101: 1 | BV101: 1 | BW101: -2 | BX101: 2 | BY101: 1 | BZ101: 0 | CA101: =SUM(BS101:BZ101) -> 4 | CB101: 1 | CC101: 1 | CD101: 2 | CE101: =SUM(CB101:CD101) -> 4 | CF101: =CA101+CE101 -> 8 | CG101: genügend | CH101: genügend | CM101: =SUM(CF101) -> 8 | CO101: Aggloprogramm 1G Liste A | CR101: 1.2 | CS101: 2022 | CT101: 1.6 | CU101: 2018 | CV101: best. | CW101: 6000000 | CX101: 100000 | CY101: 1400000 | CZ101: 4500000 | DA101: 0 | DG101: 6000000 | DH101: 100000 | DI101: 1400000 | DJ101: 4500000 | DK101: 0 | EK101: N | EL101: N | EM101: n | EO101: 2500
A102: K 65 c | B102: 65.4 | E102: A; ÖV-9.1i | G102: A | H102: LP | M102: 11031 | N102: Buchrain, Knoten Einmündung Gemeindestrasse bei Kanalbrücke/Perlenwehr, Massnahmen für den öffentlichen Verkehr, neue Bushaltestellen mit Aufweitung Kantonsstrasse | O102: 2400000 | P102: 1 | Q102: 88 | R102: A | S102: 1 | T102: 94 | U102: 94 | V102: A | W102: in Planung | X102: 2400000 | Z102: =SUM(AA102+AF102+AG102+AH102+AI102+AJ102+AO102) -> 2900000 | AA102: 100000 | AD102: 100000 | AE102: 2800000 | AF102: 200000 | AG102: 100000 | AH102: 1000000 | AI102: 1500000 | AP102: Bu | BS102: 1 | BT102: 1 | BU102: 1 | BV102: 0 | BW102: 0 | BX102: 1 | BY102: 2 | BZ102: 0 | CA102: =SUM(BS102:BZ102) -> 6 | CB102: 1 | CC102: 2 | CD102: 2 | CE102: =SUM(CB102:CD102) -> 5 | CF102: =CA102+CE102 -> 11 | CG102: sehr gut | CH102: gut | CM102: =SUM(CF102) -> 11 | CO102: Aggloprogramm | CR102: 1.2 | CS102: nicht berechenbar | CT102: 1.6 | CU102: ca. 2019 | CW102: 2900000 | CX102: 100000 | CY102: 2800000 | CZ102: 0 | DA102: 0 | DG102: 2900000 | DH102: 100000 | DI102: 2800000 | DJ102: 0 | DK102: 0 | EK102: 2 | EL102: 2 | EM102: j | EO102: 5 - 10'000
A103: Total Topf A = 94 Projekte | AE103: =SUM(AE9:AE102) -> 426550000 | AF103: 101050000 | AG103: 120050000 | AH103: 94750000 | AI103: 110700000 | AJ103: 258550000 | AK103: 128650000 | AL103: 97400000 | AM103: 29500000 | AN103: 3000000 | AO103: 0
A104: Topf B | BS104: Wirkung - Relevanz - Kostenkategorien (Kosten/Nutzen) | CR104: Strassen-zustand 2017 | CT104: Strassen-zustand 2013 | CV104: RRK 94 ergänzt | EK104: Zustand Kunstbauten im Strassenabschnitt 2017 | EL104: Zustand Kunstbauten im Strassenabschnitt 2013 | EM104: Hochwasserschutz/Naturgefahren | EN104: Gefahrenprozess | EO104: Verkehr DTV Maximalwert im Strassenabschnitt | EP104: Unfall-schwer-punkt Polizei
A105: Strassen-zug | C105: Agglomerationsprogramm | G105: Zu-ord-nung | M105: Projekt Nr. | N105: Gemeinde, Abschnitt, Massnahme | O105: Projekt-kosten Bauprogramm | P105: Über-sichts-plan 19-22 | Q105: Plan Nr. | R105: Topf | S105: Über-sichts-plan 19-22 | T105: Plan Nr. | U105: Plan Nr. | V105: Topf | W105: Stand der Planung 19.1.2021 | X105: Projekt-kosten | Y105: aktuelle Projekt-kosten | Z105: Projekt-kosten | AA105: Kosten bis 2022 | AB105: Kosten bis Ende 2021 | AC105: ZAK 2022 | AD105: Projektkosten vor Ende 2022 Entwurf Ho | AE105: Topf A | AF105: Topf A | AJ105: Topf B | AO105: Topf C | AP105: Ressourcenplanung | BR105: Bemerkungen | BS105: Wirkung | CA105: Wirkung | CB105: Relevanz | CE105: Relevanz | CF105: Nutzen- punkte | CG105: Kosten/ Nutzen Kosten-Kate-gorien | CH105: Kosten/ Nutzen Kosten-Kate-gorien | CI105: Priorität / Rangfolge | CO105: Abhängigkeiten | CR105: ausgewiesen 2.2 (2.3) - 5.0 vorgesehen 1.5 - 2.2 (2.3) < 1.5 | CT105: ausgewiesen 2.2 (2.3) - 5.0 vorgesehen 1.5 - 2.2 (2.3) < 1.5 | CV105: Priortät Unfall-schwer-punkt Lücke | EK105: 5 alarmierend (Sicherheit gefährdet) 4 schlecht (grosse Schäden) 3 beschädigt (bedeutende Schäden) 2 akzeptabel ( unbedeutende Schäden) N keine KB betroffen | EL105: 5 alarmierend (Sicherheit gefährdet) 4 schlecht (grosse Schäden) 3 beschädigt (bedeutende Schäden) 2 akzeptabel ( unbedeutende Schäden) N keine KB betroffen | EM105: Betroffen Ja / Nein GHK = Aussagen aufgrund von Höhenmodellen. GK = genaue Gefahrenbeurteilungen im Siedlungsgebiet. | EN105: GHK: Gefahrenhinweiskarte GK: Gefahrenkarte L: Lawine; S: Sturz; M: Murgang; R: Rutsch; W: Wasser | EO105: Belastung > 20'000 Fz/Tag Belastung < 20'000 bis 15'000 Fz/Tag Belastung < 15'000 bis 10'000 Fz/Tag Belastung < 10'000 bis 5'000 Fz/Tag Belastung < 5'000 Fz/Tag
C106: 1 G | D106: 2 G | E106: 3 G | F106: 4G | G106: Agglo Stadt Land | H106: Luern Plus | I106: Sursee - Mittelland | J106: Idee Seetal | K106: Luzern West | L106: Regio Zofingen | O106: 2019-2022 | Q106: 2019-2022 | R106: 2019-2022 | T106: 23-26 alt | W106: Stand: Prognose per Ende.2022 | Y106: Stand 19.1.2021 | AE106: 2023-2026 | AF106: 2023 | AG106: 2024 | AH106: 2025 | AI106: 2026 | AK106: 2027 | AL106: 2028 | AM106: 2029 | AN106: 2030 | AP106: PL | AQ106: 21 | AR106: 22 | AV106: 23 | AZ106: 24 | BD106: 25 | BH106: 26 | BL106: 2027 | BM106: 2028 | BN106: 2029 | BO106: 2030 | BP106: Topf C | BS106: W1 | BT106: W2 | BU106: W3 | BV106: W4 | BW106: W5 | BX106: W6 | BY106: W7 | BZ106: W8 | CA106: W | CB106: R1 | CC106: R2 | CD106: R3 | CE106: R | CF106: Summe | CG106: mit T 5 | CH106: mit T 6 | CI106: 1 | CJ106: 2 | CK106: 3 | CL106: 4 | CM106: 5 | CN106: 6 | CR106: Wert | CS106: Inter-vention | CT106: Wert | CU106: Inter-vention
A107: K 2 | B107: 2 | G107: Stadt | H107: LP | N107: Luzern, Pilatusstrasse – Schweizerhofquai, Optimierung Strassenraum, Förderung öV und Fuss- und Veloverkehr, Sanierung Bushaltestellen BehiG in Koordination Sanierung Strasse | Q107: neu | S107: 1 | T107: 100 | U107: 100 | V107: B | Z107: =SUM(AA107+AF107+AG107+AH107+AI107+AJ107+AO107) -> 8000000 | AA107: =SUM(AB107:AD107) -> 0 | AE107: =SUM(AF107:AI107) -> 400000 | AG107: 100000 | AH107: 200000 | AI107: 100000 | AJ107: =SUM(AK107:AN107) -> 3600000 | AL107: 600000 | AM107: 1000000 | AN107: 2000000 | AO107: 4000000 | AP107: MUD | BR107: Planung für AP 5, Sanierung BehiG, Radverkehrsanlage, öV -Förderung - Flamas für Bypass und DBL | BS107: 2 | BT107: 0 | BU107: 2 | BV107: 3 | BW107: 0 | BX107: 2 | BY107: 3 | BZ107: 3 | CA107: =SUM(BS107:BZ107) -> 15 | CB107: 2 | CC107: 2 | CD107: 3 | CE107: =SUM(CB107:CD107) -> 7 | CF107: =CA107+CE107 -> 22 | CG107: sehr gut | CH107: sehr gut | CM107: =SUM(CF107) -> 22 | CO107: Zustand Strasse, Aggloprogramm Planungsbericht Spange Nord | CW107: =SUM(Z107) -> 8000000 | CX107: =SUM(AA107) -> 0 | CY107: =SUM(AE107) -> 400000 | CZ107: =SUM(AJ107) -> 3600000 | DA107: =SUM(AO107) -> 4000000 | DG107: =SUM(Z107) -> 8000000 | DH107: =SUM(AA107) -> 0 | DI107: =SUM(AE107) -> 400000 | DJ107: =SUM(AJ107) -> 3600000 | DK107: =SUM(AO107) -> 4000000
A108: K 2 | B108: 2 | G108: Stadt | H108: LP | N108: Luzern, Haldenstrasse, Einmündung K 17 (exkl.) – Einmündung Bellerivestrasse, Optimierung Strassenraum, Sanierung Bushaltestellen BehiG, in Koordination Sanierung Strasse | Q108: neu/1 | S108: 1 | T108: 101 | U108: 101 | V108: B | Z108: =SUM(AA108+AF108+AG108+AH108+AI108+AJ108+AO108) -> 5000000 | AA108: =SUM(AB108:AD108) -> 0 | AE108: 400000 | AG108: 200000 | AH108: 100000 | AI108: 100000 | AJ108: =SUM(AK108:AN108) -> 2600000 | AM108: 600000 | AN108: 2000000 | AO108: 2000000 | BR108: Planung für AP 5, Sanierung BehiG, Radverkehrsanlage, Sanierung Strassse | BS108: 2 | BT108: 0 | BU108: 2 | BV108: 3 | BW108: 0 | BX108: 1 | BY108: 3 | BZ108: 2 | CA108: 13 | CB108: 2 | CC108: 2 | CD108: 2 | CE108: 6 | CF108: 19 | CG108: sehr gut | CH108: sehr gut | CM108: 19 | CO108: Zustand Strasse, Aggloprogramm Hochwasser | CW108: 5000000 | CX108: 0 | CY108: 400000 | CZ108: 2600000 | DA108: 2000000 | DG108: 5000000 | DH108: 0 | DI108: 400000 | DJ108: 2600000 | DK108: 2000000
A109: K 2 | B109: 2 | G109: Stadt | H109: LP | N109: Luzern, Einmündung Lidostrasse – Einmündung K 30 – Einmündung Lidostrasse, Sanierung Haltestelle Verkehrshaus, Sanierung Strasse und Entwässerung | Q109: neu | S109: 1 | T109: 102 | U109: 102 | V109: B | Z109: =SUM(AA109+AF109+AG109+AH109+AI109+AJ109+AO109) -> 5000000 | AA109: =SUM(AB109:AD109) -> 0 | AE109: 100000 | AI109: 100000 | AJ109: =SUM(AK109:AN109) -> 2200000 | AK109: 200000 | AM109: 1000000 | AN109: 1000000 | AO109: 2700000 | BR109: Sanierung BehiG, Probleme Entwässerung, Sanierung Strassse | BS109: 2 | BT109: 0 | BU109: 2 | BV109: 0 | BW109: 0 | BX109: 3 | BY109: 3 | BZ109: 2 | CA109: 12 | CB109: 2 | CC109: 2 | CD109: 2 | CE109: 6 | CF109: 18 | CG109: sehr gut | CH109: sehr gut | CM109: 18 | CO109: Zustand Strasse, Aggloprogramm Hochwasser | CW109: 5000000 | CX109: 0 | CY109: 100000 | CZ109: 2200000 | DA109: 2700000 | DG109: 5000000 | DH109: 0 | DI109: 100000 | DJ109: 2200000 | DK109: 2700000
A110: K 4 | B110: 4 | C110: B; M 18.2c3 | D110: A; ÖV-11.1g | F110: B; GV-5.5 | G110: A | H110: LP | M110: 11047 | N110: Kriens, Zentrum, Massnahmen für den öffentlichen Verkehr, Erstellen Radverkehrsanlage | O110: 5100000 | P110: 1 | Q110: 101 | R110: B | S110: 1 | T110: 103 | U110: 103 | V110: B | W110: in Planung | X110: 5100000 | Z110: =SUM(AA110+AF110+AG110+AH110+AI110+AJ110+AO110) -> 16000000 | AA110: =SUM(AB110:AD110) -> 800000 | AD110: 800000 | AE110: 1200000 | AF110: 300000 | AG110: 300000 | AH110: 300000 | AI110: 300000 | AJ110: =SUM(AK110:AN110) -> 6000000 | AM110: 1000000 | AN110: 5000000 | AO110: 8000000 | AP110: End | BR110: Evt. auch Topf C möglich mit Baubeginn 2031 | BS110: 1 | BT110: 2 | BU110: 2 | BV110: -1 | BW110: 0 | BX110: 1 | BY110: 2 | BZ110: 1 | CA110: =SUM(BS110:BZ110) -> 8 | CB110: 1 | CC110: 2 | CD110: 3 | CE110: =SUM(CB110:CD110) -> 6 | CF110: =CA110+CE110 -> 14 | CG110: gut | CH110: gut | CM110: =SUM(CF110) -> 14 | CO110: Aggloprogramm 2G Liste A Richtplan Gemeinde | CR110: 1 | CS110: 2022 | CT110: 1 | CU110: 2023 | CW110: 16000000 | CX110: 800000 | CY110: 1200000 | CZ110: 6000000 | DA110: 8000000 | DG110: 16000000 | DH110: 800000 | DI110: 1200000 | DJ110: 6000000 | DK110: 8000000 | EK110: N | EL110: N | EM110: j | EN110: GK: W | EO110: k.A.
A111: K 4/32 a | B111: 4.1 | D111: C; MIV-4 | E111: C; MIV-4 | F111: B; GV-5.3 | G111: Stadt | H111: LP | M111: 11122 | N111: Luzern, Obergrundstrasse Einmündung Horwerstrasse – Bundesplatz (inkl.), Optimierung Leistungsfähigkeit, Massnahmen für den öffentlichen Verkehr, Erstellen Radverkehrsanlage in Koordination Sanierung Strasse | O111: 26000000 | P111: 1 | Q111: 103 | R111: B | S111: 1 | T111: 104 | U111: 104 | V111: B | W111: in Planung | X111: 26000000 | Z111: 30000000 | AA111: 200000 | AD111: 200000 | AE111: 1300000 | AG111: 500000 | AH111: 500000 | AI111: 300000 | AJ111: 8500000 | AL111: 500000 | AM111: 3000000 | AN111: 5000000 | AO111: 20000000 | AP111: ROA | BR111: Evt. auch Topf C möglich mit Baubeginn 2031 | BS111: 3 | BT111: 3 | BU111: 2 | BV111: 1 | BW111: 0 | BX111: 1 | BY111: 2 | BZ111: 1 | CA111: =SUM(BS111:BZ111) -> 13 | CB111: 1 | CC111: 3 | CD111: 3 | CE111: =SUM(CB111:CD111) -> 7 | CF111: =CA111+CE111 -> 20 | CG111: gut | CH111: gut | CM111: =SUM(CF111) -> 20 | CO111: Aggloprogramm 2G Liste B Koordinierung Sanierung Krienbach | CR111: 0.7 | CS111: nicht berechenbar | CT111: 1.1 | CU111: 2021 | CV111: 1 | CW111: 30000000 | CX111: 200000 | CY111: 1300000 | CZ111: 8500000 | DA111: 20000000 | DG111: 30000000 | DH111: 200000 | DI111: 1300000 | DJ111: 8500000 | DK111: 20000000 | EK111: L | EL111: L | EM111: n | EO111: 19800
A112: K 10 | B112: 10 | F112: B; FVV-5.1 | G112: Stadt | H112: LP | M112: x | N112: Luzern/Malters, Abschnitt Thorenberg (exkl.) – Einmündung K 4 (Anschluss Blatten), Verbesserung Verkehrssicherheit durch Anpassung geometrisches Normalprofil, Erstellen Rad- und Gehweg in Koordination Sanierung Strasse | O112: 4000000 | P112: 1 | Q112: 203 | R112: C | S112: 1 | T112: 105 | U112: 105 | V112: B | W112: keine Aktivität | X112: 4000000 | Z112: 5500000 | AA112: 0 | AD112: 0 | AE112: 200000 | AH112: 100000 | AI112: 100000 | AJ112: 1300000 | AK112: 100000 | AM112: 200000 | AN112: 1000000 | AO112: 4000000 | BR112: Evt. auch Topf C möglich mit Baubeginn 2031 | BS112: 1 | BT112: 0 | BU112: 0 | BV112: 0 | BW112: 0 | BX112: 1 | BY112: 3 | BZ112: 0 | CA112: =SUM(BS112:BZ112) -> 5 | CB112: 1 | CC112: 0 | CD112: 1 | CE112: =SUM(CB112:CD112) -> 2 | CF112: =CA112+CE112 -> 7 | CG112: genügend | CH112: genügend | CM112: =SUM(CF112) -> 7 | CO112: Empfehlung RSI | CR112: 0 | CS112: 2034 | CW112: 5500000 | CX112: 0 | CY112: 200000 | CZ112: 1300000 | DA112: 4000000 | DG112: 5500000 | DH112: 0 | DI112: 200000 | DJ112: 1300000 | DK112: 4000000 | EK112: 2
A113: K 10 | B113: 10 | F113: B; GV-4.2 | G113: A | H113: LP | M113: x | N113: Malters, Anschluss Malters an K 10, Verbesserung Verkehrssicherheit durch Optimierung Verzögerungs- und Beschleunigungsspur | O113: 2500000 | P113: 1 | Q113: 204 | R113: C | S113: 1 | T113: 106 | U113: 106 | V113: B | W113: keine Aktivität | X113: 2500000 | Z113: 2500000 | AA113: 0 | AD113: 0 | AE113: 200000 | AH113: 100000 | AI113: 100000 | AJ113: 2300000 | AK113: 100000 | AL113: 200000 | AM113: 1000000 | AN113: 1000000 | BR113: Evt. auch Topf C möglich mit Baubeginn 2031 | BS113: 1 | BT113: 0 | BU113: 0 | BV113: 0 | BW113: 0 | BX113: 1 | BY113: 3 | BZ113: 0 | CA113: 5 | CB113: 0 | CC113: 0 | CD113: 1 | CE113: 1 | CF113: 6 | CG113: gut | CH113: gut | CM113: 6 | CO113: Empfehlung RSI | CR113: 0 | CS113: 2036 | CW113: 2500000 | CX113: 0 | CY113: 200000 | CZ113: 2300000 | DA113: 0 | DG113: 2500000 | DH113: 0 | DI113: 200000 | DJ113: 2300000 | DK113: 0 | EK113: 2
A114: K 10 | B114: 10 | F114: B; GV-4.3 | G114: A | H114: LP | M114: x | N114: Malters, Einmündung K 4 (Anschluss Blatten), Verbesserung Verkehrssicherheit durch Optimierung Verzögerungs- und Beschleunigungsspur | O114: 2500000 | P114: 1 | Q114: 205 | R114: C | S114: 1 | T114: 107 | U114: 107 | V114: B | W114: keine Aktivität | X114: 2500000 | Z114: 2500000 | AA114: 0 | AD114: 0 | AE114: 200000 | AH114: 100000 | AI114: 100000 | AJ114: 2300000 | AK114: 100000 | AL114: 200000 | AM114: 1000000 | AN114: 1000000 | BR114: Evt. auch Topf C möglich mit Baubeginn 2031 | BS114: 1 | BT114: 0 | BU114: 0 | BV114: 0 | BW114: 0 | BX114: 1 | BY114: 3 | BZ114: 0 | CA114: 5 | CB114: 0 | CC114: 0 | CD114: 1 | CE114: 1 | CF114: 6 | CG114: gut | CH114: gut | CM114: 6 | CO114: Empfehlung RSI | CS114: neue Str. | CU114: neue Str. | CW114: 2500000 | CX114: 0 | CY114: 200000 | CZ114: 2300000 | DA114: 0 | DG114: 2500000 | DH114: 0 | DI114: 200000 | DJ114: 2300000 | DK114: 0 | EK114: N | EL114: N | EM114: j | EN114: GHK: W | EO114: 4600
A115: K 10 | B115: 10 | G115: L | K115: RW | N115: Wolhusen, Aufhebung Niveauübergang | O115: 15000000 | P115: 4/5 | Q115: 104 | R115: B | S115: 4 | T115: 108 | U115: 108 | V115: B | W115: in Planung | X115: 15000000 | Z115: 15000000 | AA115: 300000 | AD115: 300000 | AE115: 1700000 | AF115: 500000 | AG115: 200000 | AH115: 500000 | AI115: 500000 | AJ115: 6000000 | AM115: 1000000 | AN115: 5000000 | AO115: 7000000 | AP115: End | BS115: 0 | BT115: 0 | BU115: 2 | BV115: 2 | BW115: -2 | BX115: 0 | BY115: 2 | BZ115: 0 | CA115: =SUM(BS115:BZ115) -> 4 | CB115: 0 | CC115: 1 | CD115: 2 | CE115: =SUM(CB115:CD115) -> 3 | CF115: =CA115+CE115 -> 7 | CG115: genügend | CH115: genügend | CM115: =SUM(CF115) -> 7 | CO115: Umfahrung Wolhusen Süd | DB115: =SUM(Z115) -> 15000000 | DC115: =SUM(AA115) -> 300000 | DD115: =SUM(AE115) -> 1700000 | DE115: =SUM(AJ115) -> 6000000 | DF115: =SUM(AO115) -> 7000000 | DV115: =SUM(Z115) -> 15000000 | DW115: =SUM(AA115) -> 300000 | DX115: =SUM(AE115) -> 1700000 | DY115: =SUM(AJ115) -> 6000000 | DZ115: =SUM(AO115) -> 7000000
A116: K 10 | B116: 10 | G116: L | K116: RE | M116: x | N116: Entlebuch/Hasle, Entlebuch Dorf (exkl.) – Farbschachen – Dorf Hasle (exkl.), Radverkehrsanlage, Massnahme offen, in Koordination Sanierung Strassen und Sanierung Kunstbauten | O116: 3100000 | P116: 4 | Q116: 207 | R116: C | S116: 4 | T116: 109 | U116: 109 | V116: B | W116: keine Aktivität | X116: 3100000 | Z116: 3300000 | AA116: 0 | AD116: 0 | AE116: 200000 | AH116: 100000 | AI116: 100000 | AJ116: 3100000 | AK116: 100000 | AM116: 1500000 | AN116: 1500000 | BS116: 2 | BT116: 2 | BU116: 0 | BV116: 0 | BW116: 0 | BX116: 1 | BY116: 1 | BZ116: 0 | CA116: =SUM(BS116:BZ116) -> 6 | CB116: 1 | CC116: 1 | CD116: 1 | CE116: =SUM(CB116:CD116) -> 3 | CF116: =CA116+CE116 -> 9 | CG116: genügend | CH116: genügend | CN116: =SUM(CF116) -> 9 | CO116: RRK | DB116: =SUM(Z116) -> 3300000 | DC116: =SUM(AA116) -> 0 | DD116: =SUM(AE116) -> 200000 | DE116: =SUM(AJ116) -> 3100000 | DF116: =SUM(AO116) -> 0 | DV116: 3300000 | DW116: 0 | DX116: 200000 | DY116: 3100000 | DZ116: 0
A117: K 11 | G117: L | K117: WW | N117: Willisau/Alberswil, Optimierung Gesamtverkehrssystem in Abstimmung Bestvariante ZMB Umfahrung Schötz, Planung | Q117: neu | S117: 2 | T117: 110 | U117: 110 | V117: B | Z117: 400000 | AA117: 0 | AE117: 0 | AJ117: 400000 | AK117: 100000 | AL117: 100000 | AM117: 100000 | AN117: 100000 | BS117: 0 | BT117: 0 | BU117: 1 | BV117: 3 | BW117: 0 | BX117: 1 | BY117: 3 | BZ117: 1 | CA117: =SUM(BS117:BZ117) -> 9 | CB117: 0 | CC117: 1 | CD117: 2 | CE117: =SUM(CB117:CD117) -> 3 | CF117: =CA117+CE117 -> 12 | CO117: Ergebnis ZMB Umfahrung Schötz | DB117: 400000 | DC117: 0 | DD117: 0 | DE117: 400000 | DF117: 0 | EA117: =SUM(Z117) -> 400000 | EB117: =SUM(AA117) -> 0 | EC117: =SUM(AE117) -> 0 | ED117: =SUM(AJ117) -> 400000 | EE117: =SUM(AO117) -> 0
A118: K 11 | G118: L | K118: WW | N118: Nebikon/Altishofen/Dagmersellen, Optimierung Gesamtverkehrssystem in Abstimmung Bestvariante ZMB Umfahrung Schötz, Planung | Q118: neu | S118: 2 | T118: 111 | U118: 111 | V118: B | Z118: 400000 | AA118: 0 | AE118: 0 | AJ118: 400000 | AK118: 100000 | AL118: 100000 | AM118: 100000 | AN118: 100000 | BS118: 0 | BT118: 0 | BU118: 1 | BV118: 3 | BW118: 0 | BX118: 1 | BY118: 3 | BZ118: 1 | CA118: =SUM(BS118:BZ118) -> 9 | CB118: 0 | CC118: 1 | CD118: 2 | CE118: =SUM(CB118:CD118) -> 3 | CF118: =CA118+CE118 -> 12 | CO118: Ergebnis ZMB Umfahrung Schötz | DB118: 400000 | DC118: 0 | DD118: 0 | DE118: 400000 | DF118: 0 | EA118: 400000 | EB118: 0 | EC118: 0 | ED118: 400000 | EE118: 0
A119: K 11/43 | B119: 11.1 | G119: L | K119: WW | M119: 10574 11074 | N119: Schötz, Einmündung Oberdorfstrasse – Einmündung K 43, Optimierung Strassenraum, Radverkehrsanalgen, Sanierung Knoten, Anpassen Bushaltestellen in Koordination Sanierung Strasse | O119: 11000000 | P119: 2 | Q119: 106 | R119: B | S119: 2 | T119: 112 | U119: 112 | V119: B | W119: in Planung | X119: 11000000 | Z119: 4000000 | AA119: 300000 | AD119: 300000 | AE119: 300000 | AF119: 200000 | AG119: 100000 | AJ119: 3400000 | AK119: 2400000 | AL119: 1000000 | AP119: rap | BR119: Koordination mit Umfahrung Alberswil - Schötz Plan Nr. 107 | BS119: 3 | BT119: 3 | BU119: 1 | BV119: 0 | BW119: 0 | BX119: 0 | BY119: 1 | BZ119: 1 | CA119: =SUM(BS119:BZ119) -> 9 | CB119: 2 | CC119: 1 | CD119: 2 | CE119: =SUM(CB119:CD119) -> 5 | CF119: =CA119+CE119 -> 14 | CG119: gut | CH119: gut | CL119: =SUM(CF119) -> 14 | CO119: Zustand Strasse | CR119: 2.1 | CS119: 2014 | CT119: 2 | CU119: 2015 | CV119: 1, U | DB119: 4000000 | DC119: 300000 | DD119: 300000 | DE119: 3400000 | DF119: 0 | EA119: 4000000 | EB119: 300000 | EC119: 300000 | ED119: 3400000 | EE119: 0 | EK119: 2 | EL119: 2 | EM119: j | EN119: GK: W | EO119: 51000
A120: K 12 | B120: 12 | G120: L | I120: SM | K120: RW | M120: x | N120: Neuenkirch/Ruswil, Dorf Hellbühl (exkl.) – Einmündung Neumüli/Rütimattstrasse (inkl.), Anpassung geometrisches Normalprofil der Kantonsstrasse in Koordination Sanierung Strasse | O120: 10000000 | P120: 5 | Q120: 109 | R120: B | S120: 5 | T120: 113 | U120: 113 | V120: B | W120: in Planung | X120: 10000000 | Z120: 16000000 | AA120: 300000 | AD120: 300000 | AE120: 700000 | AF120: 200000 | AG120: 300000 | AH120: 200000 | AJ120: =SUM(AK120:AN120) -> 5000000 | AL120: 500000 | AM120: 1500000 | AN120: 3000000 | AO120: 10000000 | AP120: GED | BS120: 1 | BT120: 0 | BU120: 0 | BV120: 0 | BW120: 0 | BX120: 2 | BY120: 2 | BZ120: 0 | CA120: =SUM(BS120:BZ120) -> 5 | CB120: 2 | CC120: 0 | CD120: 1 | CE120: =SUM(CB120:CD120) -> 3 | CF120: =CA120+CE120 -> 8 | CG120: genügend | CH120: genügend | CM120: =SUM(CF120) -> 8 | CO120: zu schmale Fahrbahn | CR120: 0.2 - 1.8 | CV120: best. | DB120: 16000000 | DC120: 300000 | DD120: 700000 | DE120: 5000000 | DF120: 10000000 | DV120: =SUM(Z120) -> 16000000 | DW120: =SUM(AA120) -> 300000 | DX120: =SUM(AE120) -> 700000 | DY120: =SUM(AJ120) -> 5000000 | DZ120: =SUM(AO120) -> 10000000 | EK120: N | EO120: 5 - 10'000
A121: K 12 / 34 | B121: 12.1 | G121: L | K121: RW | N121: Ruswil, Zentrum, neues Verkehrskonzept, Kreuzung K 12– Spyrweg – Einm. K 34, Planung | Q121: neu | S121: 5 | T121: 114 | U121: 114 | V121: B | Z121: 500000 | AA121: =SUM(AB121:AD121) -> 0 | AD121: 0 | AE121: 0 | AJ121: =SUM(AK121:AN121) -> 500000 | AK121: 100000 | AL121: 200000 | AM121: 200000 | BS121: 0 | BT121: 2 | BU121: 1 | BV121: 2 | BW121: 0 | BX121: 1 | BY121: 1 | BZ121: 2 | CA121: 9 | CB121: 0 | CC121: 1 | CD121: 2 | CE121: 3 | CF121: 12 | DB121: 500000 | DC121: 0 | DD121: 0 | DE121: 500000 | DF121: 0 | DV121: =SUM(Z121) -> 500000 | DW121: =SUM(AA121) -> 0 | DX121: =SUM(AE121) -> 0 | DY121: =SUM(AJ121) -> 500000 | DZ121: =SUM(AO121) -> 0
A122: K 12/34 a | B122: 12.1 | G122: L | K122: RW | M122: x | N122: Ruswil, Einmündung K 12 – Einmündung Under Neuhus, Optimierung Einmündung in K 12, Anpassung Bushaltestellen an das BehiG, Anpassung geometrisches Normalprofil mit Massnahmen für den Langsamverkehr | O122: 2100000 | P122: 5 | Q122: 209 | R122: C | S122: 5 | T122: 115 | U122: 115 | V122: B | W122: in Planung | X122: 2100000 | Z122: 3500000 | AA122: 200000 | AD122: 200000 | AE122: 300000 | AH122: 100000 | AI122: 200000 | AJ122: 3000000 | AL122: 1500000 | AM122: 1500000 | AP122: UER | BS122: 1 | BT122: 3 | BU122: 0 | BV122: 0 | BW122: 0 | BX122: 1 | BY122: 1 | BZ122: 2 | CA122: 8 | CB122: 3 | CC122: 0 | CD122: 1 | CE122: 4 | CF122: 12 | CG122: gut | CH122: gut | CL122: =SUM(CF122) -> 12 | CO122: Zustand Strasse | CR122: 0.7 | CS122: 2030 | CT122: 0.7 | CU122: 2030 | CV122: 2, schwach befahren | DB122: 3500000 | DC122: 200000 | DD122: 300000 | DE122: 3000000 | DF122: 0 | DV122: 3500000 | DW122: 200000 | DX122: 300000 | DY122: 3000000 | DZ122: 0 | EK122: 3 | EL122: 3 | EM122: n | EO122: k.A.
A123: K 13 | B123: 13 | D123: A; ÖV-11.1c B; ÖV-10.2 | G123: Stadt | H123: LP | M123: x | N123: Luzern, Kasernenplatz (exkl.) – Gütsch, Optimierung Gesamtverkehrssystem, Massnahmen für den öffentlichen und den Langsamverkehr in Koordination Sanierung Strasse | O123: 2100000 | P123: 1 | Q123: 111 | R123: B | S123: 1 | T123: 116 | U123: 116 | V123: B | W123: in Planung | X123: 2100000 | Z123: 2900000 | AA123: 0 | AD123: 0 | AE123: 300000 | AG123: 100000 | AH123: 200000 | AJ123: 2600000 | AK123: 1000000 | AL123: 1600000 | AP123: Stadt | BS123: 3 | BT123: 3 | BU123: 2 | BV123: 0 | BW123: 0 | BX123: 1 | BY123: 3 | BZ123: -1 | CA123: =SUM(BS123:BZ123) -> 11 | CB123: 2 | CC123: 3 | CD123: 3 | CE123: =SUM(CB123:CD123) -> 8 | CF123: =CA123+CE123 -> 19 | CG123: sehr gut | CH123: sehr gut | CM123: =SUM(CF123) -> 19 | CO123: Aggloprogramm 2G Liste A, öV-Bericht (Inbetreibnahme Buslinie 3) | CR123: 1.5 | CS123: nicht berechenbar | CW123: =SUM(Z123) -> 2900000 | CX123: =SUM(AA123) -> 0 | CY123: =SUM(AE123) -> 300000 | CZ123: =SUM(AJ123) -> 2600000 | DA123: =SUM(AO123) -> 0 | DG123: =SUM(Z123) -> 2900000 | DH123: =SUM(AA123) -> 0 | DI123: =SUM(AE123) -> 300000 | DJ123: =SUM(AJ123) -> 2600000 | DK123: =SUM(AO123) -> 0
A124: K 13/15 | B124: 13.1 | C124: A; M 18.2a4 | D124: A; ÖV-11.1k A; ÖV-6.1c | E124: B; ÖV-9.1c | F124: A; GV-1.2 Teilprojekt | G124: A | H124: LP | M124: 10922 | N124: Emmen, Sprengiplatz mit Zufahrten K 13 bis Einmündung Weiherstrasse und Zufahrt K 15 bis Autobahnanschluss Emmen Nord (exkl.), Optimierung Gesamtverkehrssystem, Radverkehrsanlagen und Massnahmen für den öffentlichen Verkehr in Abstimmung mit Umbau Autobahnanschluss Emmen-Nord (z.B. 3/4-Anschluss, Federführung Astra) und Siedlungsentwicklung | O124: 23500000 | P124: 3 | Q124: 113 | R124: B | S124: 3 | T124: 117 | U124: 117 | V124: B | W124: in Planung | X124: 23500000 | Z124: 16000000 | AA124: 700000 | AD124: 700000 | AE124: 1300000 | AF124: 200000 | AG124: 300000 | AH124: 200000 | AI124: 600000 | AJ124: 14000000 | AK124: 4000000 | AL124: 4000000 | AM124: 6000000 | AP124: Bu | BS124: 3 | BT124: 3 | BU124: 3 | BV124: 0 | BW124: 0 | BX124: 1 | BY124: 2 | BZ124: 1 | CA124: =SUM(BS124:BZ124) -> 13 | CB124: 2 | CC124: 3 | CD124: 3 | CE124: =SUM(CB124:CD124) -> 8 | CF124: =CA124+CE124 -> 21 | CG124: sehr gut | CH124: sehr gut | CM124: =SUM(CF124) -> 21 | CO124: abhängig Projekt ASTRA, Aggloprogramm | CR124: 1.7 / 1.4 | CS124: 2017 / 2020 | CT124: 1.8 / 1.1 | CU124: 2017 / 2023 | CV124: 1, 2, U | CW124: 16000000 | CX124: 700000 | CY124: 1300000 | CZ124: 14000000 | DA124: 0 | DG124: 16000000 | DH124: 700000 | DI124: 1300000 | DJ124: 14000000 | DK124: 0 | EK124: 2 | EL124: 2 | EM124: j | EN124: GHK : L, R, S | EO124: 3500
A125: K 13 | B125: 13 | G125: L | I125: SM | M125: 10043 | N125: Knutwil, Einmündung K 44 – Galerie, Erstellen Radverkehrsanlage in Koordination Sanierung Strasse | O125: 2600000 | P125: 5 | Q125: 210 | R125: C | S125: 5 | T125: 118 | U125: 118 | V125: B | W125: teilweise als BVD realisiert | X125: 2600000 | Z125: 2900000 | AA125: 50000 | AD125: 50000 | AE125: 150000 | AH125: 100000 | AI125: 50000 | AJ125: 2700000 | AK125: 100000 | AM125: 1300000 | AN125: 1300000 | BS125: 1 | BT125: 1 | BU125: 0 | BV125: 0 | BW125: 0 | BX125: 0 | BY125: 1 | BZ125: 1 | CA125: 4 | CB125: 1 | CC125: 1 | CD125: 1 | CE125: 3 | CF125: 7 | CG125: gut | CH125: gut | CN125: =SUM(CF125) -> 7 | CR125: 1.5 | CS125: 2020 | CT125: 1.6 | CU125: 2019 | CV125: 3 | DB125: =SUM(Z125) -> 2900000 | DC125: =SUM(AA125) -> 50000 | DD125: =SUM(AE125) -> 150000 | DE125: =SUM(AJ125) -> 2700000 | DF125: =SUM(AO125) -> 0 | DL125: =SUM(Z125) -> 2900000 | DM125: =SUM(AA125) -> 50000 | DN125: =SUM(AE125) -> 150000 | DO125: =SUM(AJ125) -> 2700000 | DP125: =SUM(AO125) -> 0 | EK125: 2 | EL125: 2 | EM125: j | EO125: 5 - 10'000
A126: K 13/14/18 | B126: 13.1 | G126: L | I126: SM | M126: x | N126: Mauensee/Oberkirch/Schenkon/Sursee, Optimierung Gesamtverkehrssystem (z.B. Teilunterführungen Knoten Bifang und Schlottermilch) mit Massennahmen für den öffentlichen Verkehr (z.B. Busspur, Busschleuse) | O126: 300000 | P126: 5 | Q126: 40 | R126: A | S126: 5 | T126: 119 | U126: 119 | V126: B | W126: in Planung | X126: 300000 | Z126: 50000000 | AA126: 500000 | AD126: 500000 | AE126: 1500000 | AF126: 300000 | AG126: 400000 | AH126: 400000 | AI126: 400000 | AJ126: =SUM(AK126:AN126) -> 5000000 | AL126: 500000 | AM126: 1500000 | AN126: 3000000 | AO126: 43000000 | AP126: MUD | BR126: Weiterführung Planung gemäss Ergebnis ZMB | BS126: 1 | BT126: 1 | BU126: 2 | BV126: 2 | BW126: 0 | BX126: 2 | BY126: 3 | BZ126: 2 | CA126: =SUM(BS126:BZ126) -> 13 | CB126: 0 | CC126: 2 | CD126: 2 | CE126: =SUM(CB126:CD126) -> 4 | CF126: =CA126+CE126 -> 17 | CG126: genügend | CH126: genügend | CN126: =SUM(CF126) -> 17 | CO126: Kantonaler Richtplan öV-Bericht | DB126: 50000000 | DC126: 500000 | DD126: 1500000 | DE126: 5000000 | DF126: 43000000 | DL126: 50000000 | DM126: 500000 | DN126: 1500000 | DO126: 5000000 | DP126: 43000000 | EK126: 2
A127: K 14 | B127: 14 | G127: L | I127: SM | N127: Geuensee/Sursee/Schenkon, öV-Trasse zwischen Sursee Industrie und K 14 Bereich Zollhus, Planung | Q127: neu | S127: 5 | T127: 120 | U127: 120 | V127: B | W127: Antrag VVL | Z127: 300000 | AA127: 0 | AE127: 0 | AJ127: =SUM(AK127:AN127) -> 300000 | AK127: 100000 | AL127: 100000 | AM127: 100000 | BS127: 1 | BT127: 0 | BU127: 3 | BV127: 0 | BW127: 0 | BX127: 0 | BY127: 3 | BZ127: 0 | CA127: 7 | CB127: 0 | CC127: 1 | CD127: 2 | CE127: 3 | CF127: 10 | CO127: öV-Bericht | DB127: 300000 | DC127: 0 | DD127: 0 | DE127: 300000 | DF127: 0 | DL127: 300000 | DM127: 0 | DN127: 0 | DO127: 300000 | DP127: 0
A128: K 15 | B128: 15 | G128: L | H128: LP | I128: SM | M128: x | N128: Hildisrieden/Beromünster, Hildisrieden Dorf (exkl.) – Neudorf (exkl.), Radverkehrsanlage in Koordination Sanierung Strasse | O128: 4000000 | P128: 5 | Q128: 121 | R128: B | S128: 5 | T128: 121 | U128: 121 | V128: B | W128: in Planung | X128: 4000000 | Z128: 5000000 | AA128: 50000 | AD128: 50000 | AE128: 450000 | AG128: 200000 | AH128: 150000 | AI128: 100000 | AJ128: =SUM(AK128:AN128) -> 2500000 | AM128: 500000 | AN128: 2000000 | AO128: 2000000 | BS128: 1 | BT128: 1 | BU128: 0 | BV128: 0 | BW128: 0 | BX128: 2 | BY128: 1 | BZ128: 0 | CA128: 5 | CB128: 1 | CC128: 1 | CD128: 1 | CE128: 3 | CF128: 8 | CG128: genügend | CH128: genügend | CN128: =SUM(CF128) -> 8 | CR128: 1.5 | CS128: 2020 | CT128: 1.4 | CU128: 2021 | CV128: 3 | DB128: 5000000 | DC128: 50000 | DD128: 450000 | DE128: 2500000 | DF128: 2000000 | DL128: 5000000 | DM128: 50000 | DN128: 450000 | DO128: 2500000 | DP128: 2000000 | EK128: 2 | EL128: 2 | EM128: j | EN128: GK: W | EO128: 5 - 10'000
A129: K 16 | B129: 16 | D129: C; ÖV-4 A; ÖV-11.1m | F129: B; GV-5.4 | G129: A | H129: LP | N129: Emmen, Seetalstrasse, Seetalplatz (exkl.) – Einm. Reusseggstrasse, Optimierung Strassenraum, Ersatzneubau Bahnunterführung, Förderung öV, Anlagen Fuss- und Veloverkehr | Q129: neu/213 | S129: 3 | T129: 122 | U129: 122 | V129: B | Z129: =SUM(AA129+AF129+AG129+AH129+AI129+AJ129+AO129) -> 40000000 | AA129: =SUM(AB129:AD129) -> 0 | AD129: 0 | AE129: 1000000 | AG129: 200000 | AH129: 500000 | AI129: 300000 | AJ129: =SUM(AK129:AN129) -> 4000000 | AM129: 1000000 | AN129: 3000000 | AO129: 35000000 | AP129: Bu | BR129: Evt. auch Topf C möglich mit Baubeginn 2031 | CW129: =SUM(Z129) -> 40000000 | CX129: =SUM(AA129) -> 0 | CY129: =SUM(AE129) -> 1000000 | CZ129: =SUM(AJ129) -> 4000000 | DA129: =SUM(AO129) -> 35000000 | DG129: =SUM(Z129) -> 40000000 | DH129: =SUM(AA129) -> 0 | DI129: =SUM(AE129) -> 1000000 | DJ129: =SUM(AJ129) -> 4000000 | DK129: =SUM(AO129) -> 35000000
A130: K 16 | B130: 16 | C130: C; M 3.2 a/b | D130: C; MIV-5 A; ÖV-11.1m | E130: C; MIV-5 | F130: B; MIV-3 | G130: A | H130: LP | M130: 11003 | N130: Emmen, Einmündung K16/31a (Reusseggstrasse) – Emmen Dorf – Kreisel Waltwil, Optimierung Strassenraum, Förderung öV, Anlagen für den Fuss- und Veloverkehr | O130: 2500000 | P130: 3 | Q130: 123/124 | R130: B | S130: 3 | T130: 123 | U130: 123 | V130: B | W130: in Planung | X130: 2500000 | Z130: 40000000 | AA130: 1000000 | AD130: 1000000 | AE130: 1500000 | AF130: 200000 | AG130: 300000 | AH130: 500000 | AI130: 500000 | AJ130: 10000000 | AM130: 1000000 | AN130: 9000000 | AO130: 27500000 | AP130: Bu | BR130: Evt. auch Topf C möglich mit Baubeginn 2031 | BS130: 2 | BT130: 1 | BU130: 2 | BV130: 0 | BW130: 0 | BX130: 2 | BY130: 3 | BZ130: 3 | CA130: =SUM(BS130:BZ130) -> 13 | CB130: 1 | CC130: 3 | CD130: 2 | CE130: =SUM(CB130:CD130) -> 6 | CF130: =CA130+CE130 -> 19 | CG130: gut | CH130: gut | CM130: =SUM(CF130) -> 19 | CO130: Aggloprogramm Ergebnis ZMB | CR130: 1.1 | CS130: 2023 | CT130: 1 | CU130: 2024 | CW130: 40000000 | CX130: 1000000 | CY130: 1500000 | CZ130: 10000000 | DA130: 27500000 | DG130: 40000000 | DH130: 1000000 | DI130: 1500000 | DJ130: 10000000 | DK130: 27500000 | EK130: N | EL130: N | EM130: j | EN130: GK: W | EO130: k.A.
A131: K 16 | B131: 16 | D131: A; ÖV-11.1m | F131: B; ÖV-6.2 | G131: A | H131: LP | N131: Emmen, Kreisel Waltwil – Waldibrücke, Anpassung Bushaltestellen an BehiG, Wendeanlage öV, Anlagen Fuss- und Veloverkehr | Q131: neu | S131: 3 | T131: 124 | U131: 124 | V131: B | Z131: 5000000 | AA131: 0 | AD131: 0 | AE131: 300000 | AF131: 50000 | AG131: 100000 | AH131: 100000 | AI131: 50000 | AJ131: =SUM(AK131:AN131) -> 1700000 | AK131: 100000 | AM131: 600000 | AN131: 1000000 | AO131: 3000000 | AP131: Bu | BS131: 1 | BT131: 1 | BU131: 1 | BV131: 0 | BW131: 0 | BX131: 2 | BY131: 3 | BZ131: 2 | CA131: 10 | CB131: 1 | CC131: 2 | CD131: 2 | CE131: 5 | CF131: 15 | CG131: sehr gut | CH131: sehr gut | CM131: =SUM(CF131) -> 15 | CO131: Aggloprogramm Siedlungsentwicklung | CW131: 5000000 | CX131: 0 | CY131: 300000 | CZ131: 1700000 | DA131: 3000000 | DG131: 5000000 | DH131: 0 | DI131: 300000 | DJ131: 1700000 | DK131: 3000000
A132: K 16 | B132: 16 | G132: L | J132: IS | M132: x | N132: Baldegg, Ortsdurchfahrt (verbleibende Kantonsstrasse), Optimierung Gesamtverkehrssystem mit Verbesserung Verkehrssicherheit und Massnahmen zugunsten Langsamverkehr und öffentlicher Verkehr mit Optimierung Lichtraumprofil Seetalbahn, Planung | O132: 200000 | P132: 3 | Q132: 215 | R132: C | S132: 3 | T132: 125 | U132: 125 | V132: B | W132: keine Aktivität | X132: 200000 | Z132: 200000 | AA132: 0 | AD132: 0 | AE132: 0 | AJ132: =SUM(AK132:AN132) -> 200000 | AK132: 100000 | AL132: 100000 | BR132: Ergebnisse ZMB abwarten | BS132: 0 | BT132: 0 | BU132: 0 | BV132: 0 | BW132: 0 | BX132: 2 | BY132: 2 | BZ132: 2 | CA132: 6 | CB132: 0 | CC132: 0 | CD132: 2 | CE132: 2 | CF132: 8 | CO132: Ergebnis GVK Seetal | CR132: 0.3 | CS132: 2032 | CT132: 0.5 | CU132: 2030 | CV132: 2, best. | DB132: =SUM(Z132) -> 200000 | DC132: =SUM(AA132) -> 0 | DD132: =SUM(AE132) -> 0 | DE132: =SUM(AJ132) -> 200000 | DF132: =SUM(AO132) -> 0 | DQ132: =SUM(Z132) -> 200000 | DR132: =SUM(AA132) -> 0 | DS132: =SUM(AE132) -> 0 | DT132: =SUM(AJ132) -> 200000 | DU132: =SUM(AO132) -> 0 | EK132: 2 | EL132: 2 | EM132: j | EN132: GK: W | EO132: 2500
A133: K 16 | B133: 16 | G133: L | J133: IS | M133: 10998 | N133: Hochdorf, Baldegg, Optimierung resp. Umgestaltung bestehende Bushaltestelle Bahnhof | O133: 700000 | P133: 3 | Q133: 45 | R133: A | S133: 3 | T133: 126 | U133: 126 | V133: B | W133: in Planung | X133: 700000 | Z133: 1800000 | AA133: 100000 | AD133: 100000 | AE133: 100000 | AI133: 100000 | AJ133: 1600000 | AK133: 100000 | AL133: 750000 | AM133: 750000 | BR133: Abhängig Ergebnis ZMB Umfahrung Hochdorf | BS133: 1 | BT133: 0 | BU133: 1 | BV133: 0 | BW133: 0 | BX133: 1 | BY133: 2 | BZ133: 0 | CA133: 5 | CB133: 1 | CC133: 0 | CD133: 2 | CE133: 3 | CF133: 8 | CG133: gut | CH133: gut | CN133: =SUM(CF133) -> 8 | CO133: Ergebnis ZMB Hochdorf abwarten | CR133: 0.1 | CS133: 2036 | CT133: 0.3 | CU133: 2032 | CV133: best. | DB133: 1800000 | DC133: 100000 | DD133: 100000 | DE133: 1600000 | DF133: 0 | DQ133: 1800000 | DR133: 100000 | DS133: 100000 | DT133: 1600000 | DU133: 0 | EK133: N | EL133: N | EM133: j | EN133: GK: S | EO133: k.A.
A134: K 16/16 a | B134: 16.1 | G134: L | J134: IS | M134: x | N134: Hitzkirch, Ortsdurchfahrt Gelfingen, Optimierung Gesamtverkehrssystem mit Verbesserung Verkehrssicherheit und Massnahmen zugunsten Langsamverkehr und öffentlicher Verkehr mit Optimierung Lichtraumprofil Seetalbahn, Planung | O134: 200000 | P134: 3 | Q134: 216 | R134: C | S134: 3 | T134: 127 | U134: 127 | V134: B | W134: keine Aktivität | X134: 200000 | Z134: 200000 | AA134: 0 | AD134: 0 | AE134: 0 | AJ134: 200000 | AK134: 100000 | AL134: 100000 | BS134: 1 | BT134: 1 | BU134: 0 | BV134: 0 | BW134: 0 | BX134: 3 | BY134: 0 | BZ134: 2 | CA134: 7 | CB134: 1 | CC134: 0 | CD134: 1 | CE134: 2 | CF134: 9 | CO134: Ergebnis GVK Seetal | CR134: 1.1 | CS134: 2024 | CV134: 2, best. | DB134: 200000 | DC134: 0 | DD134: 0 | DE134: 200000 | DF134: 0 | DQ134: 200000 | DR134: 0 | DS134: 0 | DT134: 200000 | DU134: 0 | EK134: 2
A135: K 16 | B135: 16 | G135: L | J135: IS | M135: x | N135: Hitzkirch, Ortsdurchfahrt (verbleibende Kantonsstrassen), Optimierung Gesamtverkehrssystem mit Verbesserung Verkehrssicherheit und Massnahmen zugunsten Langsamverkehr und öffentlicher Verkehr in Koordination mit Sanierung Strasse, Planung | O135: 200000 | P135: 3 | Q135: 217 | R135: C | S135: 3 | T135: 128 | U135: 128 | V135: B | W135: keine Aktivität | X135: 200000 | Z135: 200000 | AA135: 0 | AD135: 0 | AE135: 0 | AJ135: 200000 | AM135: 100000 | AN135: 100000 | BS135: 2 | BT135: 2 | BU135: 0 | BV135: 0 | BW135: 0 | BX135: 2 | BY135: 1 | BZ135: 2 | CA135: 9 | CB135: 1 | CC135: 1 | CD135: 1 | CE135: 3 | CF135: 12 | CO135: Umfahrung Hitzkirch | CR135: 0.8 | CS135: 2028 | DB135: 200000 | DC135: 0 | DD135: 0 | DE135: 200000 | DF135: 0 | DQ135: 200000 | DR135: 0 | DS135: 0 | DT135: 200000 | DU135: 0 | EK135: 2
A136: K 16 | B136: 16 | G136: L | J136: IS | M136: x | N136: Hitzkirch, Umfahrung Hitzkirch (exkl. umzuklassierende Kantonsstrassen), Planung | O136: 500000 | P136: 3 | Q136: 218 | R136: C | S136: 3 | T136: 129 | U136: 129 | V136: B | W136: keine Aktivität | X136: 500000 | Z136: 500000 | AA136: 0 | AD136: 0 | AE136: 0 | AJ136: 500000 | AM136: 250000 | AN136: 250000 | BS136: 1 | BT136: 1 | BU136: 0 | BV136: 3 | BW136: -3 | BX136: -2 | BY136: 2 | BZ136: 1 | CA136: 3 | CB136: 0 | CC136: 1 | CD136: 1 | CE136: 2 | CF136: 5 | CO136: Ergebnis GVK Seetal | DB136: 500000 | DC136: 0 | DD136: 0 | DE136: 500000 | DF136: 0 | DQ136: 500000 | DR136: 0 | DS136: 0 | DT136: 500000 | DU136: 0
A137: K 16 | B137: 16 | G137: L | J137: IS | M137: x | N137: Aesch, Dorf, Ortsdurchfahrt, Optimierung Gesamtverkehrssystem mit Verbesserung Verkehrssicherheit und Massnahmen zugunsten Langsamverkehr und öffentlicher Verkehr (z.B. Querungshilfen) | O137: 2900000 | P137: 3 | Q137: 129 | R137: B | S137: 3 | T137: 130 | U137: 130 | V137: B | W137: keine Aktivität | X137: 2900000 | Z137: 3300000 | AA137: 0 | AD137: 0 | AE137: 100000 | AI137: 100000 | AJ137: =SUM(AK137:AN137) -> 1200000 | AK137: 100000 | AL137: 100000 | AN137: 1000000 | AO137: 2000000 | BS137: 1 | BT137: 1 | BU137: 1 | BV137: 0 | BW137: 0 | BX137: 2 | BY137: 1 | BZ137: 3 | CA137: 9 | CB137: 3 | CC137: 1 | CD137: 1 | CE137: 5 | CF137: 14 | CG137: gut | CH137: gut | CL137: =SUM(CF137) -> 14 | CO137: Zustand Strasse Ergebnis GVK Seetal | CR137: 1.9 | CS137: 2016 | CV137: 3 | DB137: 3300000 | DC137: 0 | DD137: 100000 | DE137: 1200000 | DF137: 2000000 | DQ137: 3300000 | DR137: 0 | DS137: 100000 | DT137: 1200000 | DU137: 2000000 | EK137: 2
A138: K16/ 65 a | B138: 16.1 | F138: A; FVV-3.3 | G138: A | H138: LP | M138: x | N138: Emmen/Eschenbach/Inwil, Waldibrücke – Knoten K 16/65 a – Oberhofen, Rad- und Gehweg in Koordination Sanierung Strasse | O138: 2800000 | P138: 3 | Q138: 131 | R138: B | S138: 3 | T138: 131 | U138: 131 | V138: B | W138: keine Aktivität | X138: 2800000 | Z138: =SUM(AA138+AF138+AG138+AH138+AI138+AJ138+AO138) -> 3300000 | AA138: 0 | AD138: 0 | AE138: 300000 | AH138: 100000 | AI138: 200000 | AJ138: =SUM(AK138:AN138) -> 3000000 | AK138: 1000000 | AL138: 2000000 | BS138: 1 | BT138: 3 | BU138: 0 | BV138: 0 | BW138: 0 | BX138: 0 | BY138: 3 | BZ138: 0 | CA138: 7 | CB138: 3 | CC138: 2 | CD138: 1 | CE138: 6 | CF138: 13 | CG138: gut | CH138: gut | CL138: =SUM(CF138) -> 13 | CO138: Zustand Strasse Aggloprogramm Ergebnis GVK Seetal | CV138: 2 | CW138: =SUM(Z138) -> 3300000 | CX138: =SUM(AA138) -> 0 | CY138: =SUM(AE138) -> 300000 | CZ138: =SUM(AJ138) -> 3000000 | DA138: =SUM(AO138) -> 0 | DG138: =SUM(Z138) -> 3300000 | DH138: =SUM(AA138) -> 0 | DI138: =SUM(AE138) -> 300000 | DJ138: =SUM(AJ138) -> 3000000 | DK138: =SUM(AO138) -> 0 | EK138: 2
A139: K 16 a | B139: 16.2 | G139: L | J139: IS | N139: Ermensee, Ortsdurchfahrt, Optimierung Gesamtverkehrssystem mit Verbesserung Verkehrssicherheit und Massnahmen zugunsten Langsamverkehr und öffentlicher Verkehr mit Optimierung Lichtraumprofil Seetalbahn, Planung | O139: 100000 | P139: 3 | Q139: 220 | R139: C | S139: 3 | T139: 132 | U139: 132 | V139: B | W139: keine Aktivität | X139: 100000 | Z139: 100000 | AA139: 0 | AD139: 0 | AE139: 0 | AJ139: =SUM(AK139:AN139) -> 100000 | AN139: 100000 | BS139: 1 | BT139: 1 | BU139: 0 | BV139: 0 | BW139: 0 | BX139: 2 | BY139: 1 | BZ139: 2 | CA139: 7 | CB139: 2 | CC139: 1 | CD139: 0 | CE139: 3 | CF139: 10 | CO139: Umfahrung Hitzkirch | CR139: 2 | CS139: 2015 | CV139: 3 | DB139: =SUM(Z139) -> 100000 | DC139: =SUM(AA139) -> 0 | DD139: =SUM(AE139) -> 0 | DE139: =SUM(AJ139) -> 100000 | DF139: =SUM(AO139) -> 0 | DQ139: =SUM(Z139) -> 100000 | DR139: =SUM(AA139) -> 0 | DS139: =SUM(AE139) -> 0 | DT139: =SUM(AJ139) -> 100000 | DU139: =SUM(AO139) -> 0 | EK139: 2
A140: 17 | B140: 17 | G140: Stadt | H140: LP | N140: Luzern; Löwenplatz – Einm. K 2, Zürichstrasse, Alpenstrasse, Löwenstrasse, Optimierung Strassenraum, Förderung öV und Fuss- und Veloverkehr, Sanierung Bushaltestellen BehiG in Koordination Sanierung Strasse | Q140: neu/133 | S140: 1 | T140: 133 | U140: 133 | V140: B | Z140: 7600000 | AA140: 0 | AE140: 300000 | AH140: 100000 | AI140: 200000 | AJ140: 4300000 | AK140: 200000 | AL140: 100000 | AM140: 1000000 | AN140: 3000000 | AO140: 3000000 | BR140: Planung für AP 5, Sanierung BehiG, Radverkehrsanlage, öV -Förderung - Flamas für Bypass und DBL | BS140: 2 | BT140: 3 | BU140: 2 | BV140: 0 | BW140: 0 | BX140: 1 | BY140: 2 | BZ140: 2 | CA140: 12 | CB140: 2 | CC140: 3 | CD140: 2 | CE140: =SUM(CB140:CD140) -> 7 | CF140: =CA140+CE140 -> 19 | CG140: sehr gut | CH140: sehr gut | CL140: =SUM(CF140) -> 19 | CO140: Zustand Strasse Ergebnis Spange Nord | CW140: =SUM(Z140) -> 7600000 | CX140: =SUM(AA140) -> 0 | CY140: =SUM(AE140) -> 300000 | CZ140: =SUM(AJ140) -> 4300000 | DA140: =SUM(AO140) -> 3000000 | DG140: =SUM(Z140) -> 7600000 | DH140: =SUM(AA140) -> 0 | DI140: =SUM(AE140) -> 300000 | DJ140: =SUM(AJ140) -> 4300000 | DK140: =SUM(AO140) -> 3000000
A141: K 17 | B141: 17 | F141: B; GV-1.4 | G141: Stadt | H141: LP | M141: x | N141: Luzern, Zürichstrasse, Löwenplatz – Einmündung Wesemlinstrasse, Optimierung Gesamtverkehrssystem mit Anpassung und Erneuerung Strassenraum | O141: 200000 | P141: 1 | Q141: 53 | R141: A | S141: 1 | T141: 134 | U141: 134 | V141: B | W141: keine Aktivität | X141: 200000 | Z141: 8700000 | AA141: 50000 | AD141: 50000 | AE141: 350000 | AG141: 50000 | AH141: 200000 | AI141: 100000 | AJ141: =SUM(AK141:AN141) -> 3300000 | AK141: 300000 | AM141: 500000 | AN141: 2500000 | AO141: 5000000 | BR141: Evt. auch Topf C möglich mit Baubeginn 2031 | BS141: 2 | BT141: 0 | BU141: 1 | BV141: 0 | BW141: 0 | BX141: 2 | BY141: 2 | BZ141: 2 | CA141: 9 | CB141: 1 | CC141: 1 | CD141: 3 | CE141: 5 | CF141: 14 | CG141: gut | CH141: gut | CM141: =SUM(CF141) -> 14 | CO141: Aggloprogramm Ergebnis Spange Nord | CR141: 1 | CS141: nicht berechenbar | CW141: 8700000 | CX141: 50000 | CY141: 350000 | CZ141: 3300000 | DA141: 5000000 | DG141: 8700000 | DH141: 50000 | DI141: 350000 | DJ141: 3300000 | DK141: 5000000
A142: K 17 / 31 | B142: 17 | F142: B; GV-1.3 | G142: Stadt | H142: LP | N142: Luzern, Schlossberg, Optimierung Gesamtverkehrssystem mit Massnahmen für öV und Fuss- und Veloverkehr | Q142: neu | S142: 1 | T142: 135 | U142: 135 | V142: B | Z142: 40000000 | AA142: 0 | AD142: 0 | AE142: 1000000 | AG142: 400000 | AH142: 400000 | AI142: 200000 | AJ142: =SUM(AK142:AN142) -> 4000000 | AK142: 500000 | AM142: 500000 | AN142: 3000000 | AO142: 35000000 | BR142: Evt. auch Topf C möglich mit Baubeginn 2031 | BS142: 1 | BT142: 1 | BU142: 2 | BV142: 2 | BW142: 0 | BX142: 2 | BY142: 3 | BZ142: 3 | CA142: 14 | CB142: 2 | CC142: 2 | CD142: 3 | CE142: 7 | CF142: 21 | CG142: sehr gut | CH142: gut | CM142: =SUM(CF142) -> 21 | CO142: Aggloprogramm Ergebnis Spange Nord | CW142: 40000000 | CX142: 0 | CY142: 1000000 | CZ142: 4000000 | DA142: 35000000 | DG142: 40000000 | DH142: 0 | DI142: 1000000 | DJ142: 4000000 | DK142: 35000000
A143: K 17 | B143: 17 | G143: Stadt | H143: LP | N143: Luzern, Maihof, Buswendeschlaufe mit Sanierung Bushaltestellen gemäss BehiG | Q143: neu | S143: 1 | T143: 136 | U143: 136 | V143: B | Z143: 2600000 | AA143: 0 | AE143: 100000 | AI143: 100000 | AJ143: =SUM(AK143:AN143) -> 2500000 | AL143: 1200000 | AM143: 1300000 | BR143: Berücksichtigen Ergebnis Monitoring, Aufnahme in AP 5 | BS143: 1 | BT143: 0 | BU143: 1 | BV143: 0 | BW143: 0 | BX143: 0 | BY143: 3 | BZ143: 0 | CA143: 5 | CB143: 1 | CC143: 1 | CD143: 3 | CE143: 5 | CF143: 10 | CG143: sehr gut | CH143: gut | CM143: =SUM(CF143) -> 10 | CO143: öV-Bericht | CW143: 2600000 | CX143: 0 | CY143: 100000 | CZ143: 2500000 | DA143: 0 | DG143: 2600000 | DH143: 0 | DI143: 100000 | DJ143: 2500000 | DK143: 0
A144: K 17 | B144: 17 | C144: C; M 18.2b1 | D144: B; ÖV-11.1e | E144: B; ÖV-9.1j | F144: B; ÖV-7.4 | G144: A | H144: LP | M144: 11048 | N144: Ebikon, Grenze Stadt Luzern – Schachenweid (exkl.), Anpassung geometrisches Normalprofil in Koordination Sanierung Strasse | O144: 7500000 | P144: 1 | Q144: 222 | R144: C | S144: 1 | T144: 137 | U144: 137 | V144: B | W144: teilweise realisiert mit Projekt Rbus-Standard | X144: 7500000 | Z144: 8000000 | AA144: 100000 | AD144: 100000 | AE144: 400000 | AG144: 50000 | AH144: 150000 | AI144: 200000 | AJ144: =SUM(AK144:AN144) -> 2000000 | AM144: 500000 | AN144: 1500000 | AO144: 5500000 | BR144: Evt. auch Topf C möglich mit Baubeginn 2031 | BS144: 1 | BT144: 0 | BU144: 1 | BV144: 0 | BW144: 0 | BX144: 0 | BY144: 2 | BZ144: 0 | CA144: 4 | CB144: 2 | CC144: 1 | CD144: 3 | CE144: 6 | CF144: 10 | CG144: genügend | CH144: genügend | CM144: =SUM(CF144) -> 10 | CO144: Aggloprogramm 2G Liste B | CR144: 1.9 | CS144: 2013 | CT144: 1.8 | CU144: 2017 | CV144: best. | CW144: 8000000 | CX144: 100000 | CY144: 400000 | CZ144: 2000000 | DA144: 5500000 | DG144: 8000000 | DH144: 100000 | DI144: 400000 | DJ144: 2000000 | DK144: 5500000 | EK144: 2 | EL144: 4 | EO144: k.A.
A145: K 17 | B145: 17 | C145: B; M 18.2b3 | D145: A; ÖV-11.1f A; ÖV-6.2b | G145: A | H145: LP | M145: 10562 | N145: Ebikon, Einmündung Schlösslistrasse (inkl.) – Einmündung Weichlenstrasse, Optimierung Gesamtverkehrssystem mit Anpassung und Erneuerung Strassenraum in Koordination Sanierung Strasse | O145: 12000000 | P145: 1 | Q145: 54 | R145: A | S145: 1 | T145: 138 | U145: 138 | V145: B | W145: in Planung | X145: 12000000 | Z145: 12000000 | AA145: 500000 | AD145: 500000 | AE145: 700000 | AF145: 100000 | AG145: 200000 | AH145: 200000 | AI145: 200000 | AJ145: =SUM(AK145:AN145) -> 10800000 | AK145: 1000000 | AL145: 4000000 | AM145: 5300000 | AN145: 500000 | AP145: MUD | BR145: Entscheid Gemeinde Ebikon zu Vorhaben Plan Nr. 55 offen | BS145: 2 | BT145: 3 | BU145: 2 | BV145: 0 | BW145: 0 | BX145: 2 | BY145: 2 | BZ145: 3 | CA145: 14 | CB145: 2 | CC145: 3 | CD145: 3 | CE145: 8 | CF145: 22 | CG145: sehr gut | CH145: sehr gut | CL145: =SUM(CF145) -> 22 | CO145: Aggloprogramm 2G Liste A, Zustand Strasse | CR145: 2 | CS145: 2015 | CT145: 1.8 | CU145: 2016 | CV145: 1 | CW145: 12000000 | CX145: 500000 | CY145: 700000 | CZ145: 10800000 | DA145: 0 | DG145: 12000000 | DH145: 500000 | DI145: 700000 | DJ145: 10800000 | DK145: 0 | EK145: 2 | EL145: N | EM145: j | EN145: GK: W | EO145: 4000
A146: K 17 | B146: 17 | G146: A | H146: LP | N146: Ebikon, Einmündung Schlösslistrasse (inkl.) – Einmündung Dorfstrasse, Bauvorhaben Dritter, Untertunnelung Kantonsstrasse in Koordination mit Kantonsstrassenprojekt Optimierung Gesamtverkehrssystem (Bauvorhaben Dritter) | O146: 0 | P146: 1 | Q146: 55 | R146: A | S146: 1 | T146: 139 | U146: 139 | V146: B | W146: in Planung | X146: 0 | Z146: 0 | AA146: 0 | AD146: 0 | AE146: 0 | AJ146: 0 | AL146: 0 | AM146: 0 | AP146: MUD | CO146: Bauvorhaben Dirtter | CW146: 0 | CX146: 0 | CY146: 0 | CZ146: 0 | DA146: 0 | DG146: 0 | DH146: 0 | DI146: 0 | DJ146: 0 | DK146: 0
A147: K 17 | B147: 17 | C147: C; M 18.2b4 | F147: B; GV-3.3 | G147: A | H147: LP | M147: x | N147: Ebikon/Dierikon, Einmündung Weichlerenstrasse (exkl.) – Einmündung Industriestrasse, Optimierung Gesamtverkehrssystem (z.B. Verkehrsmanagement mit Lichtsignalanlagen und Dosierung Zufahrten) mit Massnahmen für den öffentlichen Verkehr | O147: 4300000 | P147: 1 | Q147: 134 | R147: B | S147: 1 | T147: 140 | U147: 140 | V147: B | W147: in Planung | X147: 4300000 | Z147: 6600000 | AA147: 100000 | AD147: 100000 | AE147: 500000 | AG147: 100000 | AH147: 200000 | AI147: 200000 | AJ147: =SUM(AK147:AN147) -> 1500000 | AM147: 500000 | AN147: 1000000 | AO147: 4500000 | BR147: Evt. auch Topf C möglich mit Baubeginn 2031 | BS147: 1 | BT147: 0 | BU147: 2 | BV147: 0 | BW147: 0 | BX147: 0 | BY147: 3 | BZ147: 1 | CA147: 7 | CB147: 2 | CC147: 1 | CD147: 3 | CE147: 6 | CF147: 13 | CG147: gut | CH147: gut | CM147: =SUM(CF147) -> 13 | CO147: öV-Bericht Luzern Ost | CR147: 2.1 | CS147: nicht berechenbar | CT147: 2 | CU147: 2016 | CV147: 1 | CW147: 6600000 | CX147: 100000 | CY147: 500000 | CZ147: 1500000 | DA147: 4500000 | DG147: 6600000 | DH147: 100000 | DI147: 500000 | DJ147: 1500000 | DK147: 4500000 | EK147: L | EL147: L | EM147: j | EN147: GK:W | EO147: 8500
A148: K 17 | B148: 17 | C148: C; M 18.2b4 | F148: B; GV-3.4 | G148: A | H148: LP | M148: x | N148: Root, Optimierung Gesamtverkehrssystem (z.B. Verkehrsmanagement mit Dosierung Zufahrten) mit Massnahmen für den öffentlichen Verkehr | O148: 2800000 | P148: 1 | Q148: 135 | R148: B | S148: 1 | T148: 141 | U148: 141 | V148: B | W148: in Planung | X148: 2800000 | Z148: 4700000 | AA148: 100000 | AD148: 100000 | AE148: 400000 | AF148: 100000 | AG148: 100000 | AH148: 100000 | AI148: 100000 | AJ148: 1200000 | AK148: 200000 | AM148: 500000 | AN148: 500000 | AO148: 3000000 | BR148: Evt. auch Topf C möglich mit Baubeginn 2031 | BS148: 1 | BT148: 0 | BU148: 2 | BV148: 0 | BW148: 0 | BX148: 0 | BY148: 3 | BZ148: 1 | CA148: 7 | CB148: 1 | CC148: 1 | CD148: 3 | CE148: 5 | CF148: 12 | CG148: gut | CH148: gut | CM148: =SUM(CF148) -> 12 | CO148: öV-Bericht Luzern Ost | CR148: 2.1 | CS148: 2015 | CT148: 1.7 | CU148: 2018 | CV148: best. | CW148: 4700000 | CX148: 100000 | CY148: 400000 | CZ148: 1200000 | DA148: 3000000 | DG148: 4700000 | DH148: 100000 | DI148: 400000 | DJ148: 1200000 | DK148: 3000000 | EK148: 3 | EL148: 2 | EM148: n | EO148: k.A.
A149: K 18 | B149: 18 | G149: L | I149: SM | M149: 10039 | N149: Sursee, Kreuzung Münsterstrasse, Umgestaltung Knoten | O149: 2900000 | P149: 5 | Q149: 139 | R149: B | S149: 5 | T149: 142 | U149: 142 | V149: B | W149: in Planung | X149: 2900000 | Z149: 2900000 | AA149: 50000 | AD149: 50000 | AE149: 250000 | AG149: 100000 | AH149: 100000 | AI149: 50000 | AJ149: 2600000 | AK149: 1000000 | AL149: 1600000 | BS149: 3 | BT149: 0 | BU149: 1 | BV149: 0 | BW149: 0 | BX149: 2 | BY149: 1 | BZ149: -1 | CA149: =SUM(BS149:BZ149) -> 6 | CB149: 2 | CC149: 0 | CD149: 2 | CE149: =SUM(CB149:CD149) -> 4 | CF149: =CA149+CE149 -> 10 | CG149: gut | CH149: gut | CN149: =SUM(CF149) -> 10 | CO149: politischer Entscheid | CR149: 1.7 | CS149: 2017 | CT149: 1.5 | CU149: 2019 | CV149: U | DB149: =SUM(Z149) -> 2900000 | DC149: =SUM(AA149) -> 50000 | DD149: =SUM(AE149) -> 250000 | DE149: =SUM(AJ149) -> 2600000 | DF149: =SUM(AO149) -> 0 | DL149: =SUM(Z149) -> 2900000 | DM149: =SUM(AA149) -> 50000 | DN149: =SUM(AE149) -> 250000 | DO149: =SUM(AJ149) -> 2600000 | DP149: =SUM(AO149) -> 0 | EK149: N | EL149: N | EM149: j | EN149: GK: W | EO149: 22000
A150: K 18 | G150: L | I150: SM | N150: Schenkon, Kreisel Zellburg – Kreisel Zellfeld – Chommlibachbrücke, Radverkehrsanlagen, Optimierung Bushaltestellen gemäss BehiG, Sanierung Strasse | Q150: neu | S150: 5 | T150: 143 | U150: 143 | V150: B | Z150: 4400000 | AA150: 0 | AE150: 100000 | AI150: 100000 | AJ150: 1300000 | AK150: 200000 | AL150: 100000 | AN150: 1000000 | AO150: 3000000 | BR150: Entscheid Gemeinde bezüglich Umgestaltung Knoten Zellburg Voraussetzung Start Planung | BS150: 3 | BT150: 2 | BU150: 1 | BV150: 0 | BW150: 0 | BX150: 2 | BY150: 2 | BZ150: 2 | CA150: 12 | CB150: 1 | CC150: 1 | CD150: 1 | CE150: 3 | CF150: 15 | CG150: gut | CH150: gut | CM150: =SUM(CF150) -> 15 | CO150: RRK | DB150: 4400000 | DC150: 0 | DD150: 100000 | DE150: 1300000 | DF150: 3000000 | DL150: 4400000 | DM150: 0 | DN150: 100000 | DO150: 1300000 | DP150: 3000000
A151: K 18 | B151: 18 | G151: L | I151: SM | M151: 10494.1 | N151: Schenkon, Chommlibachbrücke – Tann, Erstellen Radverkehrsanlage und Ausbau Strasse in Koordination Sanierung Strasse | O151: 9600000 | P151: 5 | Q151: 140 | R151: B | S151: 5 | T151: 144 | U151: 144 | V151: B | W151: in Planung | X151: 9600000 | Z151: 14000000 | AA151: 600000 | AD151: 600000 | AE151: 400000 | AF151: 200000 | AG151: 100000 | AH151: 100000 | AJ151: 4000000 | AL151: 500000 | AM151: 1500000 | AN151: 2000000 | AO151: 9000000 | AP151: rap | BS151: 3 | BT151: 2 | BU151: 0 | BV151: 0 | BW151: 0 | BX151: 2 | BY151: 1 | BZ151: 0 | CA151: 8 | CB151: 2 | CC151: 1 | CD151: 1 | CE151: 4 | CF151: 12 | CG151: gut | CH151: gut | CJ151: =SUM(CF151) -> 12 | CO151: Bewilligungsverfahren Zustand Strasse | CR151: 1.2 | CS151: 2022 | CV151: 2 | DB151: 14000000 | DC151: 600000 | DD151: 400000 | DE151: 4000000 | DF151: 9000000 | DL151: 14000000 | DM151: 600000 | DN151: 400000 | DO151: 4000000 | DP151: 9000000 | EK151: 2
A152: K 18 | B152: 18 | G152: L | K152: WW | M152: x | N152: Zell, Hüswil – Grenze Kanton Bern, Radverkehrsanlage (Massnahme offen) mit Anpassung geometrisches Normalprofil in Koordination Sanierung Strasse | O152: 5000000 | P152: 2 | Q152: 224 | R152: C | S152: 2 | T152: 145 | U152: 145 | V152: B | W152: keine Aktivität | X152: 5000000 | Z152: 5000000 | AA152: 0 | AD152: 0 | AE152: 200000 | AH152: 100000 | AI152: 100000 | AJ152: 2800000 | AK152: 100000 | AM152: 500000 | AN152: 2200000 | AO152: 2000000 | BS152: 1 | BT152: 1 | BU152: 0 | BV152: 0 | BW152: 0 | BX152: 1 | BY152: 1 | BZ152: 0 | CA152: 4 | CB152: 1 | CC152: 1 | CD152: 1 | CE152: 3 | CF152: 7 | CG152: genügend | CH152: genügend | CM152: =SUM(CF152) -> 7 | CO152: RRK | CR152: 1.3 | CS152: 2022 | CV152: 3 | DB152: 5000000 | DC152: 0 | DD152: 200000 | DE152: 2800000 | DF152: 2000000 | EA152: =SUM(Z152) -> 5000000 | EB152: =SUM(AA152) -> 0 | EC152: =SUM(AE152) -> 200000 | ED152: =SUM(AJ152) -> 2800000 | EE152: =SUM(AO152) -> 2000000 | EK152: 3
A153: K 19 | B153: 19 | C153: B; M 18.2d | D153: A; ÖV-11.1h | F153: B; GV-3.2 | G153: A | H153: LP | M153: x | N153: Kriens, Mattenhof, Umgestaltung Kreisel in Kreuzung mit Lichtsignalanlage und Massnahmen für den öffentlichen Verkehr auf der Ringstrasse | O153: 6800000 | P153: 1 | Q153: 141 | R153: B | S153: 1 | T153: 146 | U153: 146 | V153: B | W153: in Planung | X153: 6800000 | Z153: 10000000 | AA153: 300000 | AD153: 300000 | AE153: =SUM(AF153:AI153) -> 400000 | AF153: 200000 | AG153: 100000 | AH153: 100000 | AJ153: =SUM(AK153:AN153) -> 4500000 | AL153: 500000 | AM153: 1000000 | AN153: 3000000 | AO153: 4800000 | AP153: MUD | BR153: auch Zuordnung Topf C möglich. Haltung Stadt Kriens bezüglich Industriestrasse und Bauherrschaft Plan Nr. 142 offen resp. unklar | BS153: 1 | BT153: 1 | BU153: 2 | BV153: 1 | BW153: 0 | BX153: 1 | BY153: 2 | BZ153: 1 | CA153: 9 | CB153: 1 | CC153: 2 | CD153: 2 | CE153: 5 | CF153: 14 | CG153: gut | CH153: gut | CM153: =SUM(CF153) -> 14 | CO153: Aggloprogramm Luzern Süd | CR153: 0.2 | CS153: 2031 | CW153: =SUM(Z153) -> 10000000 | CX153: =SUM(AA153) -> 300000 | CY153: =SUM(AE153) -> 400000 | CZ153: =SUM(AJ153) -> 4500000 | DA153: =SUM(AO153) -> 4800000 | DG153: =SUM(Z153) -> 10000000 | DH153: =SUM(AA153) -> 300000 | DI153: =SUM(AE153) -> 400000 | DJ153: =SUM(AJ153) -> 4500000 | DK153: =SUM(AO153) -> 4800000 | EK153: 2
A154: K 19 | B154: 19 | C154: B; M 18.2d | D154: A; ÖV-11.1h | F154: B; GV-3.2 | G154: A | H154: LP | M154: x | N154: Kriens, Ringstrasse Mitte, Anpassungen Einmündungen Graben-/Motelstrasse infolge Optimierung Industriestrasse (Bauvorhaben Dritter) | O154: 0 | P154: 1 | Q154: 142 | R154: B | S154: 1 | T154: 147 | U154: 147 | V154: B | W154: in Planung | X154: 0 | Z154: 0 | AA154: 0 | AD154: 0 | AE154: 0 | AJ154: 0 | AL154: 0 | AM154: 0 | AN154: 0 | AP154: MUD | BR154: auch Zuordnung Topf C möglich. Stadt Kriens bestreitet BVD und sieht Zuständigkeit Vorhaben beim Kanton Luzern. | BS154: 1 | BT154: 0 | BU154: 0 | BV154: 1 | BW154: 0 | BX154: 1 | BY154: 3 | BZ154: 2 | CA154: 8 | CB154: 0 | CC154: 2 | CD154: 2 | CE154: 4 | CF154: 12 | CG154: gut | CH154: gut | CM154: 12 | CO154: Aggloprogramm Luzern Süd | CR154: 0.2 | CS154: 2031 | CW154: 0 | CX154: 0 | CY154: 0 | CZ154: 0 | DA154: 0 | DG154: 0 | DH154: 0 | DI154: 0 | DJ154: 0 | DK154: 0 | EK154: 2
A155: K 19 | B155: 19 | C155: B; M 18.2d | D155: A; ÖV-11.1h | F155: B; GV-3.2 | G155: A | H155: LP | M155: x | N155: Kriens, Ringstrasse Mitte, Massnahmen für den öffentlichen Verkehr (Busspur, Haltestellen) in Koordination mit Bauvorhaben Dritter Optimierung Einmündungen Graben-/Motelstrasse | O155: 2900000 | P155: 1 | Q155: 143 | R155: B | S155: 1 | T155: 148 | U155: 148 | V155: B | W155: in Planung | X155: 2900000 | Z155: 4500000 | AA155: 200000 | AD155: 200000 | AE155: 300000 | AF155: 100000 | AG155: 100000 | AH155: 100000 | AJ155: 1500000 | AM155: 500000 | AN155: 1000000 | AO155: 2500000 | AP155: MUD | BR155: auch Zuordnung Topf C möglich.Haltung Stadt Kriens bezüglich Industriestrasse und Bauherrschaft Plan Nr. 142 offen resp. unklar | BS155: 1 | BT155: 1 | BU155: 2 | BV155: 1 | BW155: 0 | BX155: 1 | BY155: 2 | BZ155: 1 | CA155: 9 | CB155: 0 | CC155: 2 | CD155: 2 | CE155: 4 | CF155: 13 | CG155: gut | CH155: gut | CM155: 13 | CO155: Aggloprogramm Luzern Süd | CR155: 3.7 | CS155: nicht berechenbar | CT155: 2.8 | CU155: 2009 | CV155: 1 | CW155: 4500000 | CX155: 200000 | CY155: 300000 | CZ155: 1500000 | DA155: 2500000 | DG155: 4500000 | DH155: 200000 | DI155: 300000 | DJ155: 1500000 | DK155: 2500000 | EK155: L | EL155: L | EM155: n | EO155: 16000
A156: K 19 | B156: 19 | C156: B; M 18.2d | D156: A; ÖV-11.1h | F156: B; GV-3.2 | G156: A | H156: LP | M156: x | N156: Kriens, Ringstrasse Hinterschlund, öV-Förderung (Busspur, Haltestellen) in Koordination mit Bauvorhaben Dritter Optimierungen Einmündungen Gemeindestrassen | O156: 1100000 | P156: 1 | Q156: 225 | R156: C | S156: 1 | T156: 149 | U156: 149 | V156: B | W156: in Planung | X156: 1100000 | Z156: 3000000 | AA156: 0 | AD156: 0 | AE156: 200000 | AG156: 100000 | AH156: 100000 | AJ156: =SUM(AK156:AN156) -> 1300000 | AM156: 300000 | AN156: 1000000 | AO156: 1500000 | AP156: MUD | BS156: 1 | BT156: 0 | BU156: 2 | BV156: 1 | BW156: 0 | BX156: 1 | BY156: 2 | BZ156: 1 | CA156: 8 | CB156: 0 | CC156: 2 | CD156: 2 | CE156: 4 | CF156: 12 | CG156: gut | CH156: gut | CM156: 12 | CO156: Aggloprogramm Luzern Süd | CR156: 0.4 | CS156: 2029 | CW156: 3000000 | CX156: 0 | CY156: 200000 | CZ156: 1300000 | DA156: 1500000 | DG156: 3000000 | DH156: 0 | DI156: 200000 | DJ156: 1300000 | DK156: 1500000
A157: K 19 a | B157: 19.2 | C157: B; M 18.2d | D157: A; ÖV-11.1h | F157: B; ÖV-7.7 | G157: A | H157: LP | M157: x | N157: Kriens/Horw, Schlund – Kreisel Merkur, Massnahmen für den öffentlichen Verkehr, Optimierung Lichtsignalanlagen, Verkehrsmanagement | O157: 2900000 | P157: 1 | Q157: 226 | R157: C | S157: 1 | T157: 150 | U157: 150 | V157: B | W157: in Planung | X157: 2900000 | Z157: 3800000 | AA157: 0 | AD157: 0 | AE157: 300000 | AG157: 100000 | AH157: 100000 | AI157: 100000 | AJ157: =SUM(AK157:AN157) -> 1500000 | AM157: 500000 | AN157: 1000000 | AO157: 2000000 | BR157: Evt. auch Topf C möglich mit Baubeginn 2031 | BS157: 1 | BT157: 0 | BU157: 2 | BV157: 0 | BW157: 0 | BX157: 1 | BY157: 3 | BZ157: -1 | CA157: 6 | CB157: 2 | CC157: 2 | CD157: 2 | CE157: 6 | CF157: 12 | CG157: gut | CH157: gut | CM157: 12 | CO157: Aggloprogramm 2G Liste A | CR157: 1.8 | CS157: 2016 | CT157: 1.4 | CU157: 2020 | CV157: best. | CW157: 3800000 | CX157: 0 | CY157: 300000 | CZ157: 1500000 | DA157: 2000000 | DG157: 3800000 | DH157: 0 | DI157: 300000 | DJ157: 1500000 | DK157: 2000000 | EK157: N | EL157: N | EM157: n | EO157: 22000
A158: K 19 a | B158: 19.2 | F158: B; FVV-4.1 | G158: A | H158: LP | N158: Horw/Grenze Kriens, Kreisel Bahnhof – Kreisel Steinibach, Verbesserung Veloführung Ringstrasse mit Unterführung | Q158: neu | S158: 1 | T158: 151 | U158: 151 | V158: B | Z158: =SUM(AA158+AF158+AG158+AH158+AI158+AJ158+AO158) -> 10000000 | AA158: =SUM(AB158:AD158) -> 0 | AD158: 0 | AE158: 300000 | AG158: 100000 | AH158: 100000 | AI158: 100000 | AJ158: =SUM(AK158:AN158) -> 1700000 | AM158: 500000 | AN158: 1200000 | AO158: 8000000 | BR158: Evt. auch Topf C möglich mit Baubeginn 2031 | BS158: 3 | BT158: 1 | BU158: 0 | BV158: 0 | BW158: 0 | BX158: 1 | BY158: 3 | BZ158: 1 | CA158: 9 | CB158: 1 | CC158: 1 | CD158: 2 | CE158: 4 | CF158: 13 | CG158: gut | CH158: gut | CM158: 13 | CO158: Aggloprogramm Luzern Süd | CW158: 10000000 | CX158: 0 | CY158: 300000 | CZ158: 1700000 | DA158: 8000000 | DG158: 10000000 | DH158: 0 | DI158: 300000 | DJ158: 1700000 | DK158: 8000000
A159: K 19 a | B159: 19.2 | F159: B; FVV-4.2 | G159: A | H159: LP | N159: Horw, Kreisel Bahnhof – Kreisel Merkur, Verbesserung Veloführung Ringstrasse | Q159: neu | S159: 1 | T159: 152 | U159: 152 | V159: B | Z159: =SUM(AA159+AF159+AG159+AH159+AI159+AJ159+AO159) -> 7600000 | AA159: =SUM(AB159:AD159) -> 0 | AD159: 0 | AE159: 300000 | AG159: 100000 | AH159: 100000 | AI159: 100000 | AJ159: =SUM(AK159:AN159) -> 1300000 | AM159: 300000 | AN159: 1000000 | AO159: 6000000 | BR159: Evt. auch Topf C möglich mit Baubeginn 2031 | BS159: 1 | BT159: 1 | BX159: 2 | BY159: 3 | BZ159: 2 | CA159: =SUM(BS159:BZ159) -> 9 | CB159: 1 | CC159: 1 | CD159: 2 | CE159: =SUM(CB159:CD159) -> 4 | CF159: 13 | CG159: gut | CH159: gut | CM159: 13 | CO159: Aggloprogramm Luzern Süd | CW159: 7600000 | CX159: 0 | CY159: 300000 | CZ159: 1300000 | DA159: 6000000 | DG159: 7600000 | DH159: 0 | DI159: 300000 | DJ159: 1300000 | DK159: 6000000
A160: K 32 | B160: 32 | C160: A; M 18.2e | F160: B; GV-3.2 | G160: Stadt | H160: LP | M160: 10567 | N160: Luzern, Allmend Abschnitt Einmündung Zihlmattweg (exkl.) – Kreisel Waldegg, Massnahmen für den öffentlichen Verkehr (z.B. Busspur) mit Berücksichtigung Entwicklung Luzern Süd | O160: 2800000 | P160: 1 | Q160: 147 | R160: B | S160: 1 | T160: 153 | U160: 153 | V160: B | W160: in Planung | X160: 2800000 | Z160: 4000000 | AA160: 200000 | AD160: 200000 | AE160: 300000 | AG160: 100000 | AH160: 200000 | AJ160: =SUM(AK160:AN160) -> 2000000 | AM160: 500000 | AN160: 1500000 | AO160: 1500000 | AP160: MUD | BR160: Auch Zuordnung Topf C möglich. In Koordination mit Plan Nr. 141 | BS160: 1 | BT160: 0 | BU160: 2 | BV160: 0 | BW160: 0 | BX160: 1 | BY160: 3 | BZ160: 0 | CA160: 7 | CB160: 1 | CC160: 2 | CD160: 2 | CE160: 5 | CF160: 12 | CG160: gut | CH160: gut | CM160: 12 | CO160: Projektüberarbeitung infolge Luzern Süd Aggloprogramm 1G Liste A | CR160: 2.3 | CS160: 2013 | CT160: 1.7 | CU160: 2018 | CV160: 2 | CW160: 4000000 | CX160: 200000 | CY160: 300000 | CZ160: 2000000 | DA160: 1500000 | DG160: 4000000 | DH160: 200000 | DI160: 300000 | DJ160: 2000000 | DK160: 1500000 | EK160: N | EL160: N | EM160: n | EO160: k.A.
A161: K 33 a | B161: 33.2 | C161: A; M 17.6 | D161: B; ÖV-11.1b | E161: A; ÖV-9.2 | F161: B; ÖV-7.5 | G161: Stadt | H161: LP | N161: Luzern, Kreuzstutz – Tschuopis, Planung über den gesamten Strassenzug für den Gesamtverkehr. Betriebs- und Gestaltungskonzept inkl. BehiG und RBus-Massnahmen in Koordination mit Sanierung Strasse | O161: 400000 | P161: 1 | Q161: 68 | R161: A | S161: 1 | T161: 154 | U161: 154 | V161: B | W161: in Planung | X161: 400000 | Z161: 23000000 | AA161: 200000 | AD161: 200000 | AE161: 1300000 | AF161: 500000 | AG161: 100000 | AH161: 500000 | AI161: 200000 | AJ161: =SUM(AK161:AN161) -> 6500000 | AL161: 500000 | AM161: 1000000 | AN161: 5000000 | AO161: 15000000 | AP161: Stadt | BR161: Evt. auch Topf C möglich mit Baubeginn 2031 Im AP 4 sind 30 Mio. enthalten - Delta für Massnahmen ausserhalb Strassenraum | BS161: 2 | BT161: 0 | BU161: 1 | BV161: -1 | BW161: 0 | BX161: 0 | BY161: 2 | BZ161: 2 | CA161: 6 | CB161: 0 | CC161: 2 | CD161: 2 | CE161: 4 | CF161: 10 | CG161: gut | CH161: gut | CM161: 10 | CO161: Aggloprogramm, öV-Bericht | CW161: 23000000 | CX161: 200000 | CY161: 1300000 | CZ161: 6500000 | DA161: 15000000 | DG161: 23000000 | DH161: 200000 | DI161: 1300000 | DJ161: 6500000 | DK161: 15000000
A162: K 36 | B162: 36 | G162: L | K162: RE | M162: 10334.5 | N162: Escholzmatt-Marbach/Flühli, Under Tendli – Hinder Lamm | O162: 13000000 | P162: 4 | Q162: 228 | R162: C | S162: 4 | T162: 155 | U162: 155 | V162: B | W162: keine Aktivität | X162: 13000000 | Z162: 13000000 | AA162: 0 | AD162: 0 | AE162: 700000 | AH162: 200000 | AI162: 500000 | AJ162: =SUM(AK162:AN162) -> 2300000 | AK162: 200000 | AL162: 100000 | AN162: 2000000 | AO162: 10000000 | BR162: Gemäss Antrag Region West - auch Realisierung im Topf C möglich | BS162: 1 | BT162: 1 | BU162: 0 | BV162: 0 | BW162: 0 | BX162: 1 | BY162: 1 | BZ162: 0 | CA162: 4 | CB162: 3 | CC162: 1 | CD162: 0 | CE162: 4 | CF162: 8 | CG162: genügend | CH162: genügend | CL162: =SUM(CF162) -> 8 | CO162: Zustand Strasse Kunstbauten grosse Schäden | CR162: 3.1 | CS162: 2006 | DB162: =SUM(Z162) -> 13000000 | DC162: =SUM(AA162) -> 0 | DD162: =SUM(AE162) -> 700000 | DE162: =SUM(AJ162) -> 2300000 | DF162: =SUM(AO162) -> 10000000 | DV162: =SUM(Z162) -> 13000000 | DW162: =SUM(AA162) -> 0 | DX162: =SUM(AE162) -> 700000 | DY162: =SUM(AJ162) -> 2300000 | DZ162: =SUM(AO162) -> 10000000 | EK162: 4
A163: 36 | B163: 36 | G163: L | K163: RE | N163: Flühli, Kirche Sörenberg bis Schwändelibrücke, Sanierung Strasse, Optimierung Strassenraum, Anpassen Bushaltestellen an BehiG | Q163: neu | S163: 4 | T163: 156 | U163: 156 | V163: B | Z163: =SUM(AA163+AF163+AG163+AH163+AI163+AJ163+AO163) -> 5500000 | AA163: =SUM(AB163:AD163) -> 0 | AD163: 0 | AE163: 300000 | AH163: 100000 | AI163: 200000 | AJ163: =SUM(AK163:AN163) -> 5200000 | AK163: 200000 | AM163: 2500000 | AN163: 2500000 | BR163: Antrag KSI für Aufnahme - Begründung dringlicher Sanierungsbedarf - Topf B | BS163: 1 | BT163: 0 | BU163: 1 | BV163: 0 | BW163: 0 | BX163: 2 | BY163: 1 | BZ163: 2 | CA163: 7 | CB163: 3 | CC163: 0 | CD163: 0 | CE163: 3 | CF163: 10 | CG163: gut | CH163: genügend | CL163: =SUM(CF163) -> 10 | CO163: Zustand Strasse | DB163: 5500000 | DC163: 0 | DD163: 300000 | DE163: 5200000 | DF163: 0 | DV163: 5500000 | DW163: 0 | DX163: 300000 | DY163: 5200000 | DZ163: 0
A164: 42 | B164: 42 | G164: L | K164: WW | N164: Zell/Fischbach, Grastrocknungsanlage – Dorf Fischbach (exkl.), Sanierung Strasse, Optimierung Strassenraum, Anpassen Bushaltestellen an BehiG | Q164: neu | S164: 2 | T164: 157 | U164: 157 | V164: B | Z164: 2500000 | AA164: 0 | AD164: 0 | AE164: =SUM(AF164:AI164) -> 100000 | AI164: 100000 | AJ164: 1400000 | AK164: 100000 | AL164: 100000 | AN164: 1200000 | AO164: 1000000 | BR164: Antrag KSI für Aufnahme - Begründung dringlicher Sanierungsbedarf 2. Priorität - Topf B | BS164: 1 | BT164: 0 | BU164: 0 | BV164: 0 | BW164: 0 | BX164: 1 | BY164: 1 | BZ164: 0 | CA164: 3 | CB164: 3 | CC164: 0 | CD164: 1 | CE164: 4 | CF164: 7 | CG164: gut | CH164: gut | CL164: =SUM(CF164) -> 7 | CO164: Zustand Strasse | DB164: 2500000 | DC164: 0 | DD164: 100000 | DE164: 1400000 | DF164: 1000000 | EA164: =SUM(Z164) -> 2500000 | EB164: =SUM(AA164) -> 0 | EC164: =SUM(AE164) -> 100000 | ED164: =SUM(AJ164) -> 1400000 | EE164: =SUM(AO164) -> 1000000
A165: K 42 | B165: 42 | G165: L | K165: WW | M165: x | N165: Altbüron/Pfaffnau (St.Urban), Erstellen Rad- und Gehweg in Koordination Sanierung Strasse | O165: 10700000 | P165: 2 | Q165: 149 | R165: B | S165: 2 | T165: 158 | U165: 158 | V165: B | W165: in Planung | X165: 10700000 | Z165: 11000000 | AA165: 100000 | AD165: 100000 | AE165: 600000 | AF165: 200000 | AG165: 200000 | AH165: 200000 | AJ165: 10300000 | AK165: 800000 | AL165: 3000000 | AM165: 5000000 | AN165: 1500000 | BS165: 1 | BT165: 1 | BU165: 0 | BV165: 0 | BW165: 0 | BX165: 1 | BY165: 1 | BZ165: 0 | CA165: 4 | CB165: 2 | CC165: 1 | CD165: 0 | CE165: 3 | CF165: 7 | CG165: genügend | CH165: genügend | CM165: =SUM(CF165) -> 7 | CO165: RRK | CR165: 0.8 | CS165: 2033 | CT165: 1 | CU165: 2030 | CV165: 3 | DB165: 11000000 | DC165: 100000 | DD165: 600000 | DE165: 10300000 | DF165: 0 | EA165: 11000000 | EB165: 100000 | EC165: 600000 | ED165: 10300000 | EE165: 0 | EK165: 4 | EL165: 3 | EM165: j | EN165: GK: R, S | EO165: < 5000
A166: K 44 | B166: 44 | G166: L | I166: SM | M166: x | N166: Wauwil/Mauensee, Kaltbach, Einm. Bergstrasse Wauwil – Rankhof Kaltbach, Rad- und Gehweg | O166: 6000000 | P166: 2/5 | Q166: 235 | R166: C | S166: 2/5 | T166: 159 | U166: 159 | V166: B | W166: keine Aktivität | X166: 6000000 | Z166: 8000000 | AA166: 0 | AD166: 0 | AE166: 100000 | AI166: 100000 | AJ166: 1900000 | AK166: 100000 | AL166: 100000 | AN166: 1700000 | AO166: 6000000 | BS166: 1 | BT166: 1 | BU166: 0 | BV166: 0 | BW166: 0 | BX166: 0 | BY166: 1 | BZ166: 1 | CA166: 4 | CB166: 0 | CC166: 1 | CD166: 1 | CE166: 2 | CF166: 6 | CG166: genügend | CH166: ungenügend | CM166: =SUM(CF166) -> 6 | CO166: RRK | CV166: 3 | DB166: 8000000 | DC166: 0 | DD166: 100000 | DE166: 1900000 | DF166: 6000000 | DL166: =SUM(Z166) -> 8000000 | DM166: =SUM(AA166) -> 0 | DN166: =SUM(AE166) -> 100000 | DO166: =SUM(AJ166) -> 1900000 | DP166: =SUM(AO166) -> 6000000
A167: K 44 | B167: 44 | G167: L | I167: SM | M167: x | N167: Wauwil, Dorf, Erhöhung Verkehrssicherheit in Koordination Sanierung Strasse | O167: 900000 | P167: 2 | Q167: 236 | R167: C | S167: 2 | T167: 160 | U167: 160 | V167: B | W167: keine Aktivität | X167: 900000 | Z167: 1100000 | AA167: 0 | AD167: 0 | AE167: 50000 | AI167: 50000 | AJ167: 550000 | AK167: 50000 | AN167: 500000 | AO167: 500000 | BS167: 1 | BU167: 0 | BV167: 0 | BW167: 0 | BX167: 2 | BY167: 1 | BZ167: 1 | CA167: 5 | CB167: 1 | CC167: 1 | CD167: 0 | CE167: 2 | CF167: 7 | CG167: gut | CH167: gut | CM167: =SUM(CF167) -> 7 | CO167: RRK | CR167: 1.1 | CS167: 2025 | CT167: 1.2 | CU167: 2024 | CV167: Angebot schwach bef. Strasse | DB167: 1100000 | DC167: 0 | DD167: 50000 | DE167: 550000 | DF167: 500000 | DL167: 1100000 | DM167: 0 | DN167: 50000 | DO167: 550000 | DP167: 500000 | EK167: 2 | EL167: 2 | EM167: j | EN167: GK: W | EO167: < 5000
A168: K 44 | B168: 44 | G168: L | K168: WW | M168: x | N168: Egolzwil, Dorf, Optimierung Verkehrssystem Kantonsstrasse mit Erhöhung Verkehrssicherheit in Koordination Sanierung Strasse | O168: 2100000 | P168: 2 | Q168: 237 | R168: C | S168: 2 | T168: 161 | U168: 161 | V168: B | W168: keine Aktivität | X168: 2100000 | Z168: 2100000 | AA168: 0 | AD168: 0 | AE168: 50000 | AI168: 50000 | AJ168: 1050000 | AK168: 50000 | AN168: 1000000 | AO168: 1000000 | BS168: 2 | BT168: 0 | BU168: 0 | BV168: 0 | BW168: 0 | BX168: 2 | BY168: 1 | BZ168: 1 | CA168: 6 | CB168: 1 | CC168: 0 | CD168: 0 | CE168: 1 | CF168: 7 | CG168: gut | CH168: gut | CN168: =SUM(CF168) -> 7 | CR168: 0.6 | CS168: 2034 | CT168: 0.9 | CU168: 2028 | CV168: teilweise best. | DB168: 2100000 | DC168: 0 | DD168: 50000 | DE168: 1050000 | DF168: 1000000 | EA168: =SUM(Z168) -> 2100000 | EB168: =SUM(AA168) -> 0 | EC168: =SUM(AE168) -> 50000 | ED168: =SUM(AJ168) -> 1050000 | EE168: =SUM(AO168) -> 1000000 | EK168: 2 | EL168: 2 | EM168: n | EO168: k.A.
A169: K 44 | B169: 44 | G169: L | I169: SM | K169: WW | N169: Mauensee/Wauwil/Egolzwil/Nebikon, neue Bushaltestellen aufgrund neue Buslinie 80 | Q169: neu | S169: 2 | T169: 222 | U169: 162 | V169: B | W169: Antrag VVL | Z169: 2200000 | AA169: 0 | AE169: 200000 | AH169: 50000 | AI169: 150000 | AJ169: 2000000 | BS169: 0 | BT169: 0 | BU169: 1 | BV169: 0 | BW169: 0 | BX169: 0 | BY169: 2 | BZ169: 1 | CA169: 4 | CB169: 1 | CC169: 2 | CD169: 0 | CE169: 3 | CF169: 7 | CG169: gut | CH169: gut | CM169: =SUM(CF169) -> 7 | CO169: öV-Bericht | DB169: =SUM(Z169) -> 2200000 | DC169: =SUM(AA169) -> 0 | DD169: =SUM(AE169) -> 200000 | DE169: =SUM(AJ169) -> 2000000 | DF169: =SUM(AO169) -> 0 | DL169: =SUM(Z169) -> 2200000 | DM169: =SUM(AA169) -> 0 | DN169: =SUM(AE169) -> 200000 | DO169: =SUM(AJ169) -> 2000000 | DP169: =SUM(AO169) -> 0
A170: 45 | B170: 45 | G170: L | L170: RZ | N170: Reiden, Langnau Innerorts, Sanierung Strasse, Optimierung Strassenraum, Anpassen Bushaltestellen an BehiG | Q170: neu | S170: 2 | T170: 162 | U170: 163 | V170: B | Z170: 3500000 | AA170: 0 | AD170: 0 | AE170: 300000 | AH170: 100000 | AI170: 200000 | AJ170: 3200000 | AK170: 200000 | AM170: 2000000 | AN170: 1000000 | BR170: Antrag KSI für Aufnahme - Begründung dringlicher Sanierungsbedarf 2. Priorität - Topf B | BS170: 1 | BT170: 2 | BU170: 1 | BV170: 0 | BW170: 0 | BX170: 2 | BY170: 1 | BZ170: 2 | CA170: 9 | CB170: 3 | CC170: 0 | CD170: 0 | CE170: 3 | CF170: 12 | CG170: gut | CH170: gut | CL170: =SUM(CF170) -> 12 | CO170: Zustand Strasse, Kunstbauen RRK | DB170: 3500000 | DC170: 0 | DD170: 300000 | DE170: 3200000 | DF170: 0 | EF170: =SUM(Z170) -> 3500000 | EG170: =SUM(AA170) -> 0 | EH170: =SUM(AE170) -> 300000 | EI170: =SUM(AJ170) -> 3200000 | EJ170: =SUM(AO170) -> 0
A171: K 45 | B171: 45 | G171: L | L171: RZ | M171: x | N171: Reiden, Langnau – Richenthal, Rad- und Gehweg mit Teilausbau Strasse in Koordination Sanierung Strasse | O171: 6000000 | P171: 2 | Q171: 150 | R171: B | S171: 2 | T171: 163 | U171: 164 | V171: B | W171: keine Aktivität | X171: 6000000 | Z171: 6000000 | AA171: 0 | AD171: 0 | AE171: 300000 | AG171: 150000 | AH171: 150000 | AJ171: 5700000 | AL171: 700000 | AM171: 2500000 | AN171: 2500000 | AP171: ROA | BS171: 1 | BT171: 1 | BU171: 0 | BV171: 0 | BW171: 0 | BX171: 2 | BY171: 1 | BZ171: 0 | CA171: 5 | CB171: 3 | CC171: 1 | CD171: 0 | CE171: 4 | CF171: 9 | CG171: genügend | CH171: genügend | CM171: =SUM(CF171) -> 9 | CO171: RRK | CR171: 1.7 | CS171: 2018 | CT171: 1.3 | CU171: 2022 | CV171: 2, 3 | DB171: 6000000 | DC171: 0 | DD171: 300000 | DE171: 5700000 | DF171: 0 | EF171: 6000000 | EG171: 0 | EH171: 300000 | EI171: 5700000 | EJ171: 0 | EK171: 3 | EL171: 2 | EM171: j | EN171: GK: W | EO171: 4100
A172: K 46 | B172: 46 | G172: L | L172: RZ | M172: 10598 | N172: Reiden, Mehlsecken – Grenze Kanton Aargau, optimieren Gesamtverkehrssystem, Erstellen Radverkehrsanlage in Koordiation Sanierung Strasse | O172: 500000 | P172: 2 | Q172: 240 | R172: C | S172: 2 | T172: 164 | U172: 165 | V172: B | W172: keine Aktivität | X172: 500000 | Z172: 9000000 | AA172: 0 | AD172: 0 | AE172: 500000 | AG172: 200000 | AH172: 200000 | AI172: 100000 | AJ172: =SUM(AK172:AN172) -> 4500000 | AL172: 500000 | AM172: 2000000 | AN172: 2000000 | AO172: 4000000 | AP172: ROA | BS172: 2 | BT172: 1 | BU172: 0 | BV172: 2 | BW172: 0 | BX172: 1 | BY172: 1 | BZ172: 2 | CA172: 9 | CB172: 2 | CC172: 2 | CD172: 1 | CE172: 5 | CF172: 14 | CG172: gut | CH172: gut | CM172: =SUM(CF172) -> 14 | CO172: RRK Aggloprogramm Kanton AG | CR172: 0.4 | CS172: 2035 | CT172: 0.6 | CU172: 2031 | CV172: 3 | DB172: 9000000 | DC172: 0 | DD172: 500000 | DE172: 4500000 | DF172: 4000000 | EF172: =SUM(Z172) -> 9000000 | EG172: =SUM(AA172) -> 0 | EH172: =SUM(AE172) -> 500000 | EI172: =SUM(AJ172) -> 4500000 | EJ172: =SUM(AO172) -> 4000000 | EK172: 3 | EL172: 2 | EM172: n | EO172: 9900
A173: K 47 | B173: 47 | G173: L | I173: SM | N173: Buttisholz, Fürti bis Gemeindegrenze Oberkirch, Sanierung Strasse, Optimierung Strassenraum, Anpassen Bushaltestellen an BehiG | Q173: neu | S173: 5 | T173: 165 | U173: 166 | V173: B | Z173: 4000000 | AA173: 0 | AD173: 0 | AE173: 300000 | AH173: 100000 | AI173: 200000 | AJ173: =SUM(AK173:AN173) -> 3700000 | AK173: 1700000 | AL173: 2000000 | BR173: Antrag KSI für Aufnahme - Begründung dringlicher Sanierungsbedarf 3. Priorität - Topf B | BS173: 0 | BT173: 0 | BU173: 0 | BV173: 0 | BW173: 0 | BX173: 2 | BY173: 2 | BZ173: 1 | CA173: 5 | CB173: 3 | CC173: 0 | CD173: 1 | CE173: 4 | CF173: 9 | CG173: genügend | CH173: genügend | CL173: =SUM(CF173) -> 9 | CO173: Zustand Strasse | DB173: 4000000 | DC173: 0 | DD173: 300000 | DE173: 3700000 | DF173: 0 | DL173: =SUM(Z173) -> 4000000 | DM173: =SUM(AA173) -> 0 | DN173: =SUM(AE173) -> 300000 | DO173: =SUM(AJ173) -> 3700000 | DP173: =SUM(AO173) -> 0
A174: K 48 | B174: 48 | G174: L | I174: SM | M174: x | N174: Sempach, Knoten Luzerner-/Seeland-/Hubelstrasse (Bauvorhaben Dritter) | O174: 0 | P174: 5 | Q174: 153 | R174: B | S174: 5 | T174: 166 | U174: 167 | V174: B | W174: keine Aktivität | X174: 0 | Z174: 0 | AA174: 0 | AD174: 0 | AE174: 0 | AJ174: =SUM(AK174:AN174) -> 0 | AK174: 0 | BS174: 1 | BT174: 0 | BU174: 0 | BV174: 0 | BW174: 0 | BX174: 2 | BY174: 1 | BZ174: 0 | CA174: 4 | CB174: 2 | CC174: 0 | CD174: 1 | CE174: 3 | CF174: 7 | CG174: gut | CH174: gut | CN174: =SUM(CF174) -> 7 | CO174: Verkehrssicherheit Kantonsstrasse gewährleistet | CR174: 1.1 | CS174: 2024 | CT174: 1 | CU174: 2026 | CV174: 3 | DB174: 0 | DC174: 0 | DD174: 0 | DE174: 0 | DF174: 0 | DL174: 0 | DM174: 0 | DN174: 0 | DO174: 0 | DP174: 0 | EK174: 2 | EL174: 2 | EM174: n | EO174: k.A.
A175: K 57 a | B175: 57.2 | G175: L | M175: x | N175: Rickenbach, Rüchlig – Weiler Niderwil, Neubau Trottoir in Koordiation Sanierung Strasse | O175: 800000 | P175: 5 | Q175: 245 | R175: C | S175: 5 | T175: 167 | U175: 168 | V175: B | W175: keine Aktivität | X175: 800000 | Z175: 900000 | AA175: 0 | AD175: 0 | AE175: 0 | AJ175: 900000 | AK175: 50000 | AL175: 50000 | AN175: 800000 | BS175: 1 | BT175: 0 | BU175: 0 | BV175: 0 | BW175: 0 | BX175: 0 | BY175: 1 | BZ175: 1 | CA175: 3 | CB175: 1 | CC175: 0 | CD175: 0 | CE175: 1 | CF175: 4 | CG175: genügend | CH175: genügend | CN175: =SUM(CF175) -> 4 | CR175: 0.2 | CS175: 2038 | CT175: 0.2 | CU175: 2038 | DB175: 900000 | DC175: 0 | DD175: 0 | DE175: 900000 | DF175: 0 | DL175: =SUM(Z175) -> 900000 | DM175: =SUM(AA175) -> 0 | DN175: =SUM(AE175) -> 0 | DO175: =SUM(AJ175) -> 900000 | DP175: =SUM(AO175) -> 0 | EK175: N | EL175: N | EM175: j | EN175: GK: W GHK: W, R, S | EO175: 3500
A176: K 58 | B176: 58 | G176: L | J176: IS | M176: x | N176: Hitzkirch, Mosen Bergweg – Einmündung alte Schwarzenbachstrasse, Erstellen Trottoir in Koordiation Sanierung Strasse | O176: 400000 | P176: 3 | Q176: 247 | R176: C | S176: 3 | T176: 168 | U176: 169 | V176: B | W176: keine Aktivität | X176: 400000 | Z176: 1100000 | AA176: 0 | AD176: 0 | AE176: 100000 | AH176: 50000 | AI176: 50000 | AJ176: 1000000 | AK176: 100000 | AL176: 900000 | BS176: 1 | BT176: 0 | BU176: 0 | BV176: 0 | BW176: 0 | BX176: 0 | BY176: 1 | BZ176: 1 | CA176: 3 | CB176: 1 | CC176: 0 | CD176: 0 | CE176: 1 | CF176: 4 | CG176: genügend | CH176: genügend | CN176: 4 | CR176: 1.1 | CS176: 2028 | CT176: 0.8 | CU176: 2032 | DB176: 1100000 | DC176: 0 | DD176: 100000 | DE176: 1000000 | DF176: 0 | DQ176: =SUM(Z176) -> 1100000 | DR176: =SUM(AA176) -> 0 | DS176: =SUM(AE176) -> 100000 | DT176: =SUM(AJ176) -> 1000000 | DU176: =SUM(AO176) -> 0 | EK176: N | EL176: N | EM176: j | EN176: GK: R, W | EO176: k.A.
A177: K 60 | B177: 60 | G177: L | J177: IS | M177: x | N177: Hochdorf/Hohenrain, Hochdorf Dorf (exkl.) – Hohenrain Dorf (exkl.), Rad- und Gehweg, Planung | O177: 100000 | P177: 3 | Q177: 248 | R177: C | S177: 3 | T177: 169 | U177: 170 | V177: B | W177: keine Aktivität | X177: 100000 | Z177: 200000 | AA177: 0 | AD177: 0 | AE177: 0 | AJ177: 200000 | AL177: 100000 | AM177: 100000 | BS177: 1 | BT177: 3 | BU177: 0 | BV177: 0 | BW177: 0 | BX177: 1 | BY177: 2 | BZ177: 0 | CA177: 7 | CB177: 3 | CC177: 1 | CD177: 0 | CE177: 4 | CF177: 11 | CO177: Ergebnis GVK Seetal | CR177: 2.2 | CS177: 2014 | DB177: 200000 | DC177: 0 | DD177: 0 | DE177: 200000 | DF177: 0 | DQ177: 200000 | DR177: 0 | DS177: 0 | DT177: 200000 | DU177: 0 | EK177: 2
A178: K 61 | B178: 61 | G178: L | J178: IS | M178: x | N178: Hohenrain, Abzweigung K 16 – Lieli, Rad- und Gehweg, Anpassen geometrisches Normalprofil inkl. Sanierung Strasse und Bushaltestellen gemäss BehiG | O178: 100000 | P178: 3 | Q178: 249 | R178: C | S178: 3 | T178: 170 | U178: 171 | V178: B | W178: keine Aktivität | X178: 100000 | Z178: 5000000 | AA178: 0 | AD178: 0 | AE178: 400000 | AG178: 200000 | AH178: 100000 | AI178: 100000 | AJ178: 2600000 | AM178: 600000 | AN178: 2000000 | AO178: 2000000 | BS178: 1 | BT178: 1 | BU178: 1 | BV178: 0 | BW178: 0 | BX178: 2 | BY178: 1 | BZ178: 2 | CA178: 8 | CB178: 2 | CC178: 0 | CD178: 0 | CE178: 2 | CF178: 10 | CG178: genügend | CH178: genügend | CL178: =SUM(CF178) -> 10 | CO178: Zustand Strasse Ergebnis GVK Seetal | CR178: 1.3 | CS178: 2025 | DB178: 5000000 | DC178: 0 | DD178: 400000 | DE178: 2600000 | DF178: 2000000 | DQ178: 5000000 | DR178: 0 | DS178: 400000 | DT178: 2600000 | DU178: 2000000 | EK178: 2
A179: K 64 | B179: 64 | G179: L | J179: IS | M179: x | N179: Aesch/Schongau, Abzweigung K 16 – Einmündung Niederschongauerstrasse, Rad- und Gehweg, Planung | O179: 200000 | P179: 3 | Q179: 250 | R179: C | S179: 3 | T179: 171 | U179: 172 | V179: B | W179: keine Aktivität | X179: 200000 | Z179: 200000 | AA179: 0 | AD179: 0 | AE179: 0 | AJ179: 200000 | AM179: 100000 | AN179: 100000 | BS179: 1 | BT179: 0 | BU179: 0 | BV179: 0 | BW179: 0 | BX179: 0 | BY179: 1 | BZ179: 0 | CA179: 2 | CB179: 0 | CC179: 0 | CD179: 0 | CE179: 0 | CF179: 2 | CO179: Ergebnis GVK Seetal | CR179: 0.5 | CS179: 2037 | DB179: 200000 | DC179: 0 | DD179: 0 | DE179: 200000 | DF179: 0 | DQ179: 200000 | DR179: 0 | DS179: 0 | DT179: 200000 | DU179: 0 | EK179: 2
A180: K 65 | B180: 65 | F180: A; ÖV-10 | G180: A | H180: LP | M180: x | N180: Buchrain, Knoten K 65/65c, neue Bushaltestellen | O180: 2000000 | P180: 1 | Q180: 84 | R180: A | S180: 1 | T180: 172 | U180: 173 | V180: B | W180: in Planung | X180: 2000000 | Z180: 2400000 | AA180: 100000 | AD180: 100000 | AE180: 300000 | AF180: 100000 | AG180: 100000 | AH180: 100000 | AJ180: =SUM(AK180:AN180) -> 2000000 | AK180: 1000000 | AL180: 1000000 | BS180: 0 | BT180: 0 | BU180: 0 | BV180: 0 | BW180: 0 | BX180: 1 | BY180: 3 | BZ180: 1 | CA180: 5 | CB180: 0 | CC180: 1 | CD180: 3 | CE180: 4 | CF180: 9 | CG180: gut | CH180: gut | CM180: =SUM(CF180) -> 9 | CO180: öV-Bericht | CR180: 0.5 | CS180: 2027 | CW180: =SUM(Z180) -> 2400000 | CX180: =SUM(AA180) -> 100000 | CY180: =SUM(AE180) -> 300000 | CZ180: =SUM(AJ180) -> 2000000 | DA180: =SUM(AO180) -> 0 | DG180: =SUM(Z180) -> 2400000 | DH180: =SUM(AA180) -> 100000 | DI180: =SUM(AE180) -> 300000 | DJ180: =SUM(AJ180) -> 2000000 | DK180: =SUM(AO180) -> 0
A181: K 65 | B181: 65 | F181: A; GV-3.1 | G181: A | H181: LP | M181: x | N181: Buchrain, Knoten K65/65c, Optimierung Leistungsfähigkeit | O181: 300000 | P181: 1 | Q181: 85 | R181: A | S181: 1 | T181: 173 | U181: 174 | V181: B | W181: in Planung | X181: 300000 | Z181: 30000000 | AA181: 500000 | AD181: 500000 | AE181: 1500000 | AF181: 500000 | AG181: 500000 | AH181: 500000 | AJ181: =SUM(AK181:AN181) -> 23000000 | AL181: 3000000 | AM181: 10000000 | AN181: 10000000 | AO181: 5000000 | AP181: BU | BS181: 3 | BT181: 1 | BU181: 2 | BV181: 2 | BW181: -1 | BX181: 0 | BY181: 3 | BZ181: -1 | CA181: 9 | CB181: 0 | CC181: 2 | CD181: 3 | CE181: 5 | CF181: 14 | CG181: genügend | CH181: genügend | CM181: =SUM(CF181) -> 14 | CO181: Aggloprogramm, öV-Bericht | CR181: 0.5 | CS181: 2027 | CW181: 30000000 | CX181: 500000 | CY181: 1500000 | CZ181: 23000000 | DA181: 5000000 | DG181: 30000000 | DH181: 500000 | DI181: 1500000 | DJ181: 23000000 | DK181: 5000000 | EK181: 2
A182: K 65 a | B182: 65.2 | F182: B; FVV-4.3 | G182: A | H182: LP | M182: x | N182: Inwil, Inwil Dorf (exkl.) – Autobahnanschluss A 14 Gisikon (exkl.), Ausbau Rad- und Gehweg in Koordination Sanierung Strasse | O182: 5000000 | P182: 3 | Q182: 251 | R182: C | S182: 3 | T182: 174 | U182: 175 | V182: B | W182: keine Aktivität | X182: 5000000 | Z182: =SUM(AA182+AF182+AG182+AH182+AI182+AJ182+AO182) -> 10000000 | AA182: =SUM(AB182:AD182) -> 0 | AD182: 0 | AE182: 400000 | AG182: 100000 | AH182: 100000 | AI182: 200000 | AJ182: =SUM(AK182:AN182) -> 2600000 | AK182: 100000 | AM182: 500000 | AN182: 2000000 | AO182: 7000000 | BR182: Evt. auch Topf C möglich mit Baubeginn 2031 | BS182: 1 | BT182: 0 | BU182: 0 | BV182: 0 | BW182: 0 | BX182: 0 | BY182: 3 | BZ182: 0 | CA182: =SUM(BS182:BZ182) -> 4 | CB182: 1 | CC182: 0 | CD182: 1 | CE182: =SUM(CB182:CD182) -> 2 | CF182: =CA182+CE182 -> 6 | CG182: genügend | CH182: ungenügend | CM182: =SUM(CF182) -> 6 | CO182: nicht normgerechte RVA GVK Luzern Ost | CR182: 0.7 | CS182: 2035 | CW182: 10000000 | CX182: 0 | CY182: 400000 | CZ182: 2600000 | DA182: 7000000 | DG182: 10000000 | DH182: 0 | DI182: 400000 | DJ182: 2600000 | DK182: 7000000 | EK182: 2
A183: K 65 a | B183: 65.2 | F183: B; GV-5.6 | G183: A | H183: LP | M183: x | N183: Inwil, Ortsdurchfahrt, Optimierung Gesamtverkehrssystem mit Verbesserung Verkehrssicherheit und Massnahmen zugunsten Langsamverkehr und öffentlicher Verkehr (z.B. Querungshilfen) | O183: 400000 | P183: 3 | Q183: 252 | R183: C | S183: 3 | T183: 175 | U183: 176 | V183: B | W183: keine Aktivität | X183: 400000 | Z183: =SUM(AA183+AF183+AG183+AH183+AI183+AJ183+AO183) -> 8000000 | AA183: =SUM(AB183:AD183) -> 0 | AD183: 0 | AE183: 500000 | AG183: 100000 | AH183: 200000 | AI183: 200000 | AJ183: 2500000 | AK183: 200000 | AM183: 500000 | AN183: 1800000 | AO183: 5000000 | BR183: Evt. auch Topf C möglich mit Baubeginn 2031 | BS183: 1 | BT183: 1 | BU183: 1 | BV183: 2 | BW183: 0 | BX183: 2 | BY183: 2 | BZ183: 2 | CA183: 11 | CB183: 2 | CC183: 2 | CD183: 1 | CE183: 5 | CF183: 16 | CG183: sehr gut | CH183: gut | CM183: =SUM(CF183) -> 16 | CO183: Aggloprogramm Ergebnis GVK Seetal, öV-Bericht | CR183: 0.8 | CS183: 2033 | CW183: 8000000 | CX183: 0 | CY183: 500000 | CZ183: 2500000 | DA183: 5000000 | DG183: 8000000 | DH183: 0 | DI183: 500000 | DJ183: 2500000 | DK183: 5000000 | EK183: 2
A184: Total Topf B = 77 Projekte | AF184: =SUM(AF107:AF183) -> 3950000 | AG184: 6750000 | AH184: 9650000 | AI184: 8650000 | AJ184: 237800000 | AK184: 18350000 | AL184: 34200000 | AM184: 70300000 | AN184: 112950000 | AO184: 323000000
A185: Topf C | BS185: Wirkung - Relevanz - Kostenkategorien (Kosten/Nutzen) | CR185: Strassen-zustand 2017 | CT185: Strassen-zustand 2013 | CV185: RRK 94 ergänzt | EK185: Zustand Kunstbauten im Strassenabschnitt 2017 | EL185: Zustand Kunstbauten im Strassenabschnitt 2013 | EM185: Hochwasserschutz/Naturgefahren | EN185: Gefahrenprozess | EO185: Verkehr DTV Maximalwert im Strassenabschnitt | EP185: Unfall-schwer-punkt Polizei
A186: Strassen-zug | C186: Agglomerationsprogramm | G186: Zu-ord-nung | M186: Projekt Nr. | N186: Gemeinde, Abschnitt, Massnahme | O186: Projekt-kosten Bauprogramm | P186: Über-sichts-plan 19-22 | Q186: Plan Nr. | R186: Topf | S186: Über-sichts-plan 19-22 | T186: Plan Nr. | U186: Plan Nr. | V186: Topf | W186: Stand der Planung 19.1.2021 | X186: Projekt-kosten | Y186: aktuelle Projekt-kosten | Z186: Projekt-kosten | AA186: Kosten bis 2022 | AB186: Kosten bis Ende 2021 | AC186: ZAK 2022 | AD186: Projektkosten vor Ende 2022 Entwurf Ho | AE186: Topf A | AF186: Topf A | AJ186: Topf B | AO186: Topf C | AP186: Ressourcenplanung | BR186: Bemerkungen | BS186: Wirkung | CA186: Wirkung | CB186: Relevanz | CE186: Relevanz | CF186: Nutzen- punkte | CG186: Kosten/ Nutzen Kosten-Kate-gorien | CH186: Kosten/ Nutzen Kosten-Kate-gorien | CI186: Priorität / Rangfolge | CO186: Abhängigkeiten | CR186: ausgewiesen 2.2 (2.3) - 5.0 vorgesehen 1.5 - 2.2 (2.3) < 1.5 | CT186: ausgewiesen 2.2 (2.3) - 5.0 vorgesehen 1.5 - 2.2 (2.3) < 1.5 | CV186: Priortät Unfall-schwer-punkt Lücke | EK186: 5 alarmierend (Sicherheit gefährdet) 4 schlecht (grosse Schäden) 3 beschädigt (bedeutende Schäden) 2 akzeptabel ( unbedeutende Schäden) N keine KB betroffen | EL186: 5 alarmierend (Sicherheit gefährdet) 4 schlecht (grosse Schäden) 3 beschädigt (bedeutende Schäden) 2 akzeptabel ( unbedeutende Schäden) N keine KB betroffen | EM186: Betroffen Ja / Nein GHK = Aussagen aufgrund von Höhenmodellen. GK = genaue Gefahrenbeurteilungen im Siedlungsgebiet. | EN186: GHK: Gefahrenhinweiskarte GK: Gefahrenkarte L: Lawine; S: Sturz; M: Murgang; R: Rutsch; W: Wasser | EO186: Belastung > 20'000 Fz/Tag Belastung < 20'000 bis 15'000 Fz/Tag Belastung < 15'000 bis 10'000 Fz/Tag Belastung < 10'000 bis 5'000 Fz/Tag Belastung < 5'000 Fz/Tag
C187: 1 G | D187: 2 G | E187: 3 G | F187: 4G | G187: Agglo Stadt Land | H187: Luern Plus | I187: Sursee - Mittelland | J187: Idee Seetal | K187: Luzern West | L187: Regio Zofingen | O187: 2019-2022 | Q187: 2019-2022 | R187: 2019-2022 | S187: 2023-2026 | T187: 23-26 alt | U187: 2023-2026 | V187: 2023-2026 | W187: Stand: Prognose per Ende.2022 | Y187: Stand 19.1.2021 | AE187: 2023-2026 | AF187: 2023 | AG187: 2024 | AH187: 2025 | AI187: 2026 | AK187: 2027 | AL187: 2028 | AM187: 2029 | AN187: 2030 | AP187: PL | AQ187: 21 | AU187: 22 | AV187: 23 | AZ187: 24 | BD187: 25 | BH187: 26 | BL187: 2027 | BM187: 2028 | BN187: 2029 | BO187: 2030 | BP187: Topf C | BS187: W1 | BT187: W2 | BU187: W3 | BV187: W4 | BW187: W5 | BX187: W6 | BY187: W7 | BZ187: W8 | CA187: W | CB187: R1 | CC187: R2 | CD187: R3 | CE187: R | CF187: Summe | CG187: mit T 5 | CH187: mit T 6 | CI187: 1 | CJ187: 2 | CK187: 3 | CL187: 4 | CM187: 5 | CN187: 6 | CR187: Wert | CS187: Inter-vention | CT187: Wert | CU187: Inter-vention
A188: K 2 | B188: 2 | D188: C; GV-1.3 | E188: C; GV-1-1 | F188: C; GV-1.1 | G188: Stadt | H188: LP | M188: x | N188: Luzern, Pilatusstrasse – Seebrücke, Massnahmen für den öffentlichen Verkehr, den Langsamverkehr und den motorisierten Individualverkehr in Koordination mit Durchgangsbahnhof (z.B. Bushaltestelle Durchmesserperronanlage, Ergänzung Radverkehrsanlagen) | O188: 20000000 | P188: 1 | Q188: 200 | R188: C | S188: 1 | T188: 200 | U188: 200 | V188: C | W188: keine Aktivität | X188: 20000000 | Z188: =SUM(AA188+AF188+AG188+AH188+AI188+AJ188+AO188) -> 20000000 | AA188: =SUM(AB188:AD188) -> 0 | AD188: 0 | AE188: =SUM(AF188:AI188) -> 500000 | AH188: 250000 | AI188: 250000 | AJ188: =SUM(AK188:AN188) -> 500000 | AL188: 250000 | AM188: 250000 | AO188: 19000000 | BS188: 3 | BT188: 2 | BU188: 2 | BV188: 0 | BW188: 0 | BX188: 1 | BY188: 3 | BZ188: 1 | CA188: =SUM(BS188:BZ188) -> 12 | CB188: 1 | CC188: 3 | CD188: 3 | CE188: =SUM(CB188:CD188) -> 7 | CF188: =CA188+CE188 -> 19 | CG188: sehr gut | CH188: sehr gut | CM188: =SUM(CF188) -> 19 | CO188: Aggloprogramm 2G Liste C Vorprojekt gemäss AP ab 2015 in Koordination mit Durchgangsbahnhof | CS188: neue Str. | CU188: neue Str. | CV188: U, best. | CW188: =SUM(Z188) -> 20000000 | CX188: =SUM(AA188) -> 0 | CY188: =SUM(AE188) -> 500000 | CZ188: =SUM(AJ188) -> 500000 | DA188: =SUM(AO188) -> 19000000 | DG188: =SUM(Z188) -> 20000000 | DH188: =SUM(AA188) -> 0 | DI188: =SUM(AE188) -> 500000 | DJ188: =SUM(AJ188) -> 500000 | DK188: =SUM(AO188) -> 19000000 | EK188: L | EL188: L | EM188: n | EO188: k.A.
A189: K 2 b | B189: 2.1 | G189: L | H189: LP | N189: Weggis, Neue Haltestelle Acher auf Kantonsstrasse | Q189: neu | S189: 1 | T189: 202 | U189: 201 | V189: C | W189: Antrag VVL | Z189: 500000 | AA189: 0 | AE189: 0 | AO189: 500000 | BS189: 1 | BT189: 0 | BU189: 1 | BV189: 0 | BW189: 0 | BX189: 0 | BY189: 1 | BZ189: 0 | CA189: 3 | CB189: 0 | CC189: 1 | CD189: 0 | CE189: =SUM(CB189:CD189) -> 1 | CF189: =CA189+CE189 -> 4 | CG189: genügend | CH189: genügend | CM189: =SUM(CF189) -> 4 | CO189: öV-Bericht | DB189: =SUM(Z189) -> 500000 | DC189: =SUM(AA189) -> 0 | DD189: =SUM(AE189) -> 0 | DE189: =SUM(AJ189) -> 0 | DF189: =SUM(AO189) -> 500000 | DG189: 500000 | DH189: 0 | DI189: 0 | DJ189: 0 | DK189: 500000
A190: K 10 | B190: 10 | G190: L | K190: RW | M190: x | N190: Wolhusen/Werthenstein, Umfahrung Süd inkl. Anschlussbauwerk Wolhusen Süd | O190: 110000000 | P190: 4/5 | Q190: 206 | R190: C | S190: 4 | T190: 203 | U190: 202 | V190: C | W190: in Planung | X190: 110000000 | Z190: 110000000 | AA190: 1000000 | AD190: 1000000 | AE190: 1000000 | AF190: 200000 | AG190: 500000 | AH190: 300000 | AJ190: =SUM(AK190:AN190) -> 3000000 | AK190: 500000 | AL190: 1000000 | AM190: 1000000 | AN190: 500000 | AO190: 105000000 | AP190: End | BR190: Planung fortführen | BS190: 2 | BT190: 0 | BU190: 1 | BV190: 3 | BW190: -2 | BX190: 0 | BY190: 2 | BZ190: 1 | CA190: 7 | CB190: 0 | CC190: 1 | CD190: 2 | CE190: 3 | CF190: 10 | CG190: ungenügend | CH190: ungenügend | CM190: =SUM(CF190) -> 10 | CO190: Kantonaler Richtplan | CR190: 2.1 | CS190: 2014 | DB190: 110000000 | DC190: 1000000 | DD190: 1000000 | DE190: 3000000 | DF190: 105000000 | DV190: =SUM(Z190) -> 110000000 | DW190: =SUM(AA190) -> 1000000 | DX190: =SUM(AE190) -> 1000000 | DY190: =SUM(AJ190) -> 3000000 | DZ190: =SUM(AO190) -> 105000000 | EK190: 2
A191: K 10 | B191: 10 | G191: L | K191: RE | M191: x | N191: Hasle, Dorf Hasle, Radverkehrsanlage, Massnahme offen, in Koordination Sanierung Strasse | O191: 3500000 | P191: 4 | Q191: 208 | R191: C | S191: 4 | T191: 204 | U191: 203 | V191: C | W191: keine Aktivität | X191: 3500000 | Z191: 3500000 | AA191: 0 | AD191: 0 | AE191: 0 | AJ191: 200000 | AM191: 100000 | AN191: 100000 | AO191: 3300000 | BS191: 1 | BT191: 2 | BU191: 0 | BV191: 0 | BW191: 0 | BX191: 1 | BY191: 1 | BZ191: 0 | CA191: =SUM(BS191:BZ191) -> 5 | CB191: 1 | CC191: 0 | CD191: 1 | CE191: =SUM(CB191:CD191) -> 2 | CF191: =CA191+CE191 -> 7 | CG191: genügend | CH191: genügend | CM191: =SUM(CF191) -> 7 | CO191: RRK | CR191: 0.6 | CS191: 2031 | CT191: 1 | CU191: 2026 | CV191: 2 | DB191: 3500000 | DC191: 0 | DD191: 0 | DE191: 200000 | DF191: 3300000 | DV191: 3500000 | DW191: 0 | DX191: 0 | DY191: 200000 | DZ191: 3300000 | EK191: 2 | EL191: 2 | EM191: j | EN191: GHK: W, R | EO191: 5500
A192: K 13 | B192: 13 | F192: C; GV-1.6 | G192: Stadt | H192: LP | N192: Luzern, Kasernenplatz, Optimierung Strassennetz mit Massnahmen für öV und Fuss- und Veloverkehr | Q192: neu | S192: 1 | T192: 205 | U192: 204 | V192: C | Z192: 5000000 | AA192: 0 | AD192: 0 | AE192: 0 | AJ192: =SUM(AK192:AN192) -> 500000 | AK192: 100000 | AL192: 200000 | AM192: 200000 | AO192: 4500000 | BR192: Planung könnte auch ab 2025 gestartett werden | BS192: 2 | BT192: 0 | BU192: 2 | BV192: 1 | BW192: 0 | BX192: 2 | BY192: 3 | BZ192: 0 | CA192: 10 | CB192: 1 | CC192: 1 | CD192: 3 | CE192: =SUM(CB192:CD192) -> 5 | CF192: =CA192+CE192 -> 15 | CG192: gut | CH192: gut | CM192: =SUM(CF192) -> 15 | CO192: Ergebnis ZMB Spange Nord Aggloprogramm | CW192: =SUM(Z192) -> 5000000 | CX192: =SUM(AA192) -> 0 | CY192: =SUM(AE192) -> 0 | CZ192: =SUM(AJ192) -> 500000 | DA192: =SUM(AO192) -> 4500000 | DG192: =SUM(Z192) -> 5000000 | DH192: =SUM(AA192) -> 0 | DI192: =SUM(AE192) -> 0 | DJ192: =SUM(AJ192) -> 500000 | DK192: =SUM(AO192) -> 4500000
A193: K 13 | B193: 13 | F193: C; GV-1.5 | G193: Stadt | H193: LP | N193: Luzern, Kreuzstutz, Optimierung Gesamtverkehrssystem mit Massnahmen für öV und Fuss- und Veloverkehr | Q193: neu | S193: 1 | T193: 206 | U193: 205 | V193: C | Z193: 40000000 | AA193: 0 | AD193: 0 | AE193: 0 | AJ193: =SUM(AK193:AN193) -> 1000000 | AK193: 100000 | AL193: 400000 | AM193: 400000 | AN193: 100000 | AO193: 39000000 | BR193: Planung könnte auch ab 2025 gestartett werden | BS193: 3 | BT193: 3 | BU193: 1 | BV193: 1 | BW193: 0 | BX193: 2 | BY193: 3 | BZ193: 1 | CA193: =SUM(BS193:BZ193) -> 14 | CB193: 3 | CC193: 3 | CD193: 2 | CE193: =SUM(CB193:CD193) -> 8 | CF193: =CA193+CE193 -> 22 | CG193: sehr gut | CH193: gut | CL193: =SUM(CF193) -> 22 | CO193: Zustand Strasse Ergebnis ZMB Spange Nord Aggloprogramm öV-Bericht, Kunstbauten | CW193: 40000000 | CX193: 0 | CY193: 0 | CZ193: 1000000 | DA193: 39000000 | DG193: 40000000 | DH193: 0 | DI193: 0 | DJ193: 1000000 | DK193: 39000000
A194: K 13 | B194: 13 | F194: C; MIV-2 | G194: Stadt | H194: LP | N194: Luzern, Reussportbrücke | Q194: neu | S194: 1 | T194: 207 | U194: 206 | V194: C | Z194: 40000000 | AA194: 0 | AD194: 0 | AE194: 500000 | AH194: 100000 | AI194: 400000 | AJ194: =SUM(AK194:AN194) -> 1000000 | AK194: 500000 | AL194: 100000 | AM194: 400000 | AO194: 38500000 | BS194: 0 | BT194: 3 | BU194: 0 | BV194: 1 | BW194: -2 | BX194: -3 | BY194: 3 | BZ194: -1 | CA194: 1 | CB194: 0 | CC194: 2 | CD194: 3 | CE194: 5 | CF194: 6 | CG194: ungenügend | CH194: ungenügend | CM194: =SUM(CF194) -> 6 | CO194: Ergebnis ZMB Spange Nord Aggloprogramm | CW194: 40000000 | CX194: 0 | CY194: 500000 | CZ194: 1000000 | DA194: 38500000 | DG194: 40000000 | DH194: 0 | DI194: 500000 | DJ194: 1000000 | DK194: 38500000
A195: K 13 | B195: 13 | G195: L | I195: SM | N195: Knutwil, Neue Bushaltestelle Gewerbegebiet Kantonsstrasse/Baumgarten St. Erhard | Q195: neu | S195: 5 | T195: 208 | U195: 207 | V195: C | W195: Antrag VVL | Z195: 500000 | AA195: 0 | AE195: 0 | AO195: 500000 | BS195: 0 | BT195: 0 | BU195: 0 | BV195: 0 | BW195: 0 | BX195: 0 | BY195: 2 | BZ195: 0 | CA195: 2 | CB195: 0 | CC195: 1 | CD195: 1 | CE195: 2 | CF195: 4 | CG195: genügend | CH195: genügend | CM195: =SUM(CF195) -> 4 | CO195: öV-Bericht | DB195: =SUM(Z195) -> 500000 | DC195: =SUM(AA195) -> 0 | DD195: =SUM(AE195) -> 0 | DE195: =SUM(AJ195) -> 0 | DF195: =SUM(AO195) -> 500000 | DL195: =SUM(Z195) -> 500000 | DM195: =SUM(AA195) -> 0 | DN195: =SUM(AE195) -> 0 | DO195: =SUM(AJ195) -> 0 | DP195: =SUM(AO195) -> 500000
A196: K 14 | G196: L | I196: SM | N196: Triengen, Abschnitt Guggisberg – Marchstein, Rad- und Gehweg | Q196: neu | S196: 5 | T196: 209 | U196: 208 | V196: C | Z196: 5000000 | AA196: =SUM(AB196:AD196) -> 0 | AD196: 0 | AE196: 0 | AJ196: =SUM(AK196:AN196) -> 300000 | AL196: 100000 | AM196: 200000 | AO196: 4700000 | BS196: 1 | BT196: 2 | BU196: 0 | BV196: 0 | BW196: 0 | BX196: 0 | BY196: 2 | BZ196: 0 | CA196: 5 | CB196: 1 | CC196: 1 | CD196: 1 | CE196: 3 | CF196: 8 | CG196: genügend | CH196: genügend | CM196: =SUM(CF196) -> 8 | CO196: RRK | DB196: 5000000 | DC196: 0 | DD196: 0 | DE196: 300000 | DF196: 4700000 | DL196: 5000000 | DM196: 0 | DN196: 0 | DO196: 300000 | DP196: 4700000
A197: K 15 a | B197: 15.2 | F197: C; ÖV-7.8 | G197: A | H197: LP | M197: x | N197: Rothenburg, Abschnitt Einmündung Butzibachstrasse – Abzweigung Rosengartenstrasse, Massnahmen für den öffentlichen Verkehr und Verkehrsmanagement | O197: 3000000 | P197: 3 | Q197: 212 | R197: C | S197: 3 | T197: 210 | U197: 209 | V197: C | W197: keine Aktivität | X197: 3000000 | Z197: 3300000 | AA197: 100000 | AD197: 100000 | AE197: 0 | AJ197: =SUM(AK197:AN197) -> 200000 | AL197: 100000 | AM197: 100000 | AO197: 3000000 | BS197: 0 | BT197: 0 | BU197: 2 | BV197: 0 | BW197: 0 | BX197: 0 | BY197: 3 | BZ197: 1 | CA197: 6 | CB197: 0 | CC197: 2 | CD197: 2 | CE197: 4 | CF197: 10 | CG197: genügend | CH197: genügend | CM197: =SUM(CF197) -> 10 | CO197: Aggloprogramm Entwicklungsschwerpunkt | CR197: 2 | CS197: 2015 | CT197: 1.8 | CU197: 2017 | CV197: 3 | CW197: =SUM(Z197) -> 3300000 | CX197: =SUM(AA197) -> 100000 | CY197: =SUM(AE197) -> 0 | CZ197: =SUM(AJ197) -> 200000 | DA197: =SUM(AO197) -> 3000000 | DG197: =SUM(Z197) -> 3300000 | DH197: =SUM(AA197) -> 100000 | DI197: =SUM(AE197) -> 0 | DJ197: =SUM(AJ197) -> 200000 | DK197: =SUM(AO197) -> 3000000 | EK197: 3 | EL197: 3 | EM197: j | EN197: GHK: W | EO197: 3400
A198: K 16 | B198: 14 | G198: L | J198: IS | N198: Hitzkirch, Gelfingen, neue Bushaltestelle L109 | Q198: neu | S198: 3 | T198: 211 | U198: 210 | V198: C | W198: Antrag VVL | Z198: 500000 | AA198: 0 | AE198: 0 | AO198: 500000 | BS198: 0 | BT198: 0 | BU198: 1 | BV198: 0 | BW198: 0 | BX198: 0 | BY198: 2 | BZ198: 0 | CA198: 3 | CB198: 0 | CC198: 1 | CD198: 1 | CE198: 2 | CF198: 5 | CG198: gut | CH198: genügend | CM198: =SUM(CF198) -> 5 | CO198: öV-Bericht | DB198: =SUM(Z198) -> 500000 | DC198: =SUM(AA198) -> 0 | DD198: =SUM(AE198) -> 0 | DE198: =SUM(AJ198) -> 0 | DF198: =SUM(AO198) -> 500000 | DQ198: =SUM(Z198) -> 500000 | DR198: =SUM(AA198) -> 0 | DS198: =SUM(AE198) -> 0 | DT198: =SUM(AJ198) -> 0 | DU198: =SUM(AO198) -> 500000
A199: K 16 a | B199: 16.2 | G199: L | J199: IS | M199: x | N199: Hitzkirch/Beromünster, Mosen, Einmündung K 58 – Grenze Kanton Aargau, Radverkehrsanlage, 2. Etappe (Abzweigung Alternativroute – Kantonsgrenze AG) | O199: 2100000 | P199: 3/5 | Q199: 221 | R199: C | S199: 3/5 | T199: 212 | U199: 211 | V199: C | W199: keine Aktivität | X199: 2100000 | Z199: 2100000 | AA199: 0 | AE199: 0 | AJ199: =SUM(AK199:AN199) -> 100000 | AM199: 50000 | AN199: 50000 | AO199: 2000000 | BS199: 1 | BT199: 3 | BU199: 0 | BV199: 0 | BW199: 0 | BX199: -1 | BY199: 0 | BZ199: 0 | CA199: 3 | CB199: 1 | CC199: 1 | CD199: 1 | CE199: 3 | CF199: 6 | CG199: gut | CH199: genügend | CM199: =SUM(CF199) -> 6 | CN199: =SUM(CF199) -> 6 | CO199: RRK Koordnination mit Kanton AG Ergebnis GVK Seetal | CR199: 0 | CS199: 2040 | CT199: 0 | CU199: 2040 | CV199: 1 | DB199: 2100000 | DC199: 0 | DD199: 0 | DE199: 100000 | DF199: 2000000 | DQ199: 2100000 | DR199: 0 | DS199: 0 | DT199: 100000 | DU199: 2000000 | EK199: 2 | EL199: 2 | EM199: n | EO199: k.A.
A200: K 17 | B200: 17 | G200: A | H200: LP | N200: Root, Verlegung Bushaltestelle Root Dorf auf nördliche Seite des Kreisels (für Mitbedienung Linie 22) | Q200: neu | S200: 1 | T200: 213 | U200: 212 | V200: C | W200: Antrag VVL | Z200: 300000 | AA200: 0 | AE200: 0 | AO200: 300000 | BS200: 0 | BT200: 0 | BU200: 1 | BV200: 0 | BW200: 0 | BX200: 0 | BY200: 3 | BZ200: 0 | CA200: 4 | CB200: 0 | CC200: 1 | CD200: 1 | CE200: 2 | CF200: 6 | CG200: gut | CH200: genügend | CM200: =SUM(CF200) -> 6 | CO200: öV-Bericht | CW200: =SUM(Z200) -> 300000 | CX200: =SUM(AA200) -> 0 | CY200: =SUM(AE200) -> 0 | CZ200: =SUM(AJ200) -> 0 | DA200: =SUM(AO200) -> 300000 | DG200: =SUM(Z200) -> 300000 | DH200: =SUM(AA200) -> 0 | DI200: =SUM(AE200) -> 0 | DJ200: =SUM(AJ200) -> 0 | DK200: =SUM(AO200) -> 300000
A201: K 17 a | B201: 17.2 | F201: C; FVV-6.1 | G201: A | H201: LP | M201: x | N201: Inwil, Autobahnanschluss Gisikon (exkl.) – Kantonsgrenze AG, Radverkehrsanlagen in Koordination Sanierung Strasse | O201: 3500000 | P201: 3 | Q201: 223 | R201: C | S201: 3 | T201: 214 | U201: 213 | V201: C | W201: keine Aktivität | X201: 3500000 | Z201: 5500000 | AA201: 0 | AD201: 0 | AE201: 0 | AJ201: =SUM(AK201:AN201) -> 200000 | AM201: 100000 | AN201: 100000 | AO201: 5300000 | BS201: 1 | BT201: 1 | BU201: 0 | BV201: 0 | BW201: 0 | BX201: 0 | BY201: 3 | BZ201: 0 | CA201: 5 | CB201: 2 | CC201: 1 | CD201: 1 | CE201: 4 | CF201: 9 | CG201: genügend | CH201: genügend | CM201: 9 | CN201: =SUM(CF201) -> 9 | CO201: RRK Koordnination mit Kanton AG Ergebnis GVK Seetal | CR201: 1.6 | CS201: 2020 | CW201: 5500000 | CX201: 0 | CY201: 0 | CZ201: 200000 | DA201: 5300000 | DG201: 5500000 | DH201: 0 | DI201: 0 | DJ201: 200000 | DK201: 5300000 | EK201: 2
... 59 more rows

Sheet Grafik
A1: Nr. | B1: Mio.Fr. | C1: in Bau | D1: bewilligt | E1: Zustand alarmierend | F1: Koordination mit Oberbausanierung | G1: mit Abhängigkeit | H1: ohne Abhängigkeit
A2: =Daten!#REF! ->  | B2: =Daten!#REF!/1000000 ->  | H2: 8
A3: =Daten!#REF! ->  | B3: =Daten!#REF!/1000000 ->  | G3: 12
A4: =Daten!#REF! ->  | B4: =Daten!#REF!/1000000 ->  | C4: 13
A5: =Daten!#REF! ->  | B5: =Daten!#REF!/1000000 ->  | G5: 14
A6: =Daten!#REF! ->  | B6: =Daten!#REF!/1000000 ->  | G6: 13
A7: =Daten!#REF! ->  | B7: =Daten!X14/1000000 -> 14 | E7: 7
A8: =Daten!#REF! ->  | B8: =Daten!X15/1000000 -> 13 | G8: 16
A9: =Daten!#REF! ->  | B9: =Daten!#REF!/1000000 ->  | D9: 18
A10: =Daten!#REF! ->  | B10: =Daten!X17/1000000 -> 18 | G10: 8
A11: =Daten!#REF! ->  | B11: =Daten!#REF!/1000000 ->  | E11: 13
A12: =Daten!#REF! ->  | B12: =Daten!#REF!/1000000 ->  | G12: 15
A13: =Daten!#REF! ->  | B13: =Daten!X28/1000000 -> 0.5 | D13: 13
A14: =Daten!#REF! ->  | B14: =Daten!#REF!/1000000 ->  | C14: 12
A15: =Daten!#REF! ->  | B15: =Daten!#REF!/1000000 ->  | H15: 13
A16: =Daten!#REF! ->  | B16: =Daten!#REF!/1000000 ->  | H16: 11
A17: =Daten!#REF! ->  | B17: =Daten!#REF!/1000000 ->  | H17: 12
A18: =Daten!#REF! ->  | B18: =Daten!#REF!/1000000 ->  | H18: 12
A19: =Daten!#REF! ->  | B19: =Daten!#REF!/1000000 ->  | H19: 10
A20: =Daten!#REF! ->  | B20: =Daten!#REF!/1000000 ->  | G20: 11
A21: =Daten!#REF! ->  | B21: =Daten!#REF!/1000000 ->  | C21: 11
A22: =Daten!#REF! ->  | B22: =Daten!#REF!/1000000 ->  | G22: 16
A23: =Daten!#REF! ->  | B23: =Daten!#REF!/1000000 ->  | H23: 8
A24: =Daten!#REF! ->  | B24: =Daten!#REF!/1000000 ->  | C24: 29
A25: =Daten!#REF! ->  | B25: =Daten!#REF!/1000000 ->  | D25: 15
A26: =Daten!#REF! ->  | B26: =Daten!#REF!/1000000 ->  | D26: 17
A27: =Daten!#REF! ->  | B27: =Daten!X47/1000000 -> 2 | C27: 13
A28: =Daten!#REF! ->  | B28: =Daten!X48/1000000 -> 2 | G28: 18
A29: =Daten!#REF! ->  | B29: =Daten!#REF!/1000000 ->  | D29: 17
A30: =Daten!#REF! ->  | B30: =Daten!#REF!/1000000 ->  | H30: 8
A31: =Daten!#REF! ->  | B31: =Daten!#REF!/1000000 ->  | C31: 10
A32: =Daten!#REF! ->  | B32: =Daten!#REF!/1000000 ->  | G32: 9
A33: =Daten!#REF! ->  | B33: =Daten!#REF!/1000000 ->  | G33: 21
A34: =Daten!#REF! ->  | B34: =Daten!#REF!/1000000 ->  | C34: 12
A35: =Daten!#REF! ->  | B35: =Daten!#REF!/1000000 ->  | C35: 16
A36: =Daten!#REF! ->  | B36: =Daten!#REF!/1000000 ->  | F36: 8
A37: =Daten!#REF! ->  | B37: =Daten!#REF!/1000000 ->  | G37: 9
A38: =Daten!#REF! ->  | B38: =Daten!#REF!/1000000 ->  | G38: 12
A39: =Daten!#REF! ->  | B39: =Daten!#REF!/1000000 ->  | H39: 4
A40: =Daten!#REF! ->  | B40: =Daten!#REF!/1000000 ->  | C40: 7
A41: =Daten!#REF! ->  | B41: =Daten!X79/1000000 -> 0.3 | G41: 3
A42: =Daten!#REF! ->  | B42: =Daten!#REF!/1000000 ->  | C42: 7
A43: =Daten!#REF! ->  | B43: =Daten!X84/1000000 -> 0.6 | G43: 9
A44: =Daten!#REF! ->  | B44: =Daten!#REF!/1000000 ->  | G44: 22
A45: =Daten!#REF! ->  | B45: =Daten!#REF!/1000000 ->  | D45: 21
A46: =Daten!#REF! ->  | B46: =Daten!#REF!/1000000 ->  | G46: 19
A47: =Daten!#REF! ->  | B47: =Daten!X85/1000000 -> 4.4 | G47: 14
A48: =Daten!#REF! ->  | B48: =Daten!X87/1000000 -> 27 | D48: 18
A49: =Daten!#REF! ->  | B49: =Daten!#REF!/1000000 ->  | F49: 12
A50: =Daten!#REF! ->  | B50: =Daten!#REF!/1000000 ->  | G50: 8
A51: =Daten!#REF! ->  | B51: =Daten!#REF!/1000000 ->  | G51: 7
A52: =Daten!#REF! ->  | B52: =Daten!#REF!/1000000 ->  | G52: 13
A53: =Daten!#REF! ->  | B53: =Daten!#REF!/1000000 ->  | D53: 9
A54: =Daten!#REF! ->  | B54: =Daten!#REF!/1000000 ->  | C54: 9
A55: =Daten!#REF! ->  | B55: =Daten!X100/1000000 -> 3.3 | D55: 12
A56: =Daten!#REF! ->  | B56: =Daten!#REF!/1000000 ->  | G56: 8
A57: =Daten!#REF! ->  | B57: =Daten!X102/1000000 -> 2.4 | H57: 2
A58: =Daten!#REF! ->  | B58: =Daten!#REF!/1000000 ->  | C58: 4
A59: =Daten!#REF! ->  | B59: =Daten!X110/1000000 -> 5.1 | H59: 10
A60: =Daten!#REF! ->  | B60: =Daten!X111/1000000 -> 26 | H60: 11
A61: =Daten!#REF! ->  | B61: =Daten!X119/1000000 -> 11 | C61: 9
A62: =Daten!#REF! ->  | B62: =Daten!#REF!/1000000 ->  | F62: 13
A63: =Daten!#REF! ->  | B63: =Daten!#REF!/1000000 ->  | G63: 13
A64: =Daten!#REF! ->  | B64: =Daten!X120/1000000 -> 10 | D64: 3
A65: =Daten!#REF! ->  | B65: =Daten!#REF!/1000000 ->  | H65: 13
A66: =Daten!#REF! ->  | B66: =Daten!#REF!/1000000 ->  | C66: 13
A67: =Daten!#REF! ->  | B67: =Daten!#REF!/1000000 ->  | G67: 10
A68: =Daten!#REF! ->  | B68: =Daten!#REF!/1000000 ->  | H68: 10
A69: =Daten!#REF! ->  | B69: =Daten!#REF!/1000000 ->  | G69: 15
A70: =Daten!#REF! ->  | B70: =Daten!#REF!/1000000 ->  | G70: 22
A71: =Daten!#REF! ->  | B71: =Daten!#REF!/1000000 ->  | H71: 10
A72: =Daten!#REF! ->  | B72: =Daten!#REF!/1000000 ->  | H72: 11
A73: =Daten!#REF! ->  | B73: =Daten!#REF!/1000000 ->  | G73: 11
A74: =Daten!#REF! ->  | B74: =Daten!#REF!/1000000 ->  | E74: 7
A75: =Daten!#REF! ->  | B75: =Daten!X128/1000000 -> 4 | H75: 7
A76: =Daten!#REF! ->  | B76: =Daten!#REF!/1000000 ->  | F76: 6
A77: =Daten!#REF! ->  | B77: =Daten!#REF!/1000000 ->  | G77: 20
A78: =Daten!#REF! ->  | B78: =Daten!#REF!/1000000 ->  | G78: 14
A79: =Daten!#REF! ->  | B79: =Daten!#REF!/1000000 ->  | H79: 11
A80: =Daten!#REF! ->  | B80: =Daten!#REF!/1000000 ->  | H80: 5
A81: =Daten!#REF! ->  | B81: =Daten!#REF!/1000000 ->  | H81: 14
A82: =Daten!#REF! ->  | B82: =Daten!X138/1000000 -> 2.8 | G82: 16
A83: =Daten!#REF! ->  | B83: =Daten!#REF!/1000000 ->  | G83: 10
A84: =Daten!#REF! ->  | B84: =Daten!#REF!/1000000 ->  | H84: 8
A85: =Daten!#REF! ->  | B85: =Daten!#REF!/1000000 ->  | H85: 11
A86: =Daten!#REF! ->  | B86: =Daten!X148/1000000 -> 2.8 | H86: 7
A87: =Daten!#REF! ->  | B87: =Daten!#REF!/1000000 ->  | G87: 10
A88: =Daten!#REF! ->  | B88: =Daten!X153/1000000 -> 6.8 | H88: 7
A89: =Daten!#REF! ->  | B89: =Daten!#REF!/1000000 ->  | H89: 10
A90: =Daten!#REF! ->  | B90: =Daten!X155/1000000 -> 2.9 | G90: 9
A91: =Daten!#REF! ->  | B91: =Daten!#REF!/1000000 ->  | G91: 12
A92: =Daten!#REF! ->  | B92: =Daten!#REF!/1000000 ->  | H92: 11
A93: =Daten!#REF! ->  | B93: =Daten!#REF!/1000000 ->  | H93: 7
A94: =Daten!#REF! ->  | B94: =Daten!#REF!/1000000 ->  | F94: 7
A95: =Daten!#REF! ->  | B95: =Daten!#REF!/1000000 ->  | H95: 10
A96: =Daten!#REF! ->  | B96: =Daten!X165/1000000 -> 10.7 | H96: 8
A97: =Daten!#REF! ->  | B97: =Daten!#REF!/1000000 ->  | H97: 7
A98: =Daten!#REF! ->  | B98: =Daten!#REF!/1000000 ->  | H98: 9
A99: =Daten!#REF! ->  | B99: =Daten!X188/1000000 -> 20 | H99: 9
A100: =Daten!#REF! ->  | B100: =Daten!#REF!/1000000 ->  | G100: 8
A101: =Daten!#REF! ->  | B101: =Daten!#REF!/1000000 ->  | G101: 2
A102: =Daten!#REF! ->  | B102: =Daten!#REF!/1000000 ->  | G102: 17
A103: =Daten!#REF! ->  | B103: =Daten!#REF!/1000000 ->  | G103: 2
A104: =Daten!#REF! ->  | B104: =Daten!#REF!/1000000 ->  | H104: 4
A105: =Daten!#REF! ->  | B105: =Daten!#REF!/1000000 ->  | H105: 7
A106: =Daten!#REF! ->  | B106: =Daten!#REF!/1000000 ->  | G106: 15
A107: =Daten!#REF! ->  | B107: =Daten!#REF!/1000000 ->  | H107: 8
A108: =Daten!#REF! ->  | B108: =Daten!#REF!/1000000 ->  | H108: 12
A109: =Daten!#REF! ->  | B109: =Daten!#REF!/1000000 ->  | H109: 2
A110: =Daten!#REF! ->  | B110: =Daten!#REF!/1000000 ->  | H110: 7
A111: =Daten!#REF! ->  | B111: =Daten!#REF!/1000000 ->  | H111: 8
A112: =Daten!#REF! ->  | B112: =Daten!#REF!/1000000 ->  | H112: 8
A113: =Daten!#REF! ->  | B113: =Daten!#REF!/1000000 ->  | G113: 9
A114: =Daten!#REF! ->  | B114: =Daten!#REF!/1000000 ->  | H114: 9
A115: =Daten!#REF! ->  | B115: =Daten!#REF!/1000000 ->  | H115: 17
A116: =Daten!#REF! ->  | B116: =Daten!#REF!/1000000 ->  | G116: 13
A117: =Daten!#REF! ->  | B117: =Daten!#REF!/1000000 ->  | H117: 9
A118: =Daten!#REF! ->  | B118: =Daten!#REF!/1000000 ->  | H118: 15
A119: =Daten!#REF! ->  | B119: =Daten!#REF!/1000000 ->  | G119: 11
A120: =Daten!#REF! ->  | B120: =Daten!X201/1000000 -> 3.5 | G120: 12
A121: =Daten!#REF! ->  | B121: =Daten!#REF!/1000000 ->  | G121: 19
A122: =Daten!#REF! ->  | B122: =Daten!#REF!/1000000 ->  | G122: 13
A123: =Daten!#REF! ->  | B123: =Daten!#REF!/1000000 ->  | H123: 6
A124: =Daten!#REF! ->  | B124: =Daten!#REF!/1000000 ->  | G124: 12
A125: =Daten!#REF! ->  | B125: =Daten!#REF!/1000000 ->  | H125: 4
A126: =Daten!#REF! ->  | B126: =Daten!#REF!/1000000 ->  | H126: 4
A127: =Daten!#REF! ->  | B127: =Daten!X204/1000000 -> 4 | H127: 2
A128: =Daten!#REF! ->  | B128: =Daten!#REF!/1000000 ->  | F128: 9
A129: =Daten!#REF! ->  | B129: =Daten!#REF!/1000000 ->  | F129: 7
A130: =Daten!#REF! ->  | B130: =Daten!#REF!/1000000 ->  | H130: 1
A131: =Daten!#REF! ->  | B131: =Daten!#REF!/1000000 ->  | H131: 5
A132: =Daten!#REF! ->  | B132: =Daten!#REF!/1000000 ->  | H132: 5
A133: =Daten!#REF! ->  | B133: =Daten!#REF!/1000000 ->  | H133: 1
A134: =Daten!#REF! ->  | B134: =Daten!#REF!/1000000 ->  | H134: 6
A135: =Daten!#REF! ->  | B135: =Daten!#REF!/1000000 ->  | H135: 5
A136: =Daten!#REF! ->  | B136: =Daten!#REF!/1000000 ->  | H136: 6
A137: =Daten!#REF! ->  | B137: =Daten!#REF!/1000000 ->  | F137: 5
A138: =Daten!#REF! ->  | B138: =Daten!#REF!/1000000 ->  | H138: 4
A139: =Daten!#REF! ->  | B139: =Daten!#REF!/1000000 ->  | H139: 6
A140: =Daten!#REF! ->  | B140: =Daten!#REF!/1000000 ->  | H140: 8
A141: =Daten!#REF! ->  | B141: =Daten!#REF!/1000000 ->  | H141: 3
A142: =Daten!#REF! ->  | B142: =Daten!#REF!/1000000 ->  | H142: 3
A143: =Daten!#REF! ->  | B143: =Daten!#REF!/1000000 ->  | H143: 4
A144: =Daten!#REF! ->  | B144: =Daten!#REF!/1000000 ->  | H144: 3
A145: =Daten!#REF! ->  | B145: =Daten!#REF!/1000000 ->  | F145: 4
A146: =Daten!#REF! ->  | B146: =Daten!#REF!/1000000 ->  | G146: 9

Sheet Kontrolle
B2: Projekt-kosten | C2: Kosten bis 2014 inkl. Kredit-überträge | D2: Topf A | H2: Topf B | I2: Topf C
D3: 2015 | E3: 2016 | F3: 2017 | G3: 2018
B4: =SUM(C4:I4) -> 2800000 | C4: 0 | D4: 100000 | E4: 100000 | F4: 100000 | G4: 1300000 | H4: 1200000
B5: =SUM(C5:I5) -> 2000000 | C5: 0 | D5: 100000 | E5: 100000 | F5: 1800000
B6: =SUM(C6:I6) -> 500000 | C6: 0 | D6: 50000 | E6: 450000
B7: 3500000 | C7: 200000 | D7: 100000 | F7: 200000 | G7: 2500000 | H7: 500000
B8: 6300000 | C8: 3000000 | D8: 2500000 | E8: 800000
B9: 9000000 | C9: 300000 | D9: 200000 | F9: 500000 | G9: 3000000 | H9: 5000000
B10: 3500000 | C10: 200000 | D10: 100000 | F10: 1200000 | G10: 2000000
B11: 16000000 | C11: 700000 | D11: 500000 | E11: 800000 | F11: 6000000 | G11: 6000000 | H11: 2000000
B12: 38000000 | C12: 600000 | D12: 400000 | F12: 1000000 | G12: 3000000 | H12: 33000000
B13: 1000000 | C13: 0 | D13: 50000 | E13: 50000 | G13: 900000
B14: 3600000 | C14: 300000 | D14: 100000 | F14: 100000 | G14: 800000 | H14: 2300000
B15: 850000 | C15: 600000 | D15: 250000
B16: 8500000 | C16: 300000 | D16: 100000 | F16: 600000 | G16: 2500000 | H16: 5000000
B17: 7900000 | C17: 3000000 | D17: 2500000 | E17: 2400000
B18: 9500000 | C18: 300000 | D18: 200000 | F18: 400000 | G18: 1500000 | H18: 7100000
B19: 4500000 | C19: 300000 | D19: 100000 | F19: 300000 | G19: 700000 | H19: 3100000
B20: 2900000 | C20: 100000 | D20: 100000 | E20: 100000 | F20: 2600000
B21: 4000000 | C21: 300000 | D21: 100000 | E21: 100000 | F21: 500000 | G21: 3000000
B22: 2900000 | C22: 100000 | E22: 100000 | F22: 100000 | G22: 2000000 | H22: 600000
B23: 500000 | C23: 0 | E23: 50000 | G23: 450000
B24: 0 | C24: 0 | F24: 0
B25: 2900000 | C25: 200000 | D25: 100000 | E25: 600000 | F25: 2000000
B26: 2400000 | C26: 100000 | D26: 100000 | E26: 1900000 | F26: 300000
B27: 6700000 | C27: 300000 | E27: 400000 | F27: 2000000 | G27: 2000000 | H27: 2000000
B28: 2100000 | C28: 1900000 | D28: 200000
B29: 2800000 | C29: 200000 | D29: 1100000 | G29: 100000 | H29: 1400000
B30: 900000 | C30: 800000 | D30: 100000
B31: 3900000 | C31: 200000 | D31: 200000 | F31: 200000 | G31: 2000000 | H31: 1300000
B32: 134000000 | C32: 60000000 | D32: 27000000 | E32: 27000000 | F32: 15000000 | G32: 5000000
B33: 500000 | C33: 20000 | E33: 50000 | G33: 430000
B34: 23500000 | C34: 500000 | D34: 500000 | E34: 500000 | G34: 2000000 | H34: 7000000 | I34: 13000000
B35: 500000 | C35: 50000 | D35: 450000
B36: 900000 | C36: 0 | E36: 50000 | F36: 50000 | G36: 800000
B37: 6000000 | C37: 100000 | D37: 200000 | E37: 100000 | F37: 100000 | G37: 1500000 | H37: 4000000
B38: 4200000 | C38: 1500000 | D38: 2500000 | E38: 200000
B39: 1800000 | C39: 1000000 | D39: 400000 | E39: 400000
B40: 300000 | C40: 0 | F40: 300000
B41: 7300000 | C41: 4000000 | D41: 2000000 | E41: 1300000
B42: 2800000 | C42: 200000 | E42: 1300000 | F42: 1300000
B43: 2900000 | C43: 200000 | D43: 200000 | E43: 2000000 | F43: 500000
B44: 8800000 | C44: 500000 | D44: 200000 | E44: 100000 | F44: 500000 | G44: 3000000 | H44: 4500000
B45: 2000000 | C45: 50000 | D45: 50000 | E45: 100000 | G45: 1800000
B46: 2000000 | C46: 0 | D46: 100000 | E46: 100000 | G46: 1800000
B47: 700000 | C47: 0 | D47: 50000 | F47: 650000
B48: 9000000 | C48: 300000 | D48: 100000 | E48: 100000 | F48: 200000 | G48: 1500000 | H48: 6800000
B49: 2300000 | C49: 100000 | D49: 100000 | E49: 100000 | F49: 2000000
B50: 2100000 | C50: 100000 | D50: 1000000 | E50: 1000000
B51: 10700000 | C51: 5200000 | D51: 3000000 | E51: 2500000
B52: 10000000 | C52: 500000 | D52: 300000 | E52: 200000 | G52: 500000 | H52: 8500000
B53: 600000 | C53: 0 | E53: 50000 | F53: 550000
B54: 0 | C54: 0 | F54: 0
B55: 2100000 | C55: 0 | D55: 100000 | F55: 1900000 | G55: 100000
B56: 1400000 | C56: 0 | D56: 50000 | E56: 50000 | F56: 1300000
B57: 7500000 | C57: 400000 | D57: 1000000 | E57: 3500000 | F57: 2600000
B58: 5300000 | C58: 200000 | D58: 100000 | E58: 200000 | G58: 900000 | H58: 3900000
B59: 700000 | C59: 0 | D59: 50000 | E59: 650000
B60: 3500000 | C60: 200000 | D60: 200000 | F60: 200000 | G60: 500000 | H60: 2400000
B61: 1000000 | C61: 0 | D61: 1000000
B62: 5000000 | C62: 300000 | D62: 200000 | E62: 2000000 | F62: 2000000 | G62: 500000
B63: 1100000 | C63: 50000 | D63: 50000 | E63: 50000 | F63: 950000
B64: 6900000 | C64: 2300000 | D64: 4000000 | E64: 600000
B65: 1300000 | C65: 0 | D65: 50000 | E65: 50000 | F65: 600000 | G65: 600000
B66: 500000 | C66: 0 | D66: 50000 | F66: 450000
B67: 13000000 | C67: 300000 | D67: 200000 | F67: 300000 | G67: 1500000 | H67: 10700000
B68: 3500000 | C68: 300000 | D68: 800000 | E68: 2400000
B69: 800000 | C69: 0 | D69: 50000 | F69: 750000
B70: =SUM(C70:I70) -> 2900000 | C70: 2800000 | D70: 100000
B71: 400000 | C71: 50000 | D71: 50000 | F71: 300000
B72: 1200000 | C72: 150000 | D72: 100000 | F72: 950000
B73: 2000000 | C73: 0 | F73: 1000000 | G73: 1000000
B74: 2900000 | C74: 200000 | D74: 100000 | E74: 2200000 | F74: 400000
B75: 600000 | C75: 0 | E75: 50000 | G75: 550000
B76: 800000 | C76: 0 | E76: 50000 | G76: 350000 | H76: 400000
B77: 2500000 | C77: 2200000 | D77: 300000
A78: Total Topf A | D78: =SUM(D4:D77) -> 56050000 | E78: =SUM(E4:E77) -> 56900000 | F78: 54750000 | G78: 58080000 | H78: 112700000 | I78: 13000000
B80: Projekt-kosten | C80: Kosten bis 2014 inkl. Kredit-überträge | D80: Topf A | H80: Topf B | I80: Topf C
D81: 2015 | E81: 2016 | F81: 2017 | G81: 2018
B82: =SUM(C82:I82) -> 5000000 | C82: 0 | D82: 100000 | E82: 100000 | F82: 100000 | H82: 3700000 | I82: 1000000
B83: 7800000 | C83: 300000 | E83: 250000 | F83: 250000 | H83: 7000000
B84: 24500000 | C84: 0 | E84: 100000 | F84: 200000 | G84: 200000 | H84: 4000000 | I84: 20000000
B85: 4000000 | C85: 0 | D85: 50000 | E85: 100000 | F85: 100000 | G85: 50000 | H85: 1500000 | I85: 2200000
B86: 5000000 | C86: 0 | D86: 100000 | E86: 100000 | F86: 100000 | H86: 4700000
B87: 4000000 | C87: 0 | G87: 100000 | H87: 1200000 | I87: 2700000
B88: 2100000 | C88: 0 | E88: 50000 | F88: 50000 | H88: 2000000
B89: 400000 | C89: 0 | H89: 400000
B90: 7500000 | C90: 0 | D90: 300000 | E90: 200000 | G90: 100000 | H90: 2300000 | I90: 4600000
B91: 24000000 | C91: 600000 | D91: 300000 | E91: 300000 | G91: 300000 | H91: 18500000 | I91: 4000000
B92: 18000000 | C92: 500000 | D92: 250000 | E92: 250000 | G92: 300000 | H92: 16700000
B93: 4500000 | C93: 0 | G93: 100000 | H93: 2400000 | I93: 2000000
B94: 2500000 | C94: 50000 | D94: 100000 | E94: 50000 | F94: 100000 | H94: 2200000
B95: 6400000 | C95: 0 | F95: 200000 | G95: 200000 | H95: 6000000
B96: 16000000 | C96: 200000 | E96: 100000 | F96: 200000 | H96: 7500000 | I96: 8000000
B97: 2500000 | C97: 0 | E97: 100000 | F97: 100000 | H97: 2300000
B98: 70500000 | C98: 0 | D98: 100000 | E98: 200000 | F98: 200000 | G98: 100000 | H98: 10900000 | I98: 59000000
B99: 2900000 | C99: 150000 | E99: 50000 | F99: 100000 | H99: 2600000
B100: 11000000 | C100: 0 | G100: 100000 | H100: 1200000 | I100: 9700000
B101: 9000000 | C101: 100000 | D101: 200000 | E101: 100000 | G101: 400000 | H101: 8200000
B102: 2700000 | C102: 0 | H102: 700000 | I102: 2000000
B103: 1100000 | C103: 0 | H103: 600000 | I103: 500000
B104: 500000 | C104: 0 | F104: 50000 | H104: 450000
B105: 2900000 | C105: 200000 | H105: 2700000
B106: 3500000 | C106: 0 | F106: 100000 | G106: 200000 | H106: 3200000
B107: 20000000 | C107: 400000 | D107: 200000 | E107: 200000 | F107: 200000 | H107: 19000000
B108: 5000000 | C108: 0 | F108: 100000 | G108: 100000 | H108: 1200000 | I108: 3600000
B109: 9300000 | C109: 0 | F109: 100000 | G109: 200000 | H109: 1500000 | I109: 7500000
B110: 3600000 | C110: 50000 | D110: 100000 | E110: 50000 | H110: 3400000
B111: 2000000 | C111: 50000 | D111: 100000 | E111: 50000 | H111: 1800000
B112: 0 | C112: 0 | H112: 0
B113: 6000000 | C113: 400000 | D113: 200000 | E113: 200000 | G113: 200000 | H113: 5000000
B114: 2500000 | C114: 0 | F114: 100000 | G114: 100000 | H114: 2300000
B115: 1700000 | C115: 0 | E115: 50000 | F115: 50000 | H115: 1600000
B116: 4300000 | C116: 0 | D116: 100000 | E116: 100000 | F116: 100000 | H116: 4000000
B117: 1400000 | C117: 0 | E117: 50000 | F117: 50000 | H117: 1300000
A118: Total Topf B | D118: =SUM(D82:D117) -> 2200000 | E118: =SUM(E82:E117) -> 2750000 | F118: 2550000 | G118: 2750000 | H118: 154050000 | I118: 126800000
B120: Projekt-kosten | C120: Kosten bis 2014 inkl. Kredit-überträge | D120: Topf A | H120: Topf B | I120: Topf C
D121: 2015 | E121: 2016 | F121: 2017 | G121: 2018
B122: =SUM(C122:I122) -> 20000000 | C122: 0 | H122: 1000000 | I122: 19000000
B123: 0 | C123: 0 | I123: 0
B124: 250000000 | C124: 300000 | H124: 1700000 | I124: 248000000
B125: 10000000 | C125: 0 | I125: 10000000
B126: 100000000 | C126: 200000 | F126: 250000 | G126: 250000 | H126: 2300000 | I126: 97000000
B127: 2100000 | C127: 0 | H127: 100000 | I127: 2000000
B128: 2100000 | C128: 0 | H128: 100000 | I128: 2000000
B129: 1000000 | C129: 0 | I129: 1000000
B130: 2800000 | C130: 0 | H130: 100000 | I130: 2700000
B131: 1000000 | C131: 0 | H131: 100000 | I131: 900000
B132: 1500000 | C132: 50000 | H132: 100000 | I132: 1350000
B133: 2500000 | C133: 0 | H133: 100000 | I133: 2400000
B134: 3200000 | C134: 0 | H134: 200000 | I134: 3000000
B135: 5000000 | C135: 0 | I135: 5000000
B136: 0 | C136: 0 | I136: 0
B137: 110000000 | C137: 1000000 | D137: 800000 | E137: 400000 | G137: 800000 | H137: 3000000 | I137: 104000000
B138: 1200000 | C138: 200000 | I138: 1000000
B139: 1900000 | C139: 0 | H139: 100000 | I139: 1800000
B140: 2100000 | C140: 0 | H140: 100000 | I140: 2000000
B141: 3100000 | C141: 0 | H141: 300000 | I141: 2800000
B142: 150000000 | C142: 1000000 | D142: 100000 | E142: 100000 | F142: 300000 | G142: 500000 | H142: 2000000 | I142: 146000000
B143: 3400000 | C143: 100000 | H143: 300000 | I143: 3000000
B144: 5000000 | C144: 50000 | H144: 350000 | I144: 4600000
B145: 6500000 | C145: 0 | H145: 500000 | I145: 6000000
B146: 4000000 | C146: 0 | I146: 4000000
B147: 4000000 | C147: 0 | I147: 4000000
B148: 5000000 | C148: 0 | I148: 5000000
B149: 2700000 | C149: 100000 | H149: 100000 | I149: 2500000
B150: 4000000 | C150: 0 | I150: 4000000
B151: 4000000 | C151: 0 | I151: 4000000
B152: 2500000 | C152: 0 | I152: 2500000
B153: 6000000 | C153: 0 | I153: 6000000
B154: 3500000 | C154: 0 | I154: 3500000
B155: 900000 | C155: 0 | H155: 100000 | I155: 800000
B156: 2100000 | C156: 0 | H156: 100000 | I156: 2000000
B157: 6000000 | C157: 0 | H157: 300000 | I157: 5700000
B158: 0 | C158: 0 | I158: 0
B159: 500000 | C159: 0 | I159: 500000
B160: 500000 | C160: 0 | I160: 500000
B161: 400000 | C161: 0 | I161: 400000
B162: 1500000 | C162: 0 | I162: 1500000
B163: 6000000 | C163: 0 | H163: 500000 | I163: 5500000
B164: 800000 | C164: 0 | H164: 50000 | I164: 750000
B165: 1000000 | C165: 0 | H165: 100000 | I165: 900000
B166: 400000 | C166: 0 | H166: 50000 | I166: 350000
B167: 4700000 | C167: 0 | H167: 200000 | I167: 4500000
A168: Total Topf C | D168: =SUM(D122:D167) -> 900000 | E168: =SUM(E122:E167) -> 500000 | F168: 550000 | G168: 1550000 | H168: 13950000 | I168: 724450000
D170: Topf A | H170: Topf B | I170: Topf C
D171: 2015 | E171: 2016 | F171: 2017 | G171: 2018
D172: 400000 | E172: 400000 | F172: 400000 | G172: 400000 | H172: 1600000 | I172: 1600000
D173: 400000 | E173: 400000 | F173: 400000 | G173: 400000 | H173: 1600000 | I173: 1600000
D174: 200000 | E174: 200000 | F174: 200000 | G174: 200000 | H174: 800000 | I174: 800000
D175: 200000 | E175: 200000 | F175: 200000 | G175: 200000 | H175: 800000 | I175: 800000
D176: 50000 | E176: 50000 | F176: 50000 | G176: 50000 | H176: 200000 | I176: 200000
D177: 500000 | E177: 500000 | F177: 500000 | G177: 500000 | H177: 2000000 | I177: 2000000
D178: 2000000 | E178: 2000000 | F178: 2000000 | G178: 2000000 | H178: 5000000
D179: 500000 | E179: 500000 | F179: 500000 | G179: 500000 | H179: 2000000 | I179: 2000000
D180: 200000 | E180: 200000 | F180: 200000 | G180: 200000 | H180: 800000 | I180: 800000
D181: 300000 | E181: 300000 | F181: 300000 | G181: 300000 | H181: 1200000 | I181: 1200000
D182: 45000 | E182: 45000 | F182: 45000 | G182: 45000 | H182: 180000 | I182: 180000
D183: 500000 | E183: 500000 | F183: 500000 | G183: 500000 | H183: 2000000 | I183: 2000000
D184: 100000 | E184: 100000 | F184: 100000 | G184: 100000 | H184: 400000 | I184: 400000
D185: 50000 | E185: 50000 | F185: 50000 | G185: 50000 | H185: 200000 | I185: 200000
D186: 200000 | E186: 500000 | F186: 2000000 | G186: 2000000 | H186: 8000000
D187: =SUM(D172:D186) -> 5645000 | E187: =SUM(E172:E186) -> 5945000 | F187: 7445000 | G187: 7445000 | H187: 26780000 | I187: 13780000
D190: =SUM(D187+D168+D118+D78) -> 64795000 | E190: =SUM(E187+E168+E118+E78) -> 66095000 | F190: =SUM(F187+F168+F118+F78) -> 65295000 | G190: 69825000 | H190: =SUM(H187+H168+H118+H78) -> 307480000 | I190: 878030000
